Department Family,Entity,Date of Payment,Expense Type,Expense Area,Supplier,Voluntary & Community Sector,SME Class,Sole Trader,D-U-N-S Number,Transaction number,PSPES Level 2,Narrative,Postal Code,Amount in Sterling,Grant?
Communities & Local Government,DCLG,01/11/2016,Current (non AEF) Grants to Local Authorities,Housing & Planning,BASINGSTOKE & DEANE BC,,,,228328506,2100268535,,Garden Towns Delivery,RG21 4AH,"375,000.00",Yes
Communities & Local Government,DCLG,01/11/2016,Current (non AEF) Grants to Local Authorities,Housing & Planning,COLCHESTER BC,,,,232682773,2100268533,,Garden Towns Delivery,CO1 1FR,"475,000.00",Yes
Communities & Local Government,DCLG,01/11/2016,Current (non AEF) Grants to Local Authorities,Housing & Planning,KETTERING BC,,Public Bodies,,211271796,2100268536,,Garden Towns Delivery,NN15 7QX,"250,000.00",Yes
Communities & Local Government,DCLG,01/11/2016,Current (non AEF) Grants to Local Authorities,Housing & Planning,SHEPWAY DC,,,,235550878,2100268537,,Garden Towns Delivery,CT20 2QY,"750,000.00",Yes
Communities & Local Government,DCLG,01/11/2016,Current (non AEF) Grants to Local Authorities,Housing & Planning,SOUTH OXFORDSHIRE DC,,Large,,228472965,2100268534,,Garden Towns Delivery,OX10 8HQ,"375,000.00",Yes
Communities & Local Government,DCLG,01/11/2016,Current Grants to Non Profit Bodies,Local Government & Public Services,HOLOCAUST MEMORIAL DAY TRUST,Yes,Small,,,2100268680,,Support for UK s annual Holocaust Memorial Day,SE1 7SJ,"490,000.00",Yes
Communities & Local Government,DCLG,01/11/2016,EXP � PURCHASE OF GOODS /SERVICES R & D,Housing & Planning,HAMPSHIRE COUNTY COUNCIL,,,,506774652,5106224193,Research,Aggregate Working Party Technical Secretariat Service,SO23 8UD,"9,964.50",
Communities & Local Government,DCLG,01/11/2016,EXP � PURCHASE OF GOODS /SERVICES R & D,Housing & Planning,HAMPSHIRE COUNTY COUNCIL,,,,506774652,5106224392,Research,Aggregate Working Party Technical Secretariat Service,SO23 8UD,"9,636.00",
Communities & Local Government,DCLG,01/11/2016,EXP � PURCHASE OF GOODS /SERVICES R & D,Housing & Planning,URBAN VISION PARTNERSHIP LTD,,Large,,,5106224349,Research,Aggregate Working Party Technical Secretariat Service,M30 0TE,"3,041.83",
Communities & Local Government,DCLG,01/11/2016,EXP � PURCHASE OF GOODS /SERVICES R & D,Housing & Planning,URBAN VISION PARTNERSHIP LTD,,Large,,,5106224350,Research,Aggregate Working Party Technical Secretariat Service,M30 0TE,"4,460.14",
Communities & Local Government,DCLG,01/11/2016,EXP � PURCHASE OF GOODS /SERVICES R & D,Housing & Planning,URBAN VISION PARTNERSHIP LTD,,Large,,,5106224351,Research,Aggregate Working Party Technical Secretariat Service,M30 0TE,"4,064.52",
Communities & Local Government,DCLG,01/11/2016,EXP � PURCHASE OF GOODS /SERVICES R & D,Housing & Planning,URBAN VISION PARTNERSHIP LTD,,Large,,,5106224393,Research,Aggregate Working Party Technical Secretariat Service,M30 0TE,"2,511.93",
Communities & Local Government,DCLG,01/11/2016,IT - Service Contracts,Housing & Planning,DEXTROUS WEB LTD,,Micro,,211267270,5106224396,IT Managed / Outsourced Services,Hosting 9 months to 31.12.16,N1 7NG,868.8,
Communities & Local Government,DCLG,01/11/2016,IT - Software Maintenance,Finance,MARKLOGIC CORPORATION,,Large,,,5106224381,IT Managed / Outsourced Services,Software Assurance Marklogic DCGMS 16/17,CA 94070,"99,000.00",
Communities & Local Government,DCLG,01/11/2016,Office Supplies,Finance,BANNER BUSINESS SUPPLIES LTD,,Large,,236638362,5106224386,Office Supplies,Stationery for GLD,S9 1XU,667.74,
Communities & Local Government,DCLG,01/11/2016,Office Supplies,Finance,BANNER BUSINESS SUPPLIES LTD,,Large,,236638362,5106224406,Office Supplies,Stationery for GLD,S9 1XU,317.82,
Communities & Local Government,DCLG,01/11/2016,Professional services,Local Government & Public Services,GOVT ACTUARYS DEPARTMENT,,Public Bodies,,217789766,5106224258,Financial,GAD Advice 2016-17,EC4A 1AB,"61,112.59",
Communities & Local Government,DCLG,01/11/2016,Recruitment,Finance,HM REVENUE & CUSTOMS,,Public Bodies,,365117972,5106224364,Business Process Outsourcing Services,Assessment for recruitment campaign,BN12 4XH,"3,286.80",
Communities & Local Government,DCLG,01/11/2016,Services provided by other Govt Orgs,Housing & Planning,VALUATION OFFICE AGENCY,,Public Bodies,,215253886,5106224385,Financial,Valuation Office Agency re Right to Buy Valuations,W1D 5BU,"146,509.47",Yes
Communities & Local Government,DCLG,01/11/2016,Software Licences,Finance,MARKLOGIC CORPORATION,,Large,,,5106224387,Software,Marklogic Software Licences DCGMS App,CA 94070,"450,000.00",
Communities & Local Government,DCLG,01/11/2016,Steady State Service Provision,Finance,ALLPAY LIMITED,,Medium,,738359918,5106224379,Business Process Outsourcing Services,BACS Processing Services,HR1 3SE,792,
Communities & Local Government,DCLG,01/11/2016,Steady State Service Provision,Finance,ALLPAY LIMITED,,Medium,,738359918,5106224383,Business Process Outsourcing Services,BACS Processing Services,HR1 3SE,792,
Communities & Local Government,DCLG,01/11/2016,Steady State Service Provision,Finance,ALLPAY LIMITED,,Medium,,738359918,5106224388,Business Process Outsourcing Services,BACS Processing Services,HR1 3SE,792,
Communities & Local Government,DCLG,01/11/2016,Steady State Service Provision,Finance,ALLPAY LIMITED,,Medium,,738359918,5106224389,Business Process Outsourcing Services,BACS Processing Services,HR1 3SE,756,
Communities & Local Government,DCLG,01/11/2016,Training,Finance,BPP PROFESSIONAL EDUCATION,,,,732726158,5106224382,Development and Training,Civil Service Training,W12 8AA,908.3,
Communities & Local Government,DCLG,01/11/2016,Web Services,"Strategy, Communications and Private Office",DEXTROUS WEB LTD,,Micro,,211267270,5106224380,ICT Services,HO-Website Hosting & Support (x2 Years),N1 7NG,"1,285.44",
Communities & Local Government,DCLG,01/11/2016,Work In Progress Pre-Cert 40373 Spend,Decentralisation and Local Growth,CHESHIRE WEST AND CHESTER COUNCIL,,Large,,,7700000028,,ERDF grant payment,CH1 2NP,"2,843.68",Yes
Communities & Local Government,DCLG,01/11/2016,Work In Progress Pre-Cert 40373 Spend,Decentralisation and Local Growth,CHESHIRE WEST AND CHESTER COUNCIL,,Large,,,7700000029,,ERDF grant payment,CH1 2NP,"15,012.11",Yes
Communities & Local Government,DCLG,01/11/2016,Work In Progress Pre-Cert 40373 Spend,Decentralisation and Local Growth,CHESHIRE WEST AND CHESTER COUNCIL,,Large,,,7700000030,,ERDF grant payment,CH1 2NP,"13,089.77",Yes
Communities & Local Government,DCLG,01/11/2016,Work In Progress Pre-Cert 40373 Spend,Decentralisation and Local Growth,CHESHIRE WEST AND CHESTER COUNCIL,,Large,,,7700000031,,ERDF grant payment,CH1 2NP,"15,919.19",Yes
Communities & Local Government,DCLG,01/11/2016,Work In Progress Pre-Cert 40373 Spend,Decentralisation and Local Growth,NORTH TYNESIDE COUNCIL,,Large,,,7700000026,,ERDF grant payment,NE27 0BY,"11,491.24",Yes
Communities & Local Government,DCLG,01/11/2016,Work In Progress Pre-Cert 40373 Spend,Decentralisation and Local Growth,NORTHAMPTON ENTERPRISE PARTNERSHIP,,,,,7700000025,,ERDF grant payment,NN1 5DQ,"38,741.50",Yes
Communities & Local Government,DCLG,01/11/2016,Work In Progress Pre-Cert 40373 Spend,Decentralisation and Local Growth,NORTHUMBERLAND BUSINESS SERVICE LTD,,Small,,,7700000027,,ERDF grant payment,NE63 8AP,"114,267.26",Yes
Communities & Local Government,DCLG,02/11/2016,Current (non AEF) Grants to Local Authorities,Local Government & Public Services,CUMBRIA COUNTY CNCL,,,,211316542,2600062004,,Cumbria County Council Bellwin Scheme payments,CA3 8NA,"2,185,838.00",Yes
Communities & Local Government,DCLG,02/11/2016,Electronic Data Storage,Finance,TNT UK LIMITED,,Large,,,5106224417,Warehousing and Storage,Visions electronic storage,BL10 9GR,"4,192.44",
Communities & Local Government,DCLG,02/11/2016,IT - Service Contracts,Finance,FUJITSU SERVICES LTD,,Large,,423375062,5106224411,IT Managed / Outsourced Services,NFR0322 old electronic data report,WA3 6GD,"3,877.50",
Communities & Local Government,DCLG,02/11/2016,IT - Service Contracts,Finance,FUJITSU SERVICES LTD,,Large,,423375062,5106224412,IT Managed / Outsourced Services,NRF0056 LiveLink Upgrade Project,WA3 6GD,"4,303.49",
Communities & Local Government,DCLG,02/11/2016,Professional services,Local Government & Public Services,DEPT FOR WORK & PENSIONS,,Public Bodies,,233591598,5106224377,Technical Services,DWP Data Linking,FY5 3TA,"5,734.80",
Communities & Local Government,DCLG,02/11/2016,Training,Finance,0LIVERPOOL JOHN MOORES UNIVERSITY,,Large,,210372860,5106224317,Development and Training,Civil Service Training,L3 2AJ,"2,875.00",
Communities & Local Government,DCLG,02/11/2016,Training,Finance,LEXXION PUBLISHER,,,,,5106224416,Development and Training,Civil Service Training,1040,"1,187.89",
Communities & Local Government,DCLG,03/11/2016,Current (non AEF) Grants to Local Authorities,Housing & Planning,WILTSHIRE COUNTY COUNCIL,,,,211341656,2300002618,,Recovery of unused funds,BA14 4DS,"-40,000.00",Yes
Communities & Local Government,DCLG,03/11/2016,Current (non AEF) Grants to Local Authorities,Local Government & Public Services,NORTHUMBERLAND COUNTY COUNCIL,,,,210308905,2600062005,,Northumberland CC Bellwin payments,NE61 2EF,"1,082,555.00",Yes
Communities & Local Government,DCLG,03/11/2016,Current Grants to Non Profit Bodies,Decentralisation and Local Growth,ASSOCIATION TOWN CENTRE MANAGEMENT,,Small,,348626995,2100268722,,Funding for Great British High Street Campaign,SE1 0EH,"10,200.00",Yes
Communities & Local Government,DCLG,03/11/2016,Current Grants to Non Profit Bodies,Finance,SERVICES FOR EDUCATION LIMITED,,Large,,,2100268726,,Lest we Forget ' Mass Children's Choir concert Grant Funding,B1 2RA,"16,400.00",Yes
Communities & Local Government,DCLG,03/11/2016,EXP � PURCHASE OF GOODS /SERVICES R & D,Housing & Planning,BUILDING RESEARCH ESTABLISHMENT,,Large,,896495033,5106224426,Research,Half Yearly Report  4,WD25 9XX,"16,388.40",
Communities & Local Government,DCLG,03/11/2016,EXP � PURCHASE OF GOODS /SERVICES R & D,Housing & Planning,BUILDING RESEARCH ESTABLISHMENT,,Large,,896495033,5106224428,Research,Contract Extension 2016/17,WD25 9XX,"21,078.00",
Communities & Local Government,DCLG,03/11/2016,EXP � PURCHASE OF GOODS /SERVICES R & D,Housing & Planning,BUILDING RESEARCH ESTABLISHMENT,,Large,,896495033,5106224441,Research,Oct 2016 Site Visit,WD25 9XX,"5,733.60",
Communities & Local Government,DCLG,03/11/2016,EXP � PURCHASE OF GOODS /SERVICES R & D,Housing & Planning,BUILDING RESEARCH ESTABLISHMENT,,Large,,896495033,5106224441,Research,Steering Group (Sep 2016),WD25 9XX,"1,542.00",
Communities & Local Government,DCLG,03/11/2016,EXP � PURCHASE OF GOODS /SERVICES R & D,Housing & Planning,BUILDING RESEARCH ESTABLISHMENT,,Large,,896495033,5106224442,Research,Annual Report - Year 2,WD25 9XX,"5,844.00",
Communities & Local Government,DCLG,03/11/2016,EXP � PURCHASE OF GOODS /SERVICES R & D,Housing & Planning,BUILDING RESEARCH ESTABLISHMENT,,Large,,896495033,5106224442,Research,Termite monitoring in Taunton Devon,WD25 9XX,271.2,
Communities & Local Government,DCLG,03/11/2016,Mobile phone costs,Finance,ORANGE (AIRTIME/LINE RENTAL),,Large,,210707540,2100268728,Telecoms,Monthly consolidated telephone costs - Oct 16,S98 1DX,399.54,
Communities & Local Government,DCLG,03/11/2016,Printing,"Strategy, Communications and Private Office",WILLIAMS LEA LIMITED,,Large,,393456413,5106224436,Printing Services,Year 3 Print services (0% VAT),NR3 1PD,806.68,
Communities & Local Government,DCLG,03/11/2016,Steady State Service Provision,Finance,CGI IT UK LIMITED,,Large,,239881618,5106224437,Business Process Outsourcing Services,Payroll Services & Licences 15/17,CF31 9AP,242.12,
Communities & Local Government,DCLG,03/11/2016,Steady State Service Provision,Finance,CGI IT UK LIMITED,,Large,,239881618,5106224438,Business Process Outsourcing Services,Payroll Services & Licences 15/17,CF31 9AP,"7,232.54",
Communities & Local Government,DCLG,03/11/2016,Training,Local Government & Public Services,KING'S FUND,,Large,,,5106224444,Development and Training,Civil Service Training,W1G 0AN,225,
Communities & Local Government,DCLG,03/11/2016,Training,Local Government & Public Services,SOLOGICAL SOLUTIONS,,Micro,,215557790,5106224429,Learning and Development Materials,Software Licence renewal,NG12 2NJ,"5,450.63",
Communities & Local Government,DCLG,03/11/2016,Training,Local Government & Public Services,UNIVERSITY COLLEGE LONDON,,Large,,225410919,5106224430,Development and Training,Civil Service Training,WC1E 6BT,"2,385.00",
Communities & Local Government,DCLG,03/11/2016,Web Services,"Strategy, Communications and Private Office",PULSION TECHNOLOGY LTD,,Small,,,5106224435,ICT Services,HO - Web Hosting & support - Year 1,G4 9XA,"2,677.18",
Communities & Local Government,DCLG,03/11/2016,Work In Progress Pre-Cert 40373 Spend,Decentralisation and Local Growth,CENTRE FOR PROCESS INNOVATION LTD,,Large,,,7700000033,,ERDF grant payment,TS10 4RF,"5,276.38",Yes
Communities & Local Government,DCLG,03/11/2016,Work In Progress Pre-Cert 40373 Spend,Decentralisation and Local Growth,NORTHUMBERLAND BUSINESS SERVICE LTD,,Small,,,7700000034,,ERDF grant payment,NE63 8AP,"62,473.20",Yes
Communities & Local Government,DCLG,03/11/2016,Work In Progress Pre-Cert 40467 Spend,Decentralisation and Local Growth,CENTRE FOR PROCESS INNOVATION LTD,,Large,,,7700000032,,ERDF grant payment,TS10 4RF,"126,256.50",Yes
Communities & Local Government,DCLG,03/11/2016,Work In Progress Pre-Cert 40467 Spend,Decentralisation and Local Growth,NEW CAPITAL KNOWSLEY LIMITED,,Micro,,,2300002654,,ERDF grant recovery,WA7 4QX,"-794,740.84",Yes
Communities & Local Government,DCLG,04/11/2016,Agency Staff,Decentralisation and Local Growth,CAPITA BUS. SERV. LTD (CON LAB),,Large,,,5106224454,Contingent Labour,Interim Manager,DL1 9HB,"1,413.55",
Communities & Local Government,DCLG,04/11/2016,Agency Staff,Decentralisation and Local Growth,CAPITA BUS. SERV. LTD (CON LAB),,Large,,,5106224463,Contingent Labour,Interim Manager,DL1 9HB,606,
Communities & Local Government,DCLG,04/11/2016,Agency Staff,Housing & Planning,CAPITA BUS. SERV. LTD (CON LAB),,Large,,,5106224450,Contingent Labour,Interim Manager,DL1 9HB,"2,000.16",
Communities & Local Government,DCLG,04/11/2016,Agency Staff,Local Government & Public Services,CAPITA BUS. SERV. LTD (CON LAB),,Large,,,5106224455,Contingent Labour,Interim Manager,DL1 9HB,"1,816.78",
Communities & Local Government,DCLG,04/11/2016,Catering,Housing & Planning,ROMA ESPRESSO BAR,,Micro,,,5106224464,Business Support,Estate Regen Regional Workshop,PL4 0EG,208,
Communities & Local Government,DCLG,04/11/2016,Current (non AEF) Grants to Local Authorities,Finance, CO DURHAM & DARLINGTON FIRE RESCUE,,Public Bodies,,211684266,2100268763,,Regional Control Centre,DH1 1TW,"75,725.67",Yes
Communities & Local Government,DCLG,04/11/2016,Current (non AEF) Grants to Local Authorities,Finance,GREATER LONDON AUTHORITY,,Large,,225353416,2100268762,,Regional Control Centre,SE10 1AP,"160,743.58",Yes
Communities & Local Government,DCLG,04/11/2016,Current (non AEF) Grants to Local Authorities,Finance,GREATER MANCHESTER FIRE & RESCUE,,Public Bodies,,424873172,2100268761,,Regional Control Centre,M27 8US,"74,517.33",Yes
Communities & Local Government,DCLG,04/11/2016,EXP � PURCHASE OF GOODS /SERVICES R & D,Housing & Planning,BUILDING RESEARCH ESTABLISHMENT,,Large,,896495033,5106224456,Research,Part 1: Fire Incident Investigations,WD25 9XX,"17,710.00",
Communities & Local Government,DCLG,04/11/2016,EXP � PURCHASE OF GOODS /SERVICES R & D,Housing & Planning,CENTRAL BEDFORDSHIRE COUNCIL,,Large,,,5106224433,Research,Aggregate Working Party Technical Secretariat Service,SG17 5TQ,812.5,
Communities & Local Government,DCLG,04/11/2016,EXP � PURCHASE OF GOODS /SERVICES R & D,Housing & Planning,INNOVATE AT PRP LTD,,Large,,,5106224460,Research,Research on moisture risks in building,KT7 0QJ,"17,658.00",
Communities & Local Government,DCLG,04/11/2016,IT - Service Contracts,Finance,BLAZIE LTD,,Small,,,5106224457,IT Managed / Outsourced Services,JAWS Scripting day 21 October 2016,HA4 9NA,960,
Communities & Local Government,DCLG,04/11/2016,IT - Service Contracts,Local Government & Public Services,CAPITA BUS. SERV. LTD (CON LAB),,Large,,,5106224451,Contingent Labour,Specialist  Expertise,DL1 9HB,"4,276.44",
Communities & Local Government,DCLG,04/11/2016,IT - Service Contracts,Local Government & Public Services,GROUNDWORK UK,Yes,,,739193758,5106224452,IT Managed / Outsourced Services,Lot 2 Community Rights programme Grant,B1 2RR,"10,245.92",
Communities & Local Government,DCLG,04/11/2016,IT - Service Contracts,Local Government & Public Services,SWIRRL IT LIMITED,,Micro,,211074993,5106224458,IT Managed / Outsourced Services,Open Data Communities development work,FK7 7WT,"9,499.63",
Communities & Local Government,DCLG,04/11/2016,Physical Storage,Finance,IRON MOUNTAIN (UK) LIMITED,,Large,,501338354,5106224469,Warehousing and Storage,Off-site Storage Tapes 2016,EH54 7DF,436.57,
Communities & Local Government,DCLG,04/11/2016,Steady State Service Provision,Housing & Planning,MOVE WITH US,,Large,,,5106224468,Business Process Outsourcing Services,Right to buy agents service 16/17,PE27 4AA,"11,682.98",
Communities & Local Government,DCLG,04/11/2016,Training,Finance,MYCSP LIMITED,,Large,,217279092,5106224448,Development and Training,Civil Service Training,SK3 0XN,"1,700.00",
Communities & Local Government,DCLG,04/11/2016,Travel and Subsistence Account,"Strategy, Communications and Private Office",DIAL A CAB,,Medium,,225338235,2100268756,Business Travel,Official Travel & Subsistence,N1 6AH,157.53,
Communities & Local Government,DCLG,04/11/2016,Travel and Subsistence Account,"Strategy, Communications and Private Office",DIAL A CAB,,Medium,,225338235,2100268756,Business Travel,Official Travel & Subsistence,N1 6AH,250.2,
Communities & Local Government,DCLG,04/11/2016,Travel and Subsistence Account,"Strategy, Communications and Private Office",DIAL A CAB,,Medium,,225338235,2100268756,Business Travel,Official Travel & Subsistence,N1 6AH,106.19,
Communities & Local Government,DCLG,07/11/2016,Grant in Aid to NDPBs (non budget),Finance,COMMISSION LOCAL ADMINISTRATION,,,,215271508,2100268727,,DCLG DEL Budget Contribution for November 2016,SW1P 4QP,"700,000.00",Yes
Communities & Local Government,DCLG,07/11/2016,Grant in Aid to NDPBs (non budget),Housing & Planning,EBBSFLEET DEVELOPMENT CORPORATION,,,,,2100268725,,DCLG DEL Budget Contribution for November 2016,DA11 8DB,"3,300,000.00",Yes
Communities & Local Government,DCLG,07/11/2016,Office Supplies,"Strategy, Communications and Private Office",BANNER BUSINESS SUPPLIES LTD,,Large,,236638362,5106224446,Office Supplies,DELWEEKLY A4 Refill Pad Headbound Punche,S9 1XU,27.72,
Communities & Local Government,DCLG,07/11/2016,Office Supplies,"Strategy, Communications and Private Office",BANNER BUSINESS SUPPLIES LTD,,Large,,236638362,5106224446,Office Supplies,DELWEEKLY BANNER MW TAB FOLDER 343X229X1,S9 1XU,16.88,
Communities & Local Government,DCLG,07/11/2016,Office Supplies,"Strategy, Communications and Private Office",BANNER BUSINESS SUPPLIES LTD,,Large,,236638362,5106224446,Office Supplies,DELWEEKLY BANNER SMALL LIPPED PAPERCLIP,S9 1XU,1.8,
Communities & Local Government,DCLG,07/11/2016,Office Supplies,"Strategy, Communications and Private Office",BANNER BUSINESS SUPPLIES LTD,,Large,,236638362,5106224446,Office Supplies,DELWEEKLY Banner Bar Tag 25mm Red,S9 1XU,54,
Communities & Local Government,DCLG,07/11/2016,Office Supplies,"Strategy, Communications and Private Office",BANNER BUSINESS SUPPLIES LTD,,Large,,236638362,5106224446,Office Supplies,DELWEEKLY Banner Fine Ballpoint Pen Blue,S9 1XU,1.61,
Communities & Local Government,DCLG,07/11/2016,Office Supplies,"Strategy, Communications and Private Office",BANNER BUSINESS SUPPLIES LTD,,Large,,236638362,5106224446,Office Supplies,DELWEEKLY Banner MCol Mylar Tab Divider,S9 1XU,3.62,
Communities & Local Government,DCLG,07/11/2016,Office Supplies,"Strategy, Communications and Private Office",BANNER BUSINESS SUPPLIES LTD,,Large,,236638362,5106224446,Office Supplies,DELWEEKLY Banner Rubber Grip Gel Ink Pen,S9 1XU,21.84,
Communities & Local Government,DCLG,07/11/2016,Office Supplies,"Strategy, Communications and Private Office",BANNER BUSINESS SUPPLIES LTD,,Large,,236638362,5106224446,Office Supplies,DELWEEKLY Easy Tear Adhesive Tape 24mmx6,S9 1XU,9.79,
Communities & Local Government,DCLG,07/11/2016,Office Supplies,"Strategy, Communications and Private Office",BANNER BUSINESS SUPPLIES LTD,,Large,,236638362,5106224446,Office Supplies,DELWEEKLY GRAFFICO A7 POLYPROP NOTEBOOK,S9 1XU,1.01,
Communities & Local Government,DCLG,07/11/2016,Office Supplies,"Strategy, Communications and Private Office",BANNER BUSINESS SUPPLIES LTD,,Large,,236638362,5106224446,Office Supplies,DELWEEKLY Graffico A4 Polypropylene Note,S9 1XU,38.16,
Communities & Local Government,DCLG,07/11/2016,Office Supplies,"Strategy, Communications and Private Office",BANNER BUSINESS SUPPLIES LTD,,Large,,236638362,5106224446,Office Supplies,DELWEEKLY Graffico A5 Polypropylene Note,S9 1XU,20.88,
Communities & Local Government,DCLG,07/11/2016,Office Supplies,"Strategy, Communications and Private Office",BANNER BUSINESS SUPPLIES LTD,,Large,,236638362,5106224446,Office Supplies,DELWEEKLY Graffico A6 Polypropylene Note,S9 1XU,1.22,
Communities & Local Government,DCLG,07/11/2016,Office Supplies,"Strategy, Communications and Private Office",BANNER BUSINESS SUPPLIES LTD,,Large,,236638362,5106224446,Office Supplies,DELWEEKLY HIMARK DRYWIPE BULLET TIP MARK,S9 1XU,46.08,
Communities & Local Government,DCLG,07/11/2016,Office Supplies,"Strategy, Communications and Private Office",BANNER BUSINESS SUPPLIES LTD,,Large,,236638362,5106224446,Office Supplies,DELWEEKLY HIMARK HIGHLIGHTER BLUE,S9 1XU,12.96,
Communities & Local Government,DCLG,07/11/2016,Office Supplies,"Strategy, Communications and Private Office",BANNER BUSINESS SUPPLIES LTD,,Large,,236638362,5106224446,Office Supplies,DELWEEKLY HIMARK HIGHLIGHTER GREEN,S9 1XU,12.96,
Communities & Local Government,DCLG,07/11/2016,Office Supplies,"Strategy, Communications and Private Office",BANNER BUSINESS SUPPLIES LTD,,Large,,236638362,5106224446,Office Supplies,DELWEEKLY HIMARK HIGHLIGHTER PINK,S9 1XU,12.96,
Communities & Local Government,DCLG,07/11/2016,Office Supplies,"Strategy, Communications and Private Office",BANNER BUSINESS SUPPLIES LTD,,Large,,236638362,5106224446,Office Supplies,DELWEEKLY HIMARK HIGHLIGHTER YELLOW,S9 1XU,12.96,
Communities & Local Government,DCLG,07/11/2016,Office Supplies,"Strategy, Communications and Private Office",BANNER BUSINESS SUPPLIES LTD,,Large,,236638362,5106224446,Office Supplies,DELWEEKLY Hainenko Ikon OHP Non-Permanen,S9 1XU,38.64,
Communities & Local Government,DCLG,07/11/2016,Office Supplies,"Strategy, Communications and Private Office",BANNER BUSINESS SUPPLIES LTD,,Large,,236638362,5106224446,Office Supplies,DELWEEKLY Hainenko Ikon OHP Permanent Pe,S9 1XU,72.72,
Communities & Local Government,DCLG,07/11/2016,Office Supplies,"Strategy, Communications and Private Office",BANNER BUSINESS SUPPLIES LTD,,Large,,236638362,5106224446,Office Supplies,DELWEEKLY Jotta Pens Black Ink,S9 1XU,2.94,
Communities & Local Government,DCLG,07/11/2016,Office Supplies,"Strategy, Communications and Private Office",BANNER BUSINESS SUPPLIES LTD,,Large,,236638362,5106224446,Office Supplies,DELWEEKLY Q Connect Quick Tabs 20X50 Neo,S9 1XU,84,
Communities & Local Government,DCLG,07/11/2016,Office Supplies,"Strategy, Communications and Private Office",BANNER BUSINESS SUPPLIES LTD,,Large,,236638362,5106224446,Office Supplies,DELWEEKLY Q-Connect A4 1-50 Mylar Index,S9 1XU,13.21,
Communities & Local Government,DCLG,07/11/2016,Office Supplies,"Strategy, Communications and Private Office",BANNER BUSINESS SUPPLIES LTD,,Large,,236638362,5106224446,Office Supplies,DELWEEKLY SELF-STICK NOTES 76 X 127mm PA,S9 1XU,38.89,
Communities & Local Government,DCLG,07/11/2016,Office Supplies,"Strategy, Communications and Private Office",BANNER BUSINESS SUPPLIES LTD,,Large,,236638362,5106224446,Office Supplies,DELWEEKLY Sharpie China Marker Black,S9 1XU,7.9,
Communities & Local Government,DCLG,07/11/2016,Repayments of LA Grant (Cap),Decentralisation and Local Growth,BATH & NE SOMERSET DC,,Large,,214502499,2300002634,,RGF grant recovery,BA1 5AW,"-1,655,000.00",
Communities & Local Government,DCLG,07/11/2016,Repayments of LA Grant (Cap),Decentralisation and Local Growth,PORTSMOUTH CITY COUNCIL,,Public Bodies,,211183082,2300002633,,RGF grant recovery,PO1 2AR,"-118,019.00",
Communities & Local Government,DCLG,07/11/2016,Repayments of LA Grant (Cap),Decentralisation and Local Growth,PORTSMOUTH CITY COUNCIL,,Public Bodies,,211183082,2300002633,,RGF grant recovery,PO1 2AR,"-28,000.00",
Communities & Local Government,DCLG,07/11/2016,Repayments of LA Grant (Curr),Decentralisation and Local Growth,PORTSMOUTH CITY COUNCIL,,Public Bodies,,211183082,2300002560,,RGF grant recovery,PO1 2AR,"-130,822.00",
Communities & Local Government,DCLG,07/11/2016,Work In Progress Pre-Cert 40373 Spend,Decentralisation and Local Growth,BRITISH FASHION COUNCIL,,,,,7700000037,,ERDF grant payment,WC2R 1LA,"836,616.08",Yes
Communities & Local Government,DCLG,07/11/2016,Work In Progress Pre-Cert 40373 Spend,Decentralisation and Local Growth,SHEFFIELD  CC,,,,,2300002614,,ERDF grant recovery,S1 2SH,"-279,513.09",Yes
Communities & Local Government,DCLG,08/11/2016,Agency Staff,Finance,BROOK STREET UK LTD,,Large,,364940028,5106224472,Contingent Labour,Support worker for staff interim measure,AL1 4JB,431.17,
Communities & Local Government,DCLG,08/11/2016,Agency Staff,Finance,BROOK STREET UK LTD,,Large,,364940028,5106224473,Contingent Labour,Interim Admin support,AL1 4JB,513.4,
Communities & Local Government,DCLG,08/11/2016,Agency Staff,Housing & Planning,BROOK STREET UK LTD,,Large,,364940028,5106224470,Contingent Labour,Temporary Executive Officer -3 months,AL1 4JB,501.78,
Communities & Local Government,DCLG,08/11/2016,IT - Service Contracts,Finance,FUJITSU SERVICES LTD,,Large,,423375062,5106224491,IT Managed / Outsourced Services,Active directory cleanup,WA3 6GD,"12,994.08",
Communities & Local Government,DCLG,08/11/2016,IT - Service Contracts,Finance,FUJITSU SERVICES LTD,,Large,,423375062,5106224492,IT Managed / Outsourced Services,Google chrome upgrade,WA3 6GD,"8,123.56",
Communities & Local Government,DCLG,08/11/2016,IT - Software Maintenance,Finance,MARKLOGIC CORPORATION,,Large,,,5106224471,IT Managed / Outsourced Services,BI Reporting Module,CA 94070,"12,018.75",
Communities & Local Government,DCLG,08/11/2016,Legal Fees,Housing & Planning,Employee Expenses,,,,,2100268821,Legal,Legal Advice,,"1,025.00",
Communities & Local Government,DCLG,08/11/2016,Online Database Information Retrieval,Finance,PROQUEST INFORMATION & LEARNING,,Large,,219284999,5106224506,ICT Services,European Newsstream,CB5 8SW,"3,940.00",
Communities & Local Government,DCLG,08/11/2016,Publicity,"Strategy, Communications and Private Office",PRESS ASSOCIATION,,Large,,217191704,5106224480,Advertising,PRESS ASSOCIATION (PA) 2014-17,DN14 7YH,"1,339.66",
Communities & Local Government,DCLG,08/11/2016,Repayments of LA Grant (Cap),Decentralisation and Local Growth,WORCESTERSHIRE COUNTY COUNCIL,,Public Bodies,,230359643,2300002463,,RGF grant recovery,WR5 2NP,"-215,156.00",
Communities & Local Government,DCLG,08/11/2016,Steady State Service Provision,Housing & Planning,SINCLAIR KNIGHT MERZ (EUROPE) LTD,,,,,5106224484,Business Process Outsourcing Services,Spot Audits,M5 3NN,"9,484.14",
Communities & Local Government,DCLG,08/11/2016,Training,Finance,SAP (UK) LTD,,Large,,396951675,5106224495,Development and Training,Civil Service Training,TW14 8HD,"1,710.00",
Communities & Local Government,DCLG,08/11/2016,Training,Finance,SCT CONSULTANTS LTD,,Micro,,,5106224431,Development and Training,Civil Service Training,W8 5RL,"9,750.00",
Communities & Local Government,DCLG,08/11/2016,Work In Progress Pre-Cert 40373 Spend,Decentralisation and Local Growth,NORTH EAST COMBINED AUTHORITY,,,,,7700000038,,ERDF grant payment,NE27 0BY,"39,204.90",Yes
Communities & Local Government,DCLG,08/11/2016,Work In Progress Pre-Cert 40373 Spend,Decentralisation and Local Growth,NORTH EAST COMBINED AUTHORITY,,,,,7700000039,,ERDF grant payment,NE27 0BY,"26,868.42",Yes
Communities & Local Government,DCLG,08/11/2016,Work In Progress Pre-Cert 40373 Spend,Decentralisation and Local Growth,TEES VALLEY COMBINED AUTHORITY,,,,,7700000040,,ERDF grant payment,TS17 6QY,"16,883.74",Yes
Communities & Local Government,DCLG,09/11/2016,Current (non AEF) Grants to Local Authorities,Local Government & Public Services,BARKING & DAGENHAM LB (HSG),,,,217142293,5000350530,,Expanded Troubled Families Programme Payment,RM10 7BY,"188,800.00",Yes
Communities & Local Government,DCLG,09/11/2016,Current (non AEF) Grants to Local Authorities,Local Government & Public Services,BARNSLEY MBC,,,,211178595,5000350564,,Expanded Troubled Families Programme Payment,S70 2AQ,"46,400.00",Yes
Communities & Local Government,DCLG,09/11/2016,Current (non AEF) Grants to Local Authorities,Local Government & Public Services,BATH & NE SOMERSET DC (HSG),,,,214502499,5000350531,,Expanded Troubled Families Programme Payment,BA1 5AW,"37,600.00",Yes
Communities & Local Government,DCLG,09/11/2016,Current (non AEF) Grants to Local Authorities,Local Government & Public Services,BEDFORD UNITARY AUTHORITY,,,,225682160,5000350744,,Expanded Troubled Families Programme Payment,MK40 1SJ,"27,200.00",Yes
Communities & Local Government,DCLG,09/11/2016,Current (non AEF) Grants to Local Authorities,Local Government & Public Services,BEXLEY LB (HSG),,,,,5000350532,,Expanded Troubled Families Programme Payment,DA8 1TL,"16,800.00",Yes
Communities & Local Government,DCLG,09/11/2016,Current (non AEF) Grants to Local Authorities,Local Government & Public Services,BIRMINGHAM CITY CNCL,,,,213780559,5000350566,,Expanded Troubled Families Programme Payment,B2 2AJ,"196,000.00",Yes
Communities & Local Government,DCLG,09/11/2016,Current (non AEF) Grants to Local Authorities,Local Government & Public Services,BLACKBURN WITH DARWEN BC,,,,,5000350567,,Expanded Troubled Families Programme Payment,BB1 7DY,"39,200.00",Yes
Communities & Local Government,DCLG,09/11/2016,Current (non AEF) Grants to Local Authorities,Local Government & Public Services,BLACKPOOL BC,,,,,5000350569,,Expanded Troubled Families Programme Payment,FY1 1NA,"69,600.00",Yes
Communities & Local Government,DCLG,09/11/2016,Current (non AEF) Grants to Local Authorities,Local Government & Public Services,BRACKNELL FOREST DC,,,,236184867,5000350571,,Expanded Troubled Families Programme Payment,RG12 1AQ,"35,200.00",Yes
Communities & Local Government,DCLG,09/11/2016,Current (non AEF) Grants to Local Authorities,Local Government & Public Services,BRADFORD MBC,,,,,5000350572,,Expanded Troubled Families Programme Payment,BD1 1HX,"118,400.00",Yes
Communities & Local Government,DCLG,09/11/2016,Current (non AEF) Grants to Local Authorities,Local Government & Public Services,BRENT LB (HSG),,,,,5000350533,,Expanded Troubled Families Programme Payment,HA9 9HD,"184,000.00",Yes
Communities & Local Government,DCLG,09/11/2016,Current (non AEF) Grants to Local Authorities,Local Government & Public Services,BRIGHTON & HOVE CITY COUNCIL,,Large,,228455218,5000350574,,Expanded Troubled Families Programme Payment,BN3 2LS,"61,600.00",Yes
Communities & Local Government,DCLG,09/11/2016,Current (non AEF) Grants to Local Authorities,Local Government & Public Services,BRISTOL CITY CNCL (HSG),,,,211103882,5000350534,,Expanded Troubled Families Programme Payment,BS99 7BL,"221,600.00",Yes
Communities & Local Government,DCLG,09/11/2016,Current (non AEF) Grants to Local Authorities,Local Government & Public Services,BROMLEY LB,,,,211331954,5000350576,,Expanded Troubled Families Programme Payment,BR1 3UH,"58,400.00",Yes
Communities & Local Government,DCLG,09/11/2016,Current (non AEF) Grants to Local Authorities,Local Government & Public Services,BUCKINGHAMSHIRE CC,,,,293750923,5000350577,,Expanded Troubled Families Programme Payment,HP20 1UD,"141,600.00",Yes
Communities & Local Government,DCLG,09/11/2016,Current (non AEF) Grants to Local Authorities,Local Government & Public Services,CALDERDALE MBC,,,,,5000350579,,Expanded Troubled Families Programme Payment,HX1 1YP,"76,000.00",Yes
Communities & Local Government,DCLG,09/11/2016,Current (non AEF) Grants to Local Authorities,Local Government & Public Services,CAMBRIDGESHIRE COUNTY CNCL,,,,219047347,5000350580,,Expanded Troubled Families Programme Payment,CB3 0AP,"20,800.00",Yes
Communities & Local Government,DCLG,09/11/2016,Current (non AEF) Grants to Local Authorities,Local Government & Public Services,CAMDEN LB,,,,211651836,5000350582,,Expanded Troubled Families Programme Payment,WC1H 8NG,"60,800.00",Yes
Communities & Local Government,DCLG,09/11/2016,Current (non AEF) Grants to Local Authorities,Local Government & Public Services,CENTRAL BEDFORDSHIRE COUNCIL,,,,232624882,5000350739,,Expanded Troubled Families Programme Payment,SG17 5TQ,"16,800.00",Yes
Communities & Local Government,DCLG,09/11/2016,Current (non AEF) Grants to Local Authorities,Local Government & Public Services,CHESHIRE EAST COUNCIL,,Large,,,5000350741,,Expanded Troubled Families Programme Payment,CW11 1HZ,"56,800.00",Yes
Communities & Local Government,DCLG,09/11/2016,Current (non AEF) Grants to Local Authorities,Local Government & Public Services,CHESHIRE WEST & CHESTER UA,,Large,,215584383,5000350742,,Expanded Troubled Families Programme Payment,CH1 2NP,"132,800.00",Yes
Communities & Local Government,DCLG,09/11/2016,Current (non AEF) Grants to Local Authorities,Local Government & Public Services,CITY OF SUNDERLAND (HSG),,,,215599312,5000350535,,Expanded Troubled Families Programme Payment,SR2 7DN,"20,000.00",Yes
Communities & Local Government,DCLG,09/11/2016,Current (non AEF) Grants to Local Authorities,Local Government & Public Services,CITY OF WAKEFIELD MDC,,,,,5000350712,,Expanded Troubled Families Programme Payment,WF1 2QW,"61,600.00",Yes
Communities & Local Government,DCLG,09/11/2016,Current (non AEF) Grants to Local Authorities,Local Government & Public Services,CORNWALL UNITARY AUTHORITY,,,,211334404,5000350747,,Expanded Troubled Families Programme Payment,TR1 3AY,"89,600.00",Yes
Communities & Local Government,DCLG,09/11/2016,Current (non AEF) Grants to Local Authorities,Local Government & Public Services,COVENTRY CITY CNCL,,,,210384802,5000350583,,Expanded Troubled Families Programme Payment,CV1 2QL,"191,200.00",Yes
Communities & Local Government,DCLG,09/11/2016,Current (non AEF) Grants to Local Authorities,Local Government & Public Services,CROYDON LB,,,,212419973,5000350585,,Expanded Troubled Families Programme Payment,CR9 3JS,"136,800.00",Yes
Communities & Local Government,DCLG,09/11/2016,Current (non AEF) Grants to Local Authorities,Local Government & Public Services,CUMBRIA COUNTY CNCL,,,,211316542,5000350588,,Expanded Troubled Families Programme Payment,CA3 8NA,"14,400.00",Yes
Communities & Local Government,DCLG,09/11/2016,Current (non AEF) Grants to Local Authorities,Local Government & Public Services,DARLINGTON BC,,,,,5000350591,,Expanded Troubled Families Programme Payment,TS19 1JA,"20,800.00",Yes
Communities & Local Government,DCLG,09/11/2016,Current (non AEF) Grants to Local Authorities,Local Government & Public Services,DERBY CITY CNCL,,,,229641378,5000350593,,Expanded Troubled Families Programme Payment,DE1 2FS,"30,400.00",Yes
Communities & Local Government,DCLG,09/11/2016,Current (non AEF) Grants to Local Authorities,Local Government & Public Services,DERBYSHIRE COUNTYCOUNCIL,,,,232152967,5000350595,,Expanded Troubled Families Programme Payment,DE4 3AG,"108,000.00",Yes
Communities & Local Government,DCLG,09/11/2016,Current (non AEF) Grants to Local Authorities,Local Government & Public Services,DEVON COUNTY CNCL,,,,213754018,5000350597,,Expanded Troubled Families Programme Payment,EX2 4QJ,"62,400.00",Yes
Communities & Local Government,DCLG,09/11/2016,Current (non AEF) Grants to Local Authorities,Local Government & Public Services,DONCASTER MBC,,,,,5000350599,,Expanded Troubled Families Programme Payment,DN1 3QA,"19,200.00",Yes
Communities & Local Government,DCLG,09/11/2016,Current (non AEF) Grants to Local Authorities,Local Government & Public Services,DORSET COUNTY CNCL,,,,225431279,5000350601,,Expanded Troubled Families Programme Payment,DT1 1XJ,"14,400.00",Yes
Communities & Local Government,DCLG,09/11/2016,Current (non AEF) Grants to Local Authorities,Local Government & Public Services,DUDLEY MBC,,,,,5000350602,,Expanded Troubled Families Programme Payment,DY1 1HF,"13,600.00",Yes
Communities & Local Government,DCLG,09/11/2016,Current (non AEF) Grants to Local Authorities,Local Government & Public Services,DURHAM COUNTY COUNCIL,,,,224004882,5000350748,,Expanded Troubled Families Programme Payment,DH1 5UE,"148,800.00",Yes
Communities & Local Government,DCLG,09/11/2016,Current (non AEF) Grants to Local Authorities,Local Government & Public Services,EALING LB,,,,,5000350604,,Expanded Troubled Families Programme Payment,W5 2HL,"120,800.00",Yes
Communities & Local Government,DCLG,09/11/2016,Current (non AEF) Grants to Local Authorities,Local Government & Public Services,EAST RIDING OF YORKS (HSG),,,,423159987,5000350536,,Expanded Troubled Families Programme Payment,HU17 9BA,"80,800.00",Yes
Communities & Local Government,DCLG,09/11/2016,Current (non AEF) Grants to Local Authorities,Local Government & Public Services,EAST SUSSEX COUNTY CNCL,,,,,5000350606,,Expanded Troubled Families Programme Payment,BN7 1SF,"215,200.00",Yes
Communities & Local Government,DCLG,09/11/2016,Current (non AEF) Grants to Local Authorities,Local Government & Public Services,ENFIELD LB,,,,,5000350607,,Expanded Troubled Families Programme Payment,EN1 3XF,"20,000.00",Yes
Communities & Local Government,DCLG,09/11/2016,Current (non AEF) Grants to Local Authorities,Local Government & Public Services,GATESHEAD COUNCIL,,,,216116041,5000350609,,Expanded Troubled Families Programme Payment,NE8 1HH,"113,600.00",Yes
Communities & Local Government,DCLG,09/11/2016,Current (non AEF) Grants to Local Authorities,Local Government & Public Services,GLOUCESTERSHIRE COUNTY CNCL,,,,211272067,5000350611,,Expanded Troubled Families Programme Payment,GL1 2TG,"48,800.00",Yes
Communities & Local Government,DCLG,09/11/2016,Current (non AEF) Grants to Local Authorities,Local Government & Public Services,GREENWICH LB,,,,,5000350612,,Expanded Troubled Families Programme Payment,SE18 6HQ,"144,800.00",Yes
Communities & Local Government,DCLG,09/11/2016,Current (non AEF) Grants to Local Authorities,Local Government & Public Services,HALTON BC (HSG),,,,,5000350538,,Expanded Troubled Families Programme Payment,WA8 7QF,"12,000.00",Yes
Communities & Local Government,DCLG,09/11/2016,Current (non AEF) Grants to Local Authorities,Local Government & Public Services,HAMMERSMITH & FULHAM LB,,,,216929489,5000350615,,Expanded Troubled Families Programme Payment,W6 9JU,"129,600.00",Yes
Communities & Local Government,DCLG,09/11/2016,Current (non AEF) Grants to Local Authorities,Local Government & Public Services,HAMPSHIRE COUNTY COUNCIL,,,,211325832,5000350617,,Expanded Troubled Families Programme Payment,SO23 8UB,"94,400.00",Yes
Communities & Local Government,DCLG,09/11/2016,Current (non AEF) Grants to Local Authorities,Local Government & Public Services,HARINGEY LB,,,,217471767,5000350618,,Expanded Troubled Families Programme Payment,N22 4TR,"40,800.00",Yes
Communities & Local Government,DCLG,09/11/2016,Current (non AEF) Grants to Local Authorities,Local Government & Public Services,HARROW LB,,,,,5000350620,,Expanded Troubled Families Programme Payment,HA1 2UZ,"64,000.00",Yes
Communities & Local Government,DCLG,09/11/2016,Current (non AEF) Grants to Local Authorities,Local Government & Public Services,HARTLEPOOL BOROUGH COUNCIL,,,,424291797,5000350621,,Expanded Troubled Families Programme Payment,TS24 8AY,"72,800.00",Yes
Communities & Local Government,DCLG,09/11/2016,Current (non AEF) Grants to Local Authorities,Local Government & Public Services,HEREFORDSHIRE COUNCIL,,,,,5000350539,,Expanded Troubled Families Programme Payment,HR4 0XH,"8,000.00",Yes
Communities & Local Government,DCLG,09/11/2016,Current (non AEF) Grants to Local Authorities,Local Government & Public Services,HERTFORDSHIRE COUNTY CNCL,,,,210659897,5000350623,,Expanded Troubled Families Programme Payment,SG13 8DQ,"36,000.00",Yes
Communities & Local Government,DCLG,09/11/2016,Current (non AEF) Grants to Local Authorities,Local Government & Public Services,HILLINGDON LB,,,,211198585,5000350625,,Expanded Troubled Families Programme Payment,UB8 1UW,"76,000.00",Yes
Communities & Local Government,DCLG,09/11/2016,Current (non AEF) Grants to Local Authorities,Local Government & Public Services,HOUNSLOW LB,,Public Bodies,,210388999,5000350627,,Expanded Troubled Families Programme Payment,TW3 4DN,"132,000.00",Yes
Communities & Local Government,DCLG,09/11/2016,Current (non AEF) Grants to Local Authorities,Local Government & Public Services,HULL CITY COUNCIL,,,,217460984,5000350635,,Expanded Troubled Families Programme Payment,HU1 2AA,"128,000.00",Yes
Communities & Local Government,DCLG,09/11/2016,Current (non AEF) Grants to Local Authorities,Local Government & Public Services,ISLE OF WIGHT CNCL,,,,236431730,5000350629,,Expanded Troubled Families Programme Payment,PO30 1UD,"6,400.00",Yes
Communities & Local Government,DCLG,09/11/2016,Current (non AEF) Grants to Local Authorities,Local Government & Public Services,ISLINGTON LB,,,,225716729,5000350630,,Expanded Troubled Families Programme Payment,N1 1XR,"69,600.00",Yes
Communities & Local Government,DCLG,09/11/2016,Current (non AEF) Grants to Local Authorities,Local Government & Public Services,KENT COUNTY CNCL,,,,211334420,5000350633,,Expanded Troubled Families Programme Payment,ME14 1RF,"496,000.00",Yes
Communities & Local Government,DCLG,09/11/2016,Current (non AEF) Grants to Local Authorities,Local Government & Public Services,KINGSTON UPON THAMES  (HSG),,,,211379941,5000350540,,Expanded Troubled Families Programme Payment,KT1 1EU,"17,600.00",Yes
Communities & Local Government,DCLG,09/11/2016,Current (non AEF) Grants to Local Authorities,Local Government & Public Services,KIRKLEES COUNCIL (HSG),,,,,5000350541,,Expanded Troubled Families Programme Payment,HD1 2YU,"124,000.00",Yes
Communities & Local Government,DCLG,09/11/2016,Current (non AEF) Grants to Local Authorities,Local Government & Public Services,KNOWSLEY MBC,,,,,5000350636,,Expanded Troubled Families Programme Payment,L36 9YZ,"67,200.00",Yes
Communities & Local Government,DCLG,09/11/2016,Current (non AEF) Grants to Local Authorities,Local Government & Public Services,LEEDS CITY CNCL,,Micro,,,5000350640,,Expanded Troubled Families Programme Payment,LS1 1JF,"736,000.00",Yes
Communities & Local Government,DCLG,09/11/2016,Current (non AEF) Grants to Local Authorities,Local Government & Public Services,LEICESTER CITY CNCL,,,,228219960,5000350543,,Expanded Troubled Families Programme Payment,LE1 1FZ,"51,200.00",Yes
Communities & Local Government,DCLG,09/11/2016,Current (non AEF) Grants to Local Authorities,Local Government & Public Services,LEICESTERSHIRE COUNTY CNCL,,,,423679836,5000350641,,Expanded Troubled Families Programme Payment,LE3 8RB,"93,600.00",Yes
Communities & Local Government,DCLG,09/11/2016,Current (non AEF) Grants to Local Authorities,Local Government & Public Services,LEWISHAM LB (HSG),,Large,,235653300,5000350544,,Expanded Troubled Families Programme Payment,SE6 4RU,"79,200.00",Yes
Communities & Local Government,DCLG,09/11/2016,Current (non AEF) Grants to Local Authorities,Local Government & Public Services,LINCOLNSHIRE COUNTY COUNCIL,,,,,5000350643,,Expanded Troubled Families Programme Payment,LN2 1DY,"148,000.00",Yes
Communities & Local Government,DCLG,09/11/2016,Current (non AEF) Grants to Local Authorities,Local Government & Public Services,LIVERPOOL CITY COUNCIL,,,,,5000350644,,Expanded Troubled Families Programme Payment,L2 2DH,"108,800.00",Yes
Communities & Local Government,DCLG,09/11/2016,Current (non AEF) Grants to Local Authorities,Local Government & Public Services,LONDON BOROUGH OF BARNET,,,,211049507,5000350563,,Expanded Troubled Families Programme Payment,NN1 1NP,"48,000.00",Yes
Communities & Local Government,DCLG,09/11/2016,Current (non AEF) Grants to Local Authorities,Local Government & Public Services,LONDON BOROUGH OF HACKNEY,,,,225221597,5000350614,,Expanded Troubled Families Programme Payment,E8 4RU,"73,600.00",Yes
Communities & Local Government,DCLG,09/11/2016,Current (non AEF) Grants to Local Authorities,Local Government & Public Services,LONDON BOROUGH OF LAMBETH,,,,228216479,5000350638,,Expanded Troubled Families Programme Payment,SW2 1RL,"38,400.00",Yes
Communities & Local Government,DCLG,09/11/2016,Current (non AEF) Grants to Local Authorities,Local Government & Public Services,LONDON BOROUGH OF REDBRIDGE,,,,211341417,5000350673,,Expanded Troubled Families Programme Payment,IG1 1NN,"108,800.00",Yes
Communities & Local Government,DCLG,09/11/2016,Current (non AEF) Grants to Local Authorities,Local Government & Public Services,LUTON BC,,,,365112155,5000350646,,Expanded Troubled Families Programme Payment,LU1 2BQ,"152,800.00",Yes
Communities & Local Government,DCLG,09/11/2016,Current (non AEF) Grants to Local Authorities,Local Government & Public Services,MANCHESTER CITY CNCL (HSG),,,,211241393,5000350546,,Expanded Troubled Families Programme Payment,M60 2JR,"1,336,800.00",Yes
Communities & Local Government,DCLG,09/11/2016,Current (non AEF) Grants to Local Authorities,Local Government & Public Services,MEDWAY TOWNS D C (HSG),,,,,5000350547,,Expanded Troubled Families Programme Payment,ME4 4TR,"40,000.00",Yes
Communities & Local Government,DCLG,09/11/2016,Current (non AEF) Grants to Local Authorities,Local Government & Public Services,MERTON LB,,,,,5000350647,,Expanded Troubled Families Programme Payment,SM4 5DX,"35,200.00",Yes
Communities & Local Government,DCLG,09/11/2016,Current (non AEF) Grants to Local Authorities,Local Government & Public Services,MIDDLESBROUGH BC,,Large,,,5000350649,,Expanded Troubled Families Programme Payment,TS1 9GA,"101,600.00",Yes
Communities & Local Government,DCLG,09/11/2016,Current (non AEF) Grants to Local Authorities,Local Government & Public Services,MILTON KEYNES BC,,,,,5000350651,,Expanded Troubled Families Programme Payment,MK9 3WJ,"164,000.00",Yes
Communities & Local Government,DCLG,09/11/2016,Current (non AEF) Grants to Local Authorities,Local Government & Public Services,NEWCASTLE UPON TYNE DC,,,,239154040,5000350652,,Expanded Troubled Families Programme Payment,NE99 2BN,"72,000.00",Yes
Communities & Local Government,DCLG,09/11/2016,Current (non AEF) Grants to Local Authorities,Local Government & Public Services,NORFOLK COUNTY COUNCIL,,,,232602789,5000350654,,Expanded Troubled Families Programme Payment,NR1 2DW,"148,800.00",Yes
Communities & Local Government,DCLG,09/11/2016,Current (non AEF) Grants to Local Authorities,Local Government & Public Services,NORTH EAST LINCOLN DC (HSG),,,,211242737,5000350549,,Expanded Troubled Families Programme Payment,DN35 8LN,"74,400.00",Yes
Communities & Local Government,DCLG,09/11/2016,Current (non AEF) Grants to Local Authorities,Local Government & Public Services,NORTH LINCOLNSHIRE DC (HSG),,Public Bodies,,424005502,5000350551,,Expanded Troubled Families Programme Payment,DN16 1AB,"52,000.00",Yes
Communities & Local Government,DCLG,09/11/2016,Current (non AEF) Grants to Local Authorities,Local Government & Public Services,NORTH SOMERSET COUNCIL,,Large,,,5000350656,,Expanded Troubled Families Programme Payment,BS23 1UJ,"17,600.00",Yes
Communities & Local Government,DCLG,09/11/2016,Current (non AEF) Grants to Local Authorities,Local Government & Public Services,NORTH TYNESIDE MBC,,,,,5000350658,,Expanded Troubled Families Programme Payment,NE27 0BY,"18,400.00",Yes
Communities & Local Government,DCLG,09/11/2016,Current (non AEF) Grants to Local Authorities,Local Government & Public Services,NORTH YORKSHIRE CC (DL7 8AL),,,,,5000350660,,Expanded Troubled Families Programme Payment,DL7 8AL,"248,000.00",Yes
Communities & Local Government,DCLG,09/11/2016,Current (non AEF) Grants to Local Authorities,Local Government & Public Services,NORTHAMPTONSHIRE COUNTY COUNCIL,,,,,5000350662,,Expanded Troubled Families Programme Payment,CB3 0AP,"253,600.00",Yes
Communities & Local Government,DCLG,09/11/2016,Current (non AEF) Grants to Local Authorities,Local Government & Public Services,NORTHUMBERLAND COUNTY COUNCIL,,,,210308905,5000350737,,Expanded Troubled Families Programme Payment,NE61 2EF,"4,000.00",Yes
Communities & Local Government,DCLG,09/11/2016,Current (non AEF) Grants to Local Authorities,Local Government & Public Services,NOTTINGHAM CITY COUNCIL,,,,214495447,5000350663,,Expanded Troubled Families Programme Payment,NG2 3NG,"147,200.00",Yes
Communities & Local Government,DCLG,09/11/2016,Current (non AEF) Grants to Local Authorities,Local Government & Public Services,NOTTINGHAMSHIRE COUNTY CNCL,,,,,5000350664,,Expanded Troubled Families Programme Payment,NG1 4BU,"68,800.00",Yes
Communities & Local Government,DCLG,09/11/2016,Current (non AEF) Grants to Local Authorities,Local Government & Public Services,OXFORDSHIRE CC,,,,228216438,5000350666,,Expanded Troubled Families Programme Payment,OX1 1TH,"18,400.00",Yes
Communities & Local Government,DCLG,09/11/2016,Current (non AEF) Grants to Local Authorities,Local Government & Public Services,PETERBOROUGH CITY CNCL,,,,,5000350667,,Expanded Troubled Families Programme Payment,PE1 1HG,"80,800.00",Yes
Communities & Local Government,DCLG,09/11/2016,Current (non AEF) Grants to Local Authorities,Local Government & Public Services,PLYMOUTH CITY CNCL,,Public Bodies,,236416095,5000350669,,Expanded Troubled Families Programme Payment,PL1 2AA,"82,400.00",Yes
Communities & Local Government,DCLG,09/11/2016,Current (non AEF) Grants to Local Authorities,Local Government & Public Services,POOLE BC (HSG),,,,,5000350552,,Expanded Troubled Families Programme Payment,BH15 2RU,"3,200.00",Yes
Communities & Local Government,DCLG,09/11/2016,Current (non AEF) Grants to Local Authorities,Local Government & Public Services,PORTSMOUTH CITY COUNCIL,,Large,,211183082,5000350670,,Expanded Troubled Families Programme Payment,PO1 2AR,"12,000.00",Yes
Communities & Local Government,DCLG,09/11/2016,Current (non AEF) Grants to Local Authorities,Local Government & Public Services,READING BC,,,,210220399,5000350672,,Expanded Troubled Families Programme Payment,RG1 7TD,"64,800.00",Yes
Communities & Local Government,DCLG,09/11/2016,Current (non AEF) Grants to Local Authorities,Local Government & Public Services,REDCAR & CLEVELAND BOROUGH COUNCIL,,,,215175196,5000350675,,Expanded Troubled Families Programme Payment,TS10 1RT,"61,600.00",Yes
Communities & Local Government,DCLG,09/11/2016,Current (non AEF) Grants to Local Authorities,Local Government & Public Services,RICHMOND UPON THAMES LB,,,,228868535,5000350677,,Expanded Troubled Families Programme Payment,TW1 3BZ,"16,000.00",Yes
Communities & Local Government,DCLG,09/11/2016,Current (non AEF) Grants to Local Authorities,Local Government & Public Services,ROTHERHAM MBC,,,,211266937,5000350678,,Expanded Troubled Families Programme Payment,S60 1AE,"22,400.00",Yes
Communities & Local Government,DCLG,09/11/2016,Current (non AEF) Grants to Local Authorities,Local Government & Public Services,ROYAL BOROUGH OF KENSINGTON & CHELS,,,,211124466,5000350632,,Expanded Troubled Families Programme Payment,W8 7NX,"72,000.00",Yes
Communities & Local Government,DCLG,09/11/2016,Current (non AEF) Grants to Local Authorities,Local Government & Public Services,RUTLAND CC,,,,,5000350680,,Expanded Troubled Families Programme Payment,LE15 6HP,"4,000.00",Yes
Communities & Local Government,DCLG,09/11/2016,Current (non AEF) Grants to Local Authorities,Local Government & Public Services,SANDWELL MBC,,,,,5000350682,,Expanded Troubled Families Programme Payment,B69 3BS,"112,800.00",Yes
Communities & Local Government,DCLG,09/11/2016,Current (non AEF) Grants to Local Authorities,Local Government & Public Services,SEFTON MBC,,Public Bodies,,232936125,5000350684,,Expanded Troubled Families Programme Payment,L20 3NJ,"46,400.00",Yes
Communities & Local Government,DCLG,09/11/2016,Current (non AEF) Grants to Local Authorities,Local Government & Public Services,SHEFFIELD CITY CNCL,,,,,5000350686,,Expanded Troubled Families Programme Payment,S1 1UJ,"52,000.00",Yes
Communities & Local Government,DCLG,09/11/2016,Current (non AEF) Grants to Local Authorities,Local Government & Public Services,SHROPSHIRE UNITARY AUTHORITY,,,,217036490,5000350745,,Expanded Troubled Families Programme Payment,SY2 6ND,"8,800.00",Yes
Communities & Local Government,DCLG,09/11/2016,Current (non AEF) Grants to Local Authorities,Local Government & Public Services,SOLIHULL MBC,,,,,5000350687,,Expanded Troubled Families Programme Payment,B91 3QR,"41,600.00",Yes
Communities & Local Government,DCLG,09/11/2016,Current (non AEF) Grants to Local Authorities,Local Government & Public Services,SOMERSET COUNTY CNCL,,,,211229406,5000350689,,Expanded Troubled Families Programme Payment,TA1 4DY,"76,000.00",Yes
Communities & Local Government,DCLG,09/11/2016,Current (non AEF) Grants to Local Authorities,Local Government & Public Services,SOUTH GLOUCESTERSHIRE DC (HSG),,,,,5000350554,,Expanded Troubled Families Programme Payment,BS15 2TR,"17,600.00",Yes
Communities & Local Government,DCLG,09/11/2016,Current (non AEF) Grants to Local Authorities,Local Government & Public Services,SOUTH TYNESIDE COUNCIL,,,,345736438,5000350690,,Expanded Troubled Families Programme Payment,NE33 2RL,"16,800.00",Yes
Communities & Local Government,DCLG,09/11/2016,Current (non AEF) Grants to Local Authorities,Local Government & Public Services,SOUTHAMPTON CITY CNCL,,,,216927475,5000350692,,Expanded Troubled Families Programme Payment,SO14 7LY,"102,400.00",Yes
Communities & Local Government,DCLG,09/11/2016,Current (non AEF) Grants to Local Authorities,Local Government & Public Services,SOUTHEND ON SEA BC,,,,217067263,5000350694,,Expanded Troubled Families Programme Payment,SS2 6EP,"39,200.00",Yes
Communities & Local Government,DCLG,09/11/2016,Current (non AEF) Grants to Local Authorities,Local Government & Public Services,SOUTHWARK LB,,,,,5000350695,,Expanded Troubled Families Programme Payment,SE1 2QH,"44,800.00",Yes
Communities & Local Government,DCLG,09/11/2016,Current (non AEF) Grants to Local Authorities,Local Government & Public Services,ST HELENS MBC,,,,,5000350697,,Expanded Troubled Families Programme Payment,WA10 1HP,"12,800.00",Yes
Communities & Local Government,DCLG,09/11/2016,Current (non AEF) Grants to Local Authorities,Local Government & Public Services,STAFFORDSHIRE COUNTY CNCL,,Public Bodies,,,5000350698,,Expanded Troubled Families Programme Payment,ST16 2DH,"138,400.00",Yes
Communities & Local Government,DCLG,09/11/2016,Current (non AEF) Grants to Local Authorities,Local Government & Public Services,STOCKTON-ON-TEES BC (HSG),,,,,5000350556,,Expanded Troubled Families Programme Payment,TS23 2YS,"207,200.00",Yes
Communities & Local Government,DCLG,09/11/2016,Current (non AEF) Grants to Local Authorities,Local Government & Public Services,STOKE ON TRENT CITY COUNCIL,,,,216037890,5000350701,,Expanded Troubled Families Programme Payment,ST4 1HH,"101,600.00",Yes
Communities & Local Government,DCLG,09/11/2016,Current (non AEF) Grants to Local Authorities,Local Government & Public Services,SUFFOLK CC (SOCIAL CARE SERV) (H,,,,385614821,5000350558,,Expanded Troubled Families Programme Payment,IP4 1LH,"70,400.00",Yes
Communities & Local Government,DCLG,09/11/2016,Current (non AEF) Grants to Local Authorities,Local Government & Public Services,SURREY COUNTY COUNCIL,,Public Bodies,,,5000350702,,Expanded Troubled Families Programme Payment,KT1 2DN,"161,600.00",Yes
Communities & Local Government,DCLG,09/11/2016,Current (non AEF) Grants to Local Authorities,Local Government & Public Services,SUTTON LB,,,,,5000350704,,Expanded Troubled Families Programme Payment,SM1 1EA,"58,400.00",Yes
Communities & Local Government,DCLG,09/11/2016,Current (non AEF) Grants to Local Authorities,Local Government & Public Services,SWINDON BC,,,,458639697,5000350705,,Expanded Troubled Families Programme Payment,SN1 2JH,"28,000.00",Yes
Communities & Local Government,DCLG,09/11/2016,Current (non AEF) Grants to Local Authorities,Local Government & Public Services,TELFORD & WREKIN COUNCIL,,,,230235801,5000350707,,Expanded Troubled Families Programme Payment,TF3 4NT,"9,600.00",Yes
Communities & Local Government,DCLG,09/11/2016,Current (non AEF) Grants to Local Authorities,Local Government & Public Services,THURROCK  BOROUGH COUNCIL,,,,,5000350709,,Expanded Troubled Families Programme Payment,RM17 6SL,"49,600.00",Yes
Communities & Local Government,DCLG,09/11/2016,Current (non AEF) Grants to Local Authorities,Local Government & Public Services,TORBAY BC,,,,,5000350710,,Expanded Troubled Families Programme Payment,TQ1 3DR,"34,400.00",Yes
Communities & Local Government,DCLG,09/11/2016,Current (non AEF) Grants to Local Authorities,Local Government & Public Services,TOWER HAMLETS LB (HSG),,,,231315144,5000350560,,Expanded Troubled Families Programme Payment,E14 2BG,"37,600.00",Yes
Communities & Local Government,DCLG,09/11/2016,Current (non AEF) Grants to Local Authorities,Local Government & Public Services,WALSALL MBC,,,,212515585,5000350714,,Expanded Troubled Families Programme Payment,WS1 1TW,"31,200.00",Yes
Communities & Local Government,DCLG,09/11/2016,Current (non AEF) Grants to Local Authorities,Local Government & Public Services,WALTHAM FOREST LB,,,,,5000350715,,Expanded Troubled Families Programme Payment,E17 4JA,"97,600.00",Yes
Communities & Local Government,DCLG,09/11/2016,Current (non AEF) Grants to Local Authorities,Local Government & Public Services,WANDSWORTH LB,,,,,5000350717,,Expanded Troubled Families Programme Payment,SW18 2PU,"72,000.00",Yes
Communities & Local Government,DCLG,09/11/2016,Current (non AEF) Grants to Local Authorities,Local Government & Public Services,WARRINGTON BC,,,,,5000350719,,Expanded Troubled Families Programme Payment,WA1 1BN,"24,800.00",Yes
Communities & Local Government,DCLG,09/11/2016,Current (non AEF) Grants to Local Authorities,Local Government & Public Services,WARWICKSHIRE COUNTY CNCL,,,,210396290,5000350720,,Expanded Troubled Families Programme Payment,CV34 4RH,"97,600.00",Yes
Communities & Local Government,DCLG,09/11/2016,Current (non AEF) Grants to Local Authorities,Local Government & Public Services,WEST BERKSHIRE COUNCIL,,,,364809181,5000350722,,Expanded Troubled Families Programme Payment,RG14 2AF,"10,400.00",Yes
Communities & Local Government,DCLG,09/11/2016,Current (non AEF) Grants to Local Authorities,Local Government & Public Services,WEST SUSSEX CC,,Public Bodies,,232198762,5000350723,,Expanded Troubled Families Programme Payment,PO19 1RG,"400,000.00",Yes
Communities & Local Government,DCLG,09/11/2016,Current (non AEF) Grants to Local Authorities,Local Government & Public Services,WESTMINSTER CITY CNCL,,,,229845706,5000350725,,Expanded Troubled Families Programme Payment,SW1E 6QP,"115,200.00",Yes
Communities & Local Government,DCLG,09/11/2016,Current (non AEF) Grants to Local Authorities,Local Government & Public Services,WILTSHIRE COUNCIL,,,,211341656,5000350735,,Expanded Troubled Families Programme Payment,BA14 4DS,"89,600.00",Yes
Communities & Local Government,DCLG,09/11/2016,Current (non AEF) Grants to Local Authorities,Local Government & Public Services,WINDSOR & MAIDENHEAD (HSG),,,,227411998,5000350561,,Expanded Troubled Families Programme Payment,SL6 1RF,"5,600.00",Yes
Communities & Local Government,DCLG,09/11/2016,Current (non AEF) Grants to Local Authorities,Local Government & Public Services,WIRRAL MBC,,,,211222602,5000350727,,Expanded Troubled Families Programme Payment,CH41 6BU,"4,800.00",Yes
Communities & Local Government,DCLG,09/11/2016,Current (non AEF) Grants to Local Authorities,Local Government & Public Services,WOKINGHAM DC,,,,,5000350728,,Expanded Troubled Families Programme Payment,RG11 1WJ,"1,600.00",Yes
Communities & Local Government,DCLG,09/11/2016,Current (non AEF) Grants to Local Authorities,Local Government & Public Services,WOLVERHAMPTON MBC,,,,229895453,5000350730,,Expanded Troubled Families Programme Payment,WV1 1RL,"35,200.00",Yes
Communities & Local Government,DCLG,09/11/2016,Current (non AEF) Grants to Local Authorities,Local Government & Public Services,WORCESTERSHIRE COUNTY COUNCIL,,,,230359643,5000350732,,Expanded Troubled Families Programme Payment,WR5 2NP,"26,400.00",Yes
Communities & Local Government,DCLG,09/11/2016,Current (non AEF) Grants to Local Authorities,Local Government & Public Services,YORK CITY CNCL,,,,,5000350733,,Expanded Troubled Families Programme Payment,YO1 0EG,"7,200.00",Yes
Communities & Local Government,DCLG,09/11/2016,Current Grants to Non Profit Bodies,Housing & Planning,CEL GROUP,,Medium,,394794614,5106224508,Technical Services,Home Improvement Agencies 01.04.16 - 31.03.18,WA2 0YL,"68,870.86",Yes
Communities & Local Government,DCLG,09/11/2016,Grant in Aid to NDPBs (non budget),Housing & Planning,HOMES & COMMUNITIES AGENCY,,Public Bodies,,215576860,2100268864,,HCA Grant in Aid for November 2016,NE11 0NA,"193,073,773.00",Yes
Communities & Local Government,DCLG,09/11/2016,IT - Service Contracts,Finance,ULTIMA BUSINESS SOLUTIONS LTD,,Large,,505734145,5106224494,IT Managed / Outsourced Services,MS Office365/Azure Discovery work,RG2 0RX,"1,680.06",
Communities & Local Government,DCLG,09/11/2016,IT - Service Contracts,Local Government & Public Services,SWIRRL IT LIMITED,,Micro,,211074993,5106224515,IT Managed / Outsourced Services,DCLG Dashboard ,FK7 7WT,"15,729.85",
Communities & Local Government,DCLG,09/11/2016,IT - Software Maintenance,Housing & Planning,AECOM LIMITED,,Large,,225157072,5106224478,IT Managed / Outsourced Services,software validation services,AL1 3ER,"1,763.82",
Communities & Local Government,DCLG,09/11/2016,Professional services,Housing & Planning,BUILDING RESEARCH ESTABLISHMENT,,Large,,896495033,5106224479,Technical Services,Contract Extension Apr-Sep 2016,WD25 9XX,"14,251.20",
Communities & Local Government,DCLG,09/11/2016,Professional services,Housing & Planning,BUILDING RESEARCH ESTABLISHMENT,,Large,,896495033,5106224499,Technical Services,Contract Extension Apr-Sep 2016,WD25 9XX,"3,824.00",
Communities & Local Government,DCLG,09/11/2016,Steady State Service Provision,Housing & Planning,LOCALITY,,Medium,,347998312,5106224427,Business Process Outsourcing Services,Neighbourhood Planning  & Community Right to Buy,N1 6DR,"36,792.88",
Communities & Local Government,DCLG,09/11/2016,Steady State Service Provision,Local Government & Public Services,CO-OPERATIVES UK,,Small,,,5106224507,Business Process Outsourcing Services,Community Economic Development � Contract Variation,M60 0AS,"36,134.51",
Communities & Local Government,DCLG,09/11/2016,Work In Progress Pre-Cert 40373 Spend,Decentralisation and Local Growth,YTKO LIMITED,,Small,,,7700000041,,ERDF grant payment,CB4 2QH,"35,299.13",Yes
Communities & Local Government,DCLG,10/11/2016,Agency Staff,"Strategy, Communications and Private Office",PREMIER I T GROUP LTD,,Medium,,222042082,5106193786,Contingent Labour,Interim Correspondence Staff ,SW1P 2AL,-469.26,
Communities & Local Government,DCLG,10/11/2016,Agency Staff,"Strategy, Communications and Private Office",PREMIER I T GROUP LTD,,Medium,,222042082,5106193787,Contingent Labour,Interim Correspondence Staff ,SW1P 2AL,-469.26,
Communities & Local Government,DCLG,10/11/2016,Agency Staff,"Strategy, Communications and Private Office",PREMIER I T GROUP LTD,,Medium,,222042082,5106193788,Contingent Labour,Interim Correspondence Staff ,SW1P 2AL,-782.1,
Communities & Local Government,DCLG,10/11/2016,Agency Staff,"Strategy, Communications and Private Office",PREMIER I T GROUP LTD,,Medium,,222042082,5106193789,Contingent Labour,Interim Correspondence Staff ,SW1P 2AL,-469.26,
Communities & Local Government,DCLG,10/11/2016,Agency Staff,"Strategy, Communications and Private Office",PREMIER I T GROUP LTD,,Medium,,222042082,5106193790,Contingent Labour,Interim Correspondence Staff ,SW1P 2AL,-782.1,
Communities & Local Government,DCLG,10/11/2016,Agency Staff,"Strategy, Communications and Private Office",PREMIER I T GROUP LTD,,Medium,,222042082,5106193791,Contingent Labour,Interim Correspondence Staff ,SW1P 2AL,-782.1,
Communities & Local Government,DCLG,10/11/2016,Agency Staff,"Strategy, Communications and Private Office",PREMIER I T GROUP LTD,,Medium,,222042082,5106200364,Contingent Labour,Interim Correspondence Staff ,SW1P 2AL,-782.1,
Communities & Local Government,DCLG,10/11/2016,IT - Service Contracts,Finance,INFO-ASSURE LTD,,Small,,,5106224531,IT Managed / Outsourced Services,CLAS/PEN Test Resource 95 days,GU14 0LX,"16,650.00",
Communities & Local Government,DCLG,10/11/2016,IT - Software Maintenance,Finance,MARKLOGIC CORPORATION,,Large,,,5106224474,IT Managed / Outsourced Services,Payment Module,CA 94070,"44,175.00",
Communities & Local Government,DCLG,10/11/2016,Printing,"Strategy, Communications and Private Office",STATIONERY OFFICE LTD,,Large,,779375633,5106224533,Printing Services,Statutory Instruments Print: Non-Vatable,NR3 1PD,165,
Communities & Local Government,DCLG,10/11/2016,Printing,"Strategy, Communications and Private Office",STATIONERY OFFICE LTD,,Large,,779375633,5106224533,Printing Services,Statutory Instruments Print: Vatable,NR3 1PD,130,
Communities & Local Government,DCLG,10/11/2016,Professional services,Local Government & Public Services,MALCOLM READING CONSULTANTS,,Micro,,424223282,5106224334,Financial,Technical Contract Management  Support,EC1N 6RY,"7,800.00",
Communities & Local Government,DCLG,10/11/2016,Professional services,Local Government & Public Services,VALUATION OFFICE AGENCY,,Public Bodies,,215253886,2100268816,Environmental Services,Payment for work on NNDR and Council Tax - OCT,W1D 5BU,"13,325,000.00",
Communities & Local Government,DCLG,10/11/2016,Publications,Finance,JONES YARRELL LEADENHALL LTD,,Large,,505670265,5106224526,Learning and Development Materials,Journal and Newspaper Supply 2016-17,E3 3JH,258.32,
Communities & Local Government,DCLG,10/11/2016,Publicity,"Strategy, Communications and Private Office",GORKANA GROUP LTD,,Large,,210089876,5106224530,Advertising,Press Cuttings ,EC1Y 8QE,"1,997.45",
Communities & Local Government,DCLG,10/11/2016,Services provided by other Govt Orgs,Finance,GOVERNMENT LEGAL DEPARTMENT,,Public Bodies,,215580680,5106224532,Legal,Government Legal Department Fixed Fee 2016-17,WC2B 4TS,"1,050,939.00",Yes
Communities & Local Government,DCLG,10/11/2016,Training,Finance,LONDON METROPOLITAN UNIVERSITY,Yes,,,229884010,5106224529,Development and Training,Civil Service Training,N7 8HD,578,
Communities & Local Government,DCLG,10/11/2016,Work In Progress Pre-Cert 40373 Spend,Decentralisation and Local Growth,BIRMINGHAM CITY COUNCIL (NOT RATES),,Large,,,2300002641,,ERDF grant recovery,B1 1BB,"-9,806.05",Yes
Communities & Local Government,DCLG,11/11/2016,Agency Staff,Decentralisation and Local Growth,CAPITA BUS. SERV. LTD (CON LAB),,Large,,,5106224553,Contingent Labour,Interim Manager,DL1 9HB,"11,193.28",
Communities & Local Government,DCLG,11/11/2016,Agency Staff,Finance,BROOK STREET UK LTD,,Large,,364940028,5106224558,Contingent Labour,Interim Admin support,AL1 4JB,493.64,
Communities & Local Government,DCLG,11/11/2016,Agency Staff,Finance,BROOK STREET UK LTD,,Large,,364940028,5106224560,Contingent Labour,Support worker for staff interim measure,AL1 4JB,431.17,
Communities & Local Government,DCLG,11/11/2016,Agency Staff,Finance,CAPITA BUS. SERV. LTD (CON LAB),,Large,,,5106224551,Contingent Labour,Interim Manager,DL1 9HB,"9,204.84",
Communities & Local Government,DCLG,11/11/2016,Agency Staff,Finance,INTERQUEST GROUP UK LIMITED,,Large,,423935241,5106224576,IT Managed / Outsourced Services,SAP Support Services,EC1N 8UA,"10,310.58",
Communities & Local Government,DCLG,11/11/2016,Agency Staff,Housing & Planning,BROOK STREET UK LTD,,Large,,364940028,5106224583,Contingent Labour,Temporary Executive Officer -3 months,AL1 4JB,588.16,
Communities & Local Government,DCLG,11/11/2016,Agency Staff,Housing & Planning,CAPITA BUS. SERV. LTD (CON LAB),,Large,,,5106224546,Contingent Labour,Interim Manager,DL1 9HB,313.42,
Communities & Local Government,DCLG,11/11/2016,Agency Staff,Housing & Planning,CAPITA BUS. SERV. LTD (CON LAB),,Large,,,5106224548,Contingent Labour,Interim Manager,DL1 9HB,"6,055.92",
Communities & Local Government,DCLG,11/11/2016,Agency Staff,Local Government & Public Services,CAPITA BUS. SERV. LTD (CON LAB),,Large,,,5106224550,Contingent Labour,Interim Manager,DL1 9HB,807.46,
Communities & Local Government,DCLG,11/11/2016,EXP � PURCHASE OF GOODS /SERVICES R & D,Local Government & Public Services,NATIONAL CENTRE FOR SOCIAL RESEARCH,,Large,,424047426,5106224585,Research,Research - English Housing Survey,EC1V 0AX,"13,924.17",
Communities & Local Government,DCLG,11/11/2016,EXP � PURCHASE OF GOODS /SERVICES R & D,Local Government & Public Services,NATIONAL CENTRE FOR SOCIAL RESEARCH,,Large,,424047426,5106224586,Research,Research - English Housing Survey,EC1V 0AX,"331,620.19",
Communities & Local Government,DCLG,11/11/2016,IT - Service Contracts,Finance,ICASEWORK LTD,,Large,,,5106224578,IT Managed / Outsourced Services,DispatchBox Year 1 Service Charges,NW6 7SG,"5,060.00",
Communities & Local Government,DCLG,11/11/2016,IT - Service Contracts,Finance,INFO-ASSURE LTD,,Small,,,5106224563,IT Managed / Outsourced Services,CLAS/PEN Test Resource 95 days,GU14 0LX,900,
Communities & Local Government,DCLG,11/11/2016,IT - Service Contracts,Finance,INFO-ASSURE LTD,,Small,,,5106224566,IT Managed / Outsourced Services,CLAS/PEN Test Resource 95 days,GU14 0LX,450,
Communities & Local Government,DCLG,11/11/2016,IT - Service Contracts,Finance,INTERQUEST GROUP UK LIMITED,,Large,,423935241,5106224577,IT Managed / Outsourced Services,AS2 - Support for SQL environment Sep 16,EC1N 8UA,"3,937.50",
Communities & Local Government,DCLG,11/11/2016,IT - Service Contracts,Local Government & Public Services,CAPITA BUS. SERV. LTD (CON LAB),,Large,,,5106224545,Contingent Labour,Specialist  Expertise,DL1 9HB,"4,276.44",
Communities & Local Government,DCLG,11/11/2016,Research,Local Government & Public Services,NATIONAL CENTRE FOR SOCIAL RESEARCH,,Large,,424047426,5106224584,Research,Research - English Housing Survey,EC1V 0AX,"27,855.51",
Communities & Local Government,DCLG,11/11/2016,Steady State Service Provision,Finance,ALLPAY LIMITED,,Medium,,738359918,5106224523,Business Process Outsourcing Services,BACS Processing Services,HR1 3SE,756,
Communities & Local Government,DCLG,11/11/2016,Steady State Service Provision,Housing & Planning,ST BASILS CENTRE,Yes,Small,,289531105,5106224561,Business Process Outsourcing Services,Secondment,B9 4AX,"5,974.54",
Communities & Local Government,DCLG,11/11/2016,Steady State Service Provision,Local Government & Public Services,LOCALITY,,Medium,,347998312,5106224565,Business Process Outsourcing Services,Lot 5: Admin,N1 6DR,"26,670.00",
Communities & Local Government,DCLG,11/11/2016,Steady State Service Provision,Local Government & Public Services,VODAFONE UK(FSSD USE ONLY),,Large,,397467572,5106224579,Business Process Outsourcing Services,Managed Internet Access Line ,RG14 5FF,582.58,
Communities & Local Government,DCLG,11/11/2016,Training,Finance,MYCSP LIMITED,,Large,,217279092,5106224477,Development and Training,Civil Service Training,SK3 0XN,660,
Communities & Local Government,DCLG,11/11/2016,Training,Finance,MYCSP LIMITED,,Large,,217279092,5106224537,Development and Training,Civil Service Training,SK3 0XN,330,
Communities & Local Government,DCLG,11/11/2016,Training,Finance,QA  LTD,,Large,,215584661,5106224555,Development and Training,Civil Service Training,SL1 1SG,730,
Communities & Local Government,DCLG,11/11/2016,Training,Finance,WESTMINSTER UNIVERSITY,,Large,,228326716,5106224567,Development and Training,Civil Service Training,NW1 5LS,437.75,
Communities & Local Government,DCLG,11/11/2016,Training,Finance,WESTMINSTER UNIVERSITY,,Large,,228326716,5106224568,Development and Training,Civil Service Training,NW1 5LS,437.75,
Communities & Local Government,DCLG,11/11/2016,Training,Finance,WESTMINSTER UNIVERSITY,,Large,,228326716,5106224569,Development and Training,Civil Service Training,NW1 5LS,459.64,
Communities & Local Government,DCLG,11/11/2016,Training,Finance,WESTMINSTER UNIVERSITY,,Large,,228326716,5106224571,Development and Training,Civil Service Training,NW1 5LS,459.64,
Communities & Local Government,DCLG,11/11/2016,Training,Finance,WESTMINSTER UNIVERSITY,,Large,,228326716,5106224572,Development and Training,Civil Service Training,NW1 5LS,437.75,
Communities & Local Government,DCLG,11/11/2016,Training,Finance,WESTMINSTER UNIVERSITY,,Large,,228326716,5106224573,Development and Training,Civil Service Training,NW1 5LS,437.75,
Communities & Local Government,DCLG,11/11/2016,Training,Finance,WESTMINSTER UNIVERSITY,,Large,,228326716,5106224580,Development and Training,Civil Service Training,NW1 5LS,437.75,
Communities & Local Government,DCLG,11/11/2016,Training,Local Government & Public Services,KORN FERRY HAY GROUP (CSL),,Large,,,5106224554,Development and Training,Civil Service Training,SW1X 7HG,570,
Communities & Local Government,DCLG,11/11/2016,Vehicle hire,"Strategy, Communications and Private Office",GOVERNMENT CAR & DESPATCH AGENCY,,Public Bodies,,,5106224559,Vehicle Hire and Lease,Ministerial Duty Car (Non-VAT),SW8 5AX,336,
Communities & Local Government,DCLG,11/11/2016,Vehicle hire,"Strategy, Communications and Private Office",GOVERNMENT CAR & DESPATCH AGENCY,,Public Bodies,,,5106224559,Vehicle Hire and Lease,Ministerial Duty Car 2(LT206) 2016-17,SW8 5AX,"6,916.66",
Communities & Local Government,DCLG,11/11/2016,Vehicle hire,"Strategy, Communications and Private Office",GOVERNMENT CAR & DESPATCH AGENCY,,Public Bodies,,,5106224562,Vehicle Hire and Lease,Ministerial Duty Car (Non-VAT),SW8 5AX,168,
Communities & Local Government,DCLG,11/11/2016,Vehicle hire,"Strategy, Communications and Private Office",GOVERNMENT CAR & DESPATCH AGENCY,,Public Bodies,,,5106224562,Vehicle Hire and Lease,Ministerial Duty Car 1 (LT118) 2016-17,SW8 5AX,"7,225.04",
Communities & Local Government,DCLG,14/11/2016,Advertising,"Strategy, Communications and Private Office",TULLO MARSHALL WARREN LTD,,Medium,,,5106224606,Advertising,Right to Buy Marketing Contract 16/17,W1F 9NB,"2,780.00",
Communities & Local Government,DCLG,14/11/2016,Estate projects expenses,Finance,INTERSERVE (FACILITIES MANAGEMENT),,Large,,364834825,5106224597,Property Occupation,Replace Main Chiller TQH,BS32 4NH,"150,795.42",
Communities & Local Government,DCLG,14/11/2016,Estate projects expenses,Finance,INTERSERVE (FACILITIES MANAGEMENT),,Large,,364834825,5106224597,Property Occupation,Replace Main Chiller 2 RG,BS32 4NH,"267,280.30",
Communities & Local Government,DCLG,14/11/2016,Estate projects expenses,Finance,INTERSERVE (FACILITIES MANAGEMENT),,Large,,364834825,5106224603,Property Occupation,Replace Main Chiller 2 RG,BS32 4NH,"-89,698.18",
Communities & Local Government,DCLG,14/11/2016,IT - Service Contracts,Finance,ARCUS GLOBAL LIMITED,,Medium,,,5106224600,IT Managed / Outsourced Services,CPD4109143(AS5) T&M wks FY16-17,CB4 2HY,"11,133.58",
Communities & Local Government,DCLG,14/11/2016,IT - Service Contracts,Finance,FUJITSU SERVICES LTD,,Large,,423375062,5106224614,IT Managed / Outsourced Services,PINS New Requirements FY16/17,WA3 6GD,675,
Communities & Local Government,DCLG,14/11/2016,IT - Service Contracts,Finance,MARKLOGIC CORPORATION,,Large,,,5106224493,IT Managed / Outsourced Services,CPD4109106AS3 Beta Development Charges,CA 94070,"231,806.31",
Communities & Local Government,DCLG,14/11/2016,Legal Fees,Decentralisation and Local Growth,DWF LLP CLIENT ACCOUNT,,,,,2100268955,Legal,Legal Advice,M3 3AA,"50,000.00",
Communities & Local Government,DCLG,14/11/2016,Physical Storage,Finance,TNT UK LIMITED,,Large,,,5106224608,Warehousing and Storage,Offsite Records Storage FYR 16/17,BL10 9GR,"4,019.92",
Communities & Local Government,DCLG,14/11/2016,Physical Storage,Finance,TNT UK LIMITED,,Large,,,5106224609,Warehousing and Storage,Offsite Records Storage FYR 16/17,BL10 9GR,"24,113.94",
Communities & Local Government,DCLG,14/11/2016,Physical Storage,Finance,TNT UK LIMITED,,Large,,,5106224610,Warehousing and Storage,Offsite Records Storage FYR 16/17,BL10 9GR,"1,555.37",
Communities & Local Government,DCLG,14/11/2016,Physical Storage,Finance,TNT UK LIMITED,,Large,,,5106224612,Warehousing and Storage,Offsite Records Storage FYR 16/17,BL10 9GR,876.06,
Communities & Local Government,DCLG,14/11/2016,Professional services,Housing & Planning,VALUATION OFFICE AGENCY,,Public Bodies,,215253886,5106224432,Financial,Financial Checks 2016/17,W1D 5BU,"1,442.22",
Communities & Local Government,DCLG,14/11/2016,Publicity,"Strategy, Communications and Private Office",SIGHTLINE,,Small,,736584637,2300001236,Advertising,Touch Screen Kiosk Ideal Home,GU7 1BQ,"-7,151.87",
Communities & Local Government,DCLG,14/11/2016,Software Licences,Finance,INSIGHT DIRECT (UK) LTD,,Large,,,5106224524,Software,Microsoft software licence,UB8 1PH,"42,008.02",
Communities & Local Government,DCLG,14/11/2016,Software Licences,Finance,INSIGHT DIRECT (UK) LTD,,Large,,,5106224524,Software,Microsoft software licence,UB8 1PH,"14,641.92",
Communities & Local Government,DCLG,14/11/2016,Steady State Service Provision,Housing & Planning,LOCAL PARTNERSHIPS LLP,,,,211702438,5106224588,Business Process Outsourcing Services,Ebbsfleet Local Partner Support,SW1P 3HZ,"21,511.43",
Communities & Local Government,DCLG,14/11/2016,Steady State Service Provision,Housing & Planning,LOCAL PARTNERSHIPS LLP,,,,211702438,5106224589,Business Process Outsourcing Services,Ebbsfleet Local Partner Support,SW1P 3HZ,"50,158.33",
Communities & Local Government,DCLG,14/11/2016,Telecoms equipment (non-capitalised),Finance,DAISY CORPORATE SERVICES LTD,,Large,,221481042,5106224593,IT Managed / Outsourced Services,3mth service extension to 31/12/16,BB9 5SR,"108,172.80",
Communities & Local Government,DCLG,14/11/2016,Telecoms equipment (non-capitalised),Finance,DAISY CORPORATE SERVICES LTD,,Large,,221481042,5106224595,IT Managed / Outsourced Services,3mth service extension to 31/12/16,BB9 5SR,"108,172.80",
Communities & Local Government,DCLG,14/11/2016,Telephone call costs,Finance,DAISY CORPORATE SERVICES LTD,,Large,,221481042,5106224592,IT Managed / Outsourced Services,3mth ext call charges to 30/9/16,BB9 5SR,"6,750.17",
Communities & Local Government,DCLG,14/11/2016,Telephone call costs,Finance,DAISY CORPORATE SERVICES LTD,,Large,,221481042,5106224594,IT Managed / Outsourced Services,3mth ext call charges to 30/9/16,BB9 5SR,"1,030.37",
Communities & Local Government,DCLG,14/11/2016,Telephone call costs,Finance,DAISY CORPORATE SERVICES LTD,,Large,,221481042,5106224607,IT Managed / Outsourced Services,3mth extension call charges to 31/12/16,BB9 5SR,"5,547.86",
Communities & Local Government,DCLG,14/11/2016,Training,Finance,KORN FERRY HAY GROUP (CSL),,Large,,,5106224564,Development and Training,Civil Service Training,SW1X 7HG,289,
Communities & Local Government,DCLG,14/11/2016,Training,Housing & Planning,R T P I CONFERENCES,,Medium,,504955154,5106224613,Development and Training,Civil Service Training,EC1V 1AW,449,
Communities & Local Government,DCLG,14/11/2016,Travel and Subsistence Account,Decentralisation and Local Growth,Employee Expenses,,,,,2100268919,Business Travel,Official Travel & Subsistence,,440.4,
Communities & Local Government,DCLG,15/11/2016,Advertising,"Strategy, Communications and Private Office",CARAT SCOTLAND,,Large,,519820302,5106224521,Advertising,Own your Own home Planning services ,EH1 3HU,817.09,
Communities & Local Government,DCLG,15/11/2016,Advertising,"Strategy, Communications and Private Office",TULLO MARSHALL WARREN LTD,,Medium,,,5106224475,Advertising,Right to Buy Marketing Contract 16/17,W1F 9NB,"2,576.05",
Communities & Local Government,DCLG,15/11/2016,Current (non AEF) Grants to Local Authorities,Local Government & Public Services,ADUR DC,,,,227472891,5000351777,,Doubling of Small Business Rates Relief,BN11 1HA,"21,793.00",Yes
Communities & Local Government,DCLG,15/11/2016,Current (non AEF) Grants to Local Authorities,Local Government & Public Services,ADUR DC,,,,227472891,5000351787,,Business Rates Multiplier Cap,BN11 1HA,"2,826.00",Yes
Communities & Local Government,DCLG,15/11/2016,Current (non AEF) Grants to Local Authorities,Local Government & Public Services,ADUR DC,,,,227472891,5000351791,,New Empty Property Relief,BN11 1HA,471,Yes
Communities & Local Government,DCLG,15/11/2016,Current (non AEF) Grants to Local Authorities,Local Government & Public Services,ALLERDALE BOROUGH COUNCIL,,,,218146780,5000351794,,Extended Transitional Relief for Small and Medium,CA14 3YJ,338,Yes
Communities & Local Government,DCLG,15/11/2016,Current (non AEF) Grants to Local Authorities,Local Government & Public Services,ALLERDALE BOROUGH COUNCIL,,,,218146780,5000351796,,Business Rates Multiplier Cap,CA14 3YJ,"5,535.00",Yes
Communities & Local Government,DCLG,15/11/2016,Current (non AEF) Grants to Local Authorities,Local Government & Public Services,ALLERDALE BOROUGH COUNCIL,,,,218146780,5000351799,,Small Business Rates Relief on Second Properties,CA14 3YJ,344,Yes
Communities & Local Government,DCLG,15/11/2016,Current (non AEF) Grants to Local Authorities,Local Government & Public Services,ALLERDALE BOROUGH COUNCIL,,,,218146780,5000351802,,Doubling of Small Business Rates Relief,CA14 3YJ,"60,504.00",Yes
Communities & Local Government,DCLG,15/11/2016,Current (non AEF) Grants to Local Authorities,Local Government & Public Services,ALLERDALE BOROUGH COUNCIL,,,,218146780,5000351805,,Long Term Empty Property Relief,CA14 3YJ,"1,000.00",Yes
Communities & Local Government,DCLG,15/11/2016,Current (non AEF) Grants to Local Authorities,Local Government & Public Services,AMBER VALLEY BC,,,,,5000351808,,Long Term Empty Property Relief,DE5 3BT,418,Yes
Communities & Local Government,DCLG,15/11/2016,Current (non AEF) Grants to Local Authorities,Local Government & Public Services,AMBER VALLEY BC,,,,,5000351814,,Business Rates Multiplier Cap,DE5 3BT,"3,909.00",Yes
Communities & Local Government,DCLG,15/11/2016,Current (non AEF) Grants to Local Authorities,Local Government & Public Services,AMBER VALLEY BC,,,,,5000351817,,Doubling of Small Business Rates Relief,DE5 3BT,"45,327.00",Yes
Communities & Local Government,DCLG,15/11/2016,Current (non AEF) Grants to Local Authorities,Local Government & Public Services,AMBER VALLEY BC,,,,,5000351820,,Extended Transitional Relief for Small and Medium,DE5 3BT,570,Yes
Communities & Local Government,DCLG,15/11/2016,Current (non AEF) Grants to Local Authorities,Local Government & Public Services,ARUN DC,,,,211217668,5000352500,,Doubling of Small Business Rates Relief,BN17 5LF,"57,344.00",Yes
Communities & Local Government,DCLG,15/11/2016,Current (non AEF) Grants to Local Authorities,Local Government & Public Services,ARUN DC,,,,211217668,5000352501,,Long Term Empty Property Relief,BN17 5LF,842,Yes
Communities & Local Government,DCLG,15/11/2016,Current (non AEF) Grants to Local Authorities,Local Government & Public Services,ARUN DC,,,,211217668,5000352502,,Business Rates Multiplier Cap,BN17 5LF,"6,142.00",Yes
Communities & Local Government,DCLG,15/11/2016,Current (non AEF) Grants to Local Authorities,Local Government & Public Services,ARUN DC,,,,211217668,5000352503,,Small Business Rates Relief on Second Properties,BN17 5LF,455,Yes
Communities & Local Government,DCLG,15/11/2016,Current (non AEF) Grants to Local Authorities,Local Government & Public Services,ASHFIELD DC,,,,235415296,5000351823,,Business Rates Multiplier Cap,NG17 8DA,"5,557.00",Yes
Communities & Local Government,DCLG,15/11/2016,Current (non AEF) Grants to Local Authorities,Local Government & Public Services,ASHFIELD DC,,,,235415296,5000351827,,New Empty Property Relief,NG17 8DA,845,Yes
Communities & Local Government,DCLG,15/11/2016,Current (non AEF) Grants to Local Authorities,Local Government & Public Services,ASHFIELD DC,,,,235415296,5000351833,,Doubling of Small Business Rates Relief,NG17 8DA,"33,296.00",Yes
Communities & Local Government,DCLG,15/11/2016,Current (non AEF) Grants to Local Authorities,Local Government & Public Services,ASHFIELD DC,,,,235415296,5000351836,,Long Term Empty Property Relief,NG17 8DA,338,Yes
Communities & Local Government,DCLG,15/11/2016,Current (non AEF) Grants to Local Authorities,Local Government & Public Services,ASHFORD BC,,,,229467071,5000352505,,Business Rates Multiplier Cap,TN23 1PL,"4,394.00",Yes
Communities & Local Government,DCLG,15/11/2016,Current (non AEF) Grants to Local Authorities,Local Government & Public Services,ASHFORD BC,,,,229467071,5000352506,,Doubling of Small Business Rates Relief,TN23 1PL,"44,808.00",Yes
Communities & Local Government,DCLG,15/11/2016,Current (non AEF) Grants to Local Authorities,Local Government & Public Services,ASHFORD BC,,,,229467071,5000352507,,New Empty Property Relief,TN23 1PL,286,Yes
Communities & Local Government,DCLG,15/11/2016,Current (non AEF) Grants to Local Authorities,Local Government & Public Services,ASHFORD BC,,,,229467071,5000352508,,Long Term Empty Property Relief,TN23 1PL,263,Yes
Communities & Local Government,DCLG,15/11/2016,Current (non AEF) Grants to Local Authorities,Local Government & Public Services,AVON FIRE AUTHORITY,,Large,,424872570,5000352311,,Business Rates Multiplier Cap,BS1 6EU,"12,272.00",Yes
Communities & Local Government,DCLG,15/11/2016,Current (non AEF) Grants to Local Authorities,Local Government & Public Services,AVON FIRE AUTHORITY,,Large,,424872570,5000352314,,Doubling of Small Business Rates Relief,BS1 6EU,"8,546.00",Yes
Communities & Local Government,DCLG,15/11/2016,Current (non AEF) Grants to Local Authorities,Local Government & Public Services,AYLESBURY VALE DC(HSG),,,,396710709,5000352510,,Business Rates Multiplier Cap,HP19 8FF,"5,219.00",Yes
Communities & Local Government,DCLG,15/11/2016,Current (non AEF) Grants to Local Authorities,Local Government & Public Services,AYLESBURY VALE DC(HSG),,,,396710709,5000352511,,New Empty Property Relief,HP19 8FF,"3,583.00",Yes
Communities & Local Government,DCLG,15/11/2016,Current (non AEF) Grants to Local Authorities,Local Government & Public Services,AYLESBURY VALE DC(HSG),,,,396710709,5000352512,,Long Term Empty Property Relief,HP19 8FF,465,Yes
Communities & Local Government,DCLG,15/11/2016,Current (non AEF) Grants to Local Authorities,Local Government & Public Services,AYLESBURY VALE DC(HSG),,,,396710709,5000352513,,Extended Transitional Relief for Small and Medium,HP19 8FF,282,Yes
Communities & Local Government,DCLG,15/11/2016,Current (non AEF) Grants to Local Authorities,Local Government & Public Services,AYLESBURY VALE DC(HSG),,,,396710709,5000352514,,Small Business Rates Relief on Second Properties,HP19 8FF,637,Yes
Communities & Local Government,DCLG,15/11/2016,Current (non AEF) Grants to Local Authorities,Local Government & Public Services,AYLESBURY VALE DC(HSG),,,,396710709,5000352515,,Doubling of Small Business Rates Relief,HP19 8FF,"56,152.00",Yes
Communities & Local Government,DCLG,15/11/2016,Current (non AEF) Grants to Local Authorities,Local Government & Public Services,BABERGH DC,,,,232618405,5000352516,,Long Term Empty Property Relief,IP7 6SJ,606,Yes
Communities & Local Government,DCLG,15/11/2016,Current (non AEF) Grants to Local Authorities,Local Government & Public Services,BABERGH DC,,,,232618405,5000352518,,Business Rates Multiplier Cap,IP7 6SJ,"2,735.00",Yes
Communities & Local Government,DCLG,15/11/2016,Current (non AEF) Grants to Local Authorities,Local Government & Public Services,BABERGH DC,,,,232618405,5000352519,,Doubling of Small Business Rates Relief,IP7 6SJ,"39,542.00",Yes
Communities & Local Government,DCLG,15/11/2016,Current (non AEF) Grants to Local Authorities,Local Government & Public Services,BARKING & DAGENHAM LB (HSG),,,,217142293,5000352522,,Doubling of Small Business Rates Relief,RM10 7BY,"34,180.00",Yes
Communities & Local Government,DCLG,15/11/2016,Current (non AEF) Grants to Local Authorities,Local Government & Public Services,BARKING & DAGENHAM LB (HSG),,,,217142293,5000352523,,Long Term Empty Property Relief,RM10 7BY,"4,609.00",Yes
Communities & Local Government,DCLG,15/11/2016,Current (non AEF) Grants to Local Authorities,Local Government & Public Services,BARKING & DAGENHAM LB (HSG),,,,217142293,5000352524,,Business Rates Multiplier Cap,RM10 7BY,"63,449.00",Yes
Communities & Local Government,DCLG,15/11/2016,Current (non AEF) Grants to Local Authorities,Local Government & Public Services,BARNSLEY MBC,,,,211178595,5000351847,,Doubling of Small Business Rates Relief,S70 2AQ,"103,705.00",Yes
Communities & Local Government,DCLG,15/11/2016,Current (non AEF) Grants to Local Authorities,Local Government & Public Services,BARNSLEY MBC,,,,211178595,5000351850,,Long Term Empty Property Relief,S70 2AQ,575,Yes
Communities & Local Government,DCLG,15/11/2016,Current (non AEF) Grants to Local Authorities,Local Government & Public Services,BARNSLEY MBC,,,,211178595,5000351853,,Business Rates Multiplier Cap,S70 2AQ,"63,236.00",Yes
Communities & Local Government,DCLG,15/11/2016,Current (non AEF) Grants to Local Authorities,Local Government & Public Services,BARNSLEY MBC,,,,211178595,5000351855,,Extended Transitional Relief for Small and Medium,S70 2AQ,848,Yes
Communities & Local Government,DCLG,15/11/2016,Current (non AEF) Grants to Local Authorities,Local Government & Public Services,BARROW BC,,,,295632913,5000351868,,Business Rates Multiplier Cap,LA14 2LD,"3,958.00",Yes
Communities & Local Government,DCLG,15/11/2016,Current (non AEF) Grants to Local Authorities,Local Government & Public Services,BARROW BC,,,,295632913,5000351871,,Doubling of Small Business Rates Relief,LA14 2LD,"23,577.00",Yes
Communities & Local Government,DCLG,15/11/2016,Current (non AEF) Grants to Local Authorities,Local Government & Public Services,BASILDON BOROUGH COUNCIL,,,,,5000351875,,Business Rates Multiplier Cap,SS14 0DF,"8,438.00",Yes
Communities & Local Government,DCLG,15/11/2016,Current (non AEF) Grants to Local Authorities,Local Government & Public Services,BASILDON BOROUGH COUNCIL,,,,,5000351878,,Doubling of Small Business Rates Relief,SS14 0DF,"43,287.00",Yes
Communities & Local Government,DCLG,15/11/2016,Current (non AEF) Grants to Local Authorities,Local Government & Public Services,BASINGSTOKE & DEANE BC,,,,228328506,5000351881,,Doubling of Small Business Rates Relief,RG21 2AJ,"28,571.00",Yes
Communities & Local Government,DCLG,15/11/2016,Current (non AEF) Grants to Local Authorities,Local Government & Public Services,BASINGSTOKE & DEANE BC,,,,228328506,5000351884,,Business Rates Multiplier Cap,RG21 2AJ,"4,236.00",Yes
Communities & Local Government,DCLG,15/11/2016,Current (non AEF) Grants to Local Authorities,Local Government & Public Services,BASINGSTOKE & DEANE BC,,,,228328506,5000351890,,Long Term Empty Property Relief,RG21 2AJ,"2,545.00",Yes
Communities & Local Government,DCLG,15/11/2016,Current (non AEF) Grants to Local Authorities,Local Government & Public Services,BASINGSTOKE & DEANE BC,,,,228328506,5000351893,,Small Business Rates Relief on Second Properties,RG21 2AJ,576,Yes
Communities & Local Government,DCLG,15/11/2016,Current (non AEF) Grants to Local Authorities,Local Government & Public Services,BASSETLAW DC (HSG),,,,,5000352525,,Business Rates Multiplier Cap,S80 2AH,"5,822.00",Yes
Communities & Local Government,DCLG,15/11/2016,Current (non AEF) Grants to Local Authorities,Local Government & Public Services,BASSETLAW DC (HSG),,,,,5000352526,,New Empty Property Relief,S80 2AH,"2,609.00",Yes
Communities & Local Government,DCLG,15/11/2016,Current (non AEF) Grants to Local Authorities,Local Government & Public Services,BASSETLAW DC (HSG),,,,,5000352527,,Long Term Empty Property Relief,S80 2AH,563,Yes
Communities & Local Government,DCLG,15/11/2016,Current (non AEF) Grants to Local Authorities,Local Government & Public Services,BASSETLAW DC (HSG),,,,,5000352528,,Extended Transitional Relief for Small and Medium,S80 2AH,401,Yes
Communities & Local Government,DCLG,15/11/2016,Current (non AEF) Grants to Local Authorities,Local Government & Public Services,BASSETLAW DC (HSG),,,,,5000352529,,Small Business Rates Relief on Second Properties,S80 2AH,558,Yes
Communities & Local Government,DCLG,15/11/2016,Current (non AEF) Grants to Local Authorities,Local Government & Public Services,BASSETLAW DC (HSG),,,,,5000352530,,Doubling of Small Business Rates Relief,S80 2AH,"44,694.00",Yes
Communities & Local Government,DCLG,15/11/2016,Current (non AEF) Grants to Local Authorities,Local Government & Public Services,BATH & NE SOMERSET DC (HSG),,,,214502499,5000352532,,Small Business Rates Relief on Second Properties,BA1 5AW,315,Yes
Communities & Local Government,DCLG,15/11/2016,Current (non AEF) Grants to Local Authorities,Local Government & Public Services,BATH & NE SOMERSET DC (HSG),,,,214502499,5000352533,,Doubling of Small Business Rates Relief,BA1 5AW,"85,108.00",Yes
Communities & Local Government,DCLG,15/11/2016,Current (non AEF) Grants to Local Authorities,Local Government & Public Services,BATH & NE SOMERSET DC (HSG),,,,214502499,5000352534,,Business Rates Multiplier Cap,BA1 5AW,"27,873.00",Yes
Communities & Local Government,DCLG,15/11/2016,Current (non AEF) Grants to Local Authorities,Local Government & Public Services,BATH & NE SOMERSET DC (HSG),,,,214502499,5000352535,,Long Term Empty Property Relief,BA1 5AW,"1,967.00",Yes
Communities & Local Government,DCLG,15/11/2016,Current (non AEF) Grants to Local Authorities,Local Government & Public Services,BEDFORD UNITARY AUTHORITY,,,,225682160,5000352401,,Business Rates Multiplier Cap,MK40 1SJ,"36,630.00",Yes
Communities & Local Government,DCLG,15/11/2016,Current (non AEF) Grants to Local Authorities,Local Government & Public Services,BEDFORD UNITARY AUTHORITY,,,,225682160,5000352407,,Doubling of Small Business Rates Relief,MK40 1SJ,"68,202.00",Yes
Communities & Local Government,DCLG,15/11/2016,Current (non AEF) Grants to Local Authorities,Local Government & Public Services,BEDFORD UNITARY AUTHORITY,,,,225682160,5000352410,,New Empty Property Relief,MK40 1SJ,"2,872.00",Yes
Communities & Local Government,DCLG,15/11/2016,Current (non AEF) Grants to Local Authorities,Local Government & Public Services,BEDFORD UNITARY AUTHORITY,,,,225682160,5000352413,,Long Term Empty Property Relief,MK40 1SJ,"1,284.00",Yes
Communities & Local Government,DCLG,15/11/2016,Current (non AEF) Grants to Local Authorities,Local Government & Public Services,BEDS & LUTON FIRE & RESCUE SERVICE,,Medium,,387821283,5000352128,,Extended Transitional Relief for Small and Medium,MK42 7NR,912,Yes
Communities & Local Government,DCLG,15/11/2016,Current (non AEF) Grants to Local Authorities,Local Government & Public Services,BEDS & LUTON FIRE & RESCUE SERVICE,,Medium,,387821283,5000352137,,Business Rates Multiplier Cap,MK42 7NR,"6,640.00",Yes
Communities & Local Government,DCLG,15/11/2016,Current (non AEF) Grants to Local Authorities,Local Government & Public Services,BEDS & LUTON FIRE & RESCUE SERVICE,,Medium,,387821283,5000352140,,Doubling of Small Business Rates Relief,MK42 7NR,"4,712.00",Yes
Communities & Local Government,DCLG,15/11/2016,Current (non AEF) Grants to Local Authorities,Local Government & Public Services,BEXLEY LB (RSG),,,,,5000351792,,Doubling of Small Business Rates Relief,DA8 1TL,"51,501.00",Yes
Communities & Local Government,DCLG,15/11/2016,Current (non AEF) Grants to Local Authorities,Local Government & Public Services,BEXLEY LB (RSG),,,,,5000351803,,Business Rates Multiplier Cap,DA8 1TL,"43,416.00",Yes
Communities & Local Government,DCLG,15/11/2016,Current (non AEF) Grants to Local Authorities,Local Government & Public Services,BIRMINGHAM CITY CNCL,,,,213780559,5000351896,,Business Rates Multiplier Cap,B2 2AJ,"408,803.00",Yes
Communities & Local Government,DCLG,15/11/2016,Current (non AEF) Grants to Local Authorities,Local Government & Public Services,BIRMINGHAM CITY CNCL,,,,213780559,5000351899,,Doubling of Small Business Rates Relief,B2 2AJ,"534,783.00",Yes
Communities & Local Government,DCLG,15/11/2016,Current (non AEF) Grants to Local Authorities,Local Government & Public Services,BLABY DC (HSG),,,,,5000352536,,Doubling of Small Business Rates Relief,LE9 5EP,"21,341.00",Yes
Communities & Local Government,DCLG,15/11/2016,Current (non AEF) Grants to Local Authorities,Local Government & Public Services,BLABY DC (HSG),,,,,5000352537,,Business Rates Multiplier Cap,LE9 5EP,"3,880.00",Yes
Communities & Local Government,DCLG,15/11/2016,Current (non AEF) Grants to Local Authorities,Local Government & Public Services,BLACKBURN WITH DARWEN BC,,,,,5000351902,,Business Rates Multiplier Cap,BB1 7DY,"49,301.00",Yes
Communities & Local Government,DCLG,15/11/2016,Current (non AEF) Grants to Local Authorities,Local Government & Public Services,BLACKBURN WITH DARWEN BC,,,,,5000351905,,Doubling of Small Business Rates Relief,BB1 7DY,"113,289.00",Yes
Communities & Local Government,DCLG,15/11/2016,Current (non AEF) Grants to Local Authorities,Local Government & Public Services,BLACKBURN WITH DARWEN BC,,,,,5000351908,,New Empty Property Relief,BB1 7DY,"4,142.00",Yes
Communities & Local Government,DCLG,15/11/2016,Current (non AEF) Grants to Local Authorities,Local Government & Public Services,BLACKBURN WITH DARWEN BC,,,,,5000351911,,Long Term Empty Property Relief,BB1 7DY,"6,214.00",Yes
Communities & Local Government,DCLG,15/11/2016,Current (non AEF) Grants to Local Authorities,Local Government & Public Services,BLACKBURN WITH DARWEN BC,,,,,5000351914,,Small Business Rates Relief on Second Properties,BB1 7DY,"1,243.00",Yes
Communities & Local Government,DCLG,15/11/2016,Current (non AEF) Grants to Local Authorities,Local Government & Public Services,BLACKBURN WITH DARWEN BC,,,,,5000351917,,Extended Transitional Relief for Small and Medium,BB1 7DY,414,Yes
Communities & Local Government,DCLG,15/11/2016,Current (non AEF) Grants to Local Authorities,Local Government & Public Services,BLACKPOOL BC,,,,,5000351920,,Doubling of Small Business Rates Relief,FY1 1NA,"128,077.00",Yes
Communities & Local Government,DCLG,15/11/2016,Current (non AEF) Grants to Local Authorities,Local Government & Public Services,BLACKPOOL BC,,,,,5000351923,,Long Term Empty Property Relief,FY1 1NA,"3,550.00",Yes
Communities & Local Government,DCLG,15/11/2016,Current (non AEF) Grants to Local Authorities,Local Government & Public Services,BLACKPOOL BC,,,,,5000351932,,Business Rates Multiplier Cap,FY1 1NA,"52,258.00",Yes
Communities & Local Government,DCLG,15/11/2016,Current (non AEF) Grants to Local Authorities,Local Government & Public Services,BOLSOVER DC,,,,235516523,5000351934,,Business Rates Multiplier Cap,S43 4JY,"4,637.00",Yes
Communities & Local Government,DCLG,15/11/2016,Current (non AEF) Grants to Local Authorities,Local Government & Public Services,BOLSOVER DC,,,,235516523,5000351940,,Doubling of Small Business Rates Relief,S43 4JY,"22,949.00",Yes
Communities & Local Government,DCLG,15/11/2016,Current (non AEF) Grants to Local Authorities,Local Government & Public Services,BOLTON MBC,,,,,5000351943,,Extended Transitional Relief for Small and Medium,BL1 1RU,"2,486.00",Yes
Communities & Local Government,DCLG,15/11/2016,Current (non AEF) Grants to Local Authorities,Local Government & Public Services,BOLTON MBC,,,,,5000351946,,Business Rates Multiplier Cap,BL1 1RU,"77,576.00",Yes
Communities & Local Government,DCLG,15/11/2016,Current (non AEF) Grants to Local Authorities,Local Government & Public Services,BOLTON MBC,,,,,5000351949,,Doubling of Small Business Rates Relief,BL1 1RU,"153,262.00",Yes
Communities & Local Government,DCLG,15/11/2016,Current (non AEF) Grants to Local Authorities,Local Government & Public Services,BOLTON MBC,,,,,5000351955,,Long Term Empty Property Relief,BL1 1RU,"7,498.00",Yes
Communities & Local Government,DCLG,15/11/2016,Current (non AEF) Grants to Local Authorities,Local Government & Public Services,BOSTON BC,,,,236417713,5000352538,,Doubling of Small Business Rates Relief,PE21 8QR,"26,347.00",Yes
Communities & Local Government,DCLG,15/11/2016,Current (non AEF) Grants to Local Authorities,Local Government & Public Services,BOSTON BC,,,,236417713,5000352539,,Business Rates Multiplier Cap,PE21 8QR,"3,548.00",Yes
Communities & Local Government,DCLG,15/11/2016,Current (non AEF) Grants to Local Authorities,Local Government & Public Services,BOSTON BC,,,,236417713,5000352540,,Long Term Empty Property Relief,PE21 8QR,286,Yes
Communities & Local Government,DCLG,15/11/2016,Current (non AEF) Grants to Local Authorities,Local Government & Public Services,BOURNEMOUTH DC,,,,,5000351958,,Business Rates Multiplier Cap,BH2 6EB,"36,163.00",Yes
Communities & Local Government,DCLG,15/11/2016,Current (non AEF) Grants to Local Authorities,Local Government & Public Services,BOURNEMOUTH DC,,,,,5000351966,,Doubling of Small Business Rates Relief,BH2 6EB,"94,202.00",Yes
Communities & Local Government,DCLG,15/11/2016,Current (non AEF) Grants to Local Authorities,Local Government & Public Services,BOURNEMOUTH DC,,,,,5000351969,,Long Term Empty Property Relief,BH2 6EB,"2,013.00",Yes
Communities & Local Government,DCLG,15/11/2016,Current (non AEF) Grants to Local Authorities,Local Government & Public Services,BRACKNELL FOREST DC,,,,236184867,5000351975,,Business Rates Multiplier Cap,RG12 1AQ,"23,268.00",Yes
Communities & Local Government,DCLG,15/11/2016,Current (non AEF) Grants to Local Authorities,Local Government & Public Services,BRACKNELL FOREST DC,,,,236184867,5000351978,,Doubling of Small Business Rates Relief,RG12 1AQ,"20,711.00",Yes
Communities & Local Government,DCLG,15/11/2016,Current (non AEF) Grants to Local Authorities,Local Government & Public Services,BRACKNELL FOREST DC,,,,236184867,5000351981,,Long Term Empty Property Relief,RG12 1AQ,"2,071.00",Yes
Communities & Local Government,DCLG,15/11/2016,Current (non AEF) Grants to Local Authorities,Local Government & Public Services,BRACKNELL FOREST DC,,,,236184867,5000351984,,Small Business Rates Relief on Second Properties,RG12 1AQ,414,Yes
Communities & Local Government,DCLG,15/11/2016,Current (non AEF) Grants to Local Authorities,Local Government & Public Services,BRADFORD MBC,,,,,5000351987,,Business Rates Multiplier Cap,BD1 1HX,"157,114.00",Yes
Communities & Local Government,DCLG,15/11/2016,Current (non AEF) Grants to Local Authorities,Local Government & Public Services,BRADFORD MBC,,,,,5000351990,,Small Business Rates Relief on Second Properties,BD1 1HX,"2,486.00",Yes
Communities & Local Government,DCLG,15/11/2016,Current (non AEF) Grants to Local Authorities,Local Government & Public Services,BRADFORD MBC,,,,,5000351993,,Doubling of Small Business Rates Relief,BD1 1HX,"340,490.00",Yes
Communities & Local Government,DCLG,15/11/2016,Current (non AEF) Grants to Local Authorities,Local Government & Public Services,BRADFORD MBC,,,,,5000351996,,Long Term Empty Property Relief,BD1 1HX,"4,066.00",Yes
Communities & Local Government,DCLG,15/11/2016,Current (non AEF) Grants to Local Authorities,Local Government & Public Services,BRADFORD MBC,,,,,5000351999,,New Empty Property Relief,BD1 1HX,829,Yes
Communities & Local Government,DCLG,15/11/2016,Current (non AEF) Grants to Local Authorities,Local Government & Public Services,BRADFORD MBC,,,,,5000352002,,Extended Transitional Relief for Small and Medium,BD1 1HX,"1,035.00",Yes
Communities & Local Government,DCLG,15/11/2016,Current (non AEF) Grants to Local Authorities,Local Government & Public Services,BRAINTREE DC,,,,226941730,5000352542,,Doubling of Small Business Rates Relief,CM7 6HB,"55,810.00",Yes
Communities & Local Government,DCLG,15/11/2016,Current (non AEF) Grants to Local Authorities,Local Government & Public Services,BRAINTREE DC,,,,226941730,5000352543,,Business Rates Multiplier Cap,CM7 6HB,"4,795.00",Yes
Communities & Local Government,DCLG,15/11/2016,Current (non AEF) Grants to Local Authorities,Local Government & Public Services,BRAINTREE DC,,,,226941730,5000352544,,New Empty Property Relief,CM7 6HB,340,Yes
Communities & Local Government,DCLG,15/11/2016,Current (non AEF) Grants to Local Authorities,Local Government & Public Services,BRAINTREE DC,,,,226941730,5000352545,,Long Term Empty Property Relief,CM7 6HB,810,Yes
Communities & Local Government,DCLG,15/11/2016,Current (non AEF) Grants to Local Authorities,Local Government & Public Services,BRAINTREE DC,,,,226941730,5000352546,,Extended Transitional Relief for Small and Medium,CM7 6HB,406,Yes
Communities & Local Government,DCLG,15/11/2016,Current (non AEF) Grants to Local Authorities,Local Government & Public Services,BRECKLAND DC,,,,232611384,5000352547,,Doubling of Small Business Rates Relief,NR19 1EE,"50,638.00",Yes
Communities & Local Government,DCLG,15/11/2016,Current (non AEF) Grants to Local Authorities,Local Government & Public Services,BRECKLAND DC,,,,232611384,5000352548,,Long Term Empty Property Relief,NR19 1EE,616,Yes
Communities & Local Government,DCLG,15/11/2016,Current (non AEF) Grants to Local Authorities,Local Government & Public Services,BRECKLAND DC,,,,232611384,5000352550,,Business Rates Multiplier Cap,NR19 1EE,"5,483.00",Yes
Communities & Local Government,DCLG,15/11/2016,Current (non AEF) Grants to Local Authorities,Local Government & Public Services,BRENT LB (HSG),,,,,5000352553,,Doubling of Small Business Rates Relief,HA9 9HD,"56,881.00",Yes
Communities & Local Government,DCLG,15/11/2016,Current (non AEF) Grants to Local Authorities,Local Government & Public Services,BRENT LB (HSG),,,,,5000352554,,Long Term Empty Property Relief,HA9 9HD,"1,268.00",Yes
Communities & Local Government,DCLG,15/11/2016,Current (non AEF) Grants to Local Authorities,Local Government & Public Services,BRENT LB (HSG),,,,,5000352555,,Business Rates Multiplier Cap,HA9 9HD,"101,487.00",Yes
Communities & Local Government,DCLG,15/11/2016,Current (non AEF) Grants to Local Authorities,Local Government & Public Services,BRENT LB (HSG),,,,,5000352556,,New Empty Property Relief,HA9 9HD,507,Yes
Communities & Local Government,DCLG,15/11/2016,Current (non AEF) Grants to Local Authorities,Local Government & Public Services,BRENTWOOD BC,,,,227473188,5000352005,,Business Rates Multiplier Cap,CM15 8AY,"1,724.00",Yes
Communities & Local Government,DCLG,15/11/2016,Current (non AEF) Grants to Local Authorities,Local Government & Public Services,BRENTWOOD BC,,,,227473188,5000352008,,Doubling of Small Business Rates Relief,CM15 8AY,"20,289.00",Yes
Communities & Local Government,DCLG,15/11/2016,Current (non AEF) Grants to Local Authorities,Local Government & Public Services,BRENTWOOD BC,,,,227473188,5000352011,,Long Term Empty Property Relief,CM15 8AY,609,Yes
Communities & Local Government,DCLG,15/11/2016,Current (non AEF) Grants to Local Authorities,Local Government & Public Services,BRIGHTON & HOVE CITY COUNCIL,,Large,,228455218,5000352017,,Business Rates Multiplier Cap,BN3 2LS,"66,994.00",Yes
Communities & Local Government,DCLG,15/11/2016,Current (non AEF) Grants to Local Authorities,Local Government & Public Services,BRIGHTON & HOVE CITY COUNCIL,,Large,,228455218,5000352020,,Doubling of Small Business Rates Relief,BN3 2LS,"138,558.00",Yes
Communities & Local Government,DCLG,15/11/2016,Current (non AEF) Grants to Local Authorities,Local Government & Public Services,BRIGHTON & HOVE CITY COUNCIL,,Large,,228455218,5000352023,,New Empty Property Relief,BN3 2LS,370,Yes
Communities & Local Government,DCLG,15/11/2016,Current (non AEF) Grants to Local Authorities,Local Government & Public Services,BRIGHTON & HOVE CITY COUNCIL,,Large,,228455218,5000352026,,Long Term Empty Property Relief,BN3 2LS,"5,355.00",Yes
Communities & Local Government,DCLG,15/11/2016,Current (non AEF) Grants to Local Authorities,Local Government & Public Services,BRIGHTON & HOVE CITY COUNCIL,,Large,,228455218,5000352029,,Small Business Rates Relief on Second Properties,BN3 2LS,"1,311.00",Yes
Communities & Local Government,DCLG,15/11/2016,Current (non AEF) Grants to Local Authorities,Local Government & Public Services,BRISTOL CITY CNCL (HSG),,,,211103882,5000352558,,Doubling of Small Business Rates Relief,BS99 7BL,"180,002.00",Yes
Communities & Local Government,DCLG,15/11/2016,Current (non AEF) Grants to Local Authorities,Local Government & Public Services,BRISTOL CITY CNCL (HSG),,,,211103882,5000352559,,Long Term Empty Property Relief,BS99 7BL,"6,673.00",Yes
Communities & Local Government,DCLG,15/11/2016,Current (non AEF) Grants to Local Authorities,Local Government & Public Services,BRISTOL CITY CNCL (HSG),,,,211103882,5000352560,,Extended Transitional Relief for Small and Medium,BS99 7BL,"1,282.00",Yes
Communities & Local Government,DCLG,15/11/2016,Current (non AEF) Grants to Local Authorities,Local Government & Public Services,BRISTOL CITY CNCL (HSG),,,,211103882,5000352561,,Small Business Rates Relief on Second Properties,BS99 7BL,"2,690.00",Yes
Communities & Local Government,DCLG,15/11/2016,Current (non AEF) Grants to Local Authorities,Local Government & Public Services,BRISTOL CITY CNCL (HSG),,,,211103882,5000352562,,Business Rates Multiplier Cap,BS99 7BL,"123,227.00",Yes
Communities & Local Government,DCLG,15/11/2016,Current (non AEF) Grants to Local Authorities,Local Government & Public Services,BROADLAND DC,,Large,,219737785,5000352566,,Business Rates Multiplier Cap,NR7 0DU,"3,750.00",Yes
Communities & Local Government,DCLG,15/11/2016,Current (non AEF) Grants to Local Authorities,Local Government & Public Services,BROADLAND DC,,Large,,219737785,5000352567,,Doubling of Small Business Rates Relief,NR7 0DU,"45,768.00",Yes
Communities & Local Government,DCLG,15/11/2016,Current (non AEF) Grants to Local Authorities,Local Government & Public Services,BROMLEY LB,,,,211331954,5000352035,,Business Rates Multiplier Cap,BR1 3UH,"42,310.00",Yes
Communities & Local Government,DCLG,15/11/2016,Current (non AEF) Grants to Local Authorities,Local Government & Public Services,BROMLEY LB,,,,211331954,5000352038,,Doubling of Small Business Rates Relief,BR1 3UH,"57,032.00",Yes
Communities & Local Government,DCLG,15/11/2016,Current (non AEF) Grants to Local Authorities,Local Government & Public Services,BROMLEY LB,,,,211331954,5000352041,,Long Term Empty Property Relief,BR1 3UH,630,Yes
Communities & Local Government,DCLG,15/11/2016,Current (non AEF) Grants to Local Authorities,Local Government & Public Services,BROMLEY LB,,,,211331954,5000352044,,Extended Transitional Relief for Small and Medium,BR1 3UH,438,Yes
Communities & Local Government,DCLG,15/11/2016,Current (non AEF) Grants to Local Authorities,Local Government & Public Services,BROMSGROVE DC,,,,236654745,5000352569,,Doubling of Small Business Rates Relief,B60 1AA,"39,777.00",Yes
Communities & Local Government,DCLG,15/11/2016,Current (non AEF) Grants to Local Authorities,Local Government & Public Services,BROMSGROVE DC,,,,236654745,5000352570,,New Empty Property Relief,B60 1AA,873,Yes
Communities & Local Government,DCLG,15/11/2016,Current (non AEF) Grants to Local Authorities,Local Government & Public Services,BROMSGROVE DC,,,,236654745,5000352571,,Long Term Empty Property Relief,B60 1AA,496,Yes
Communities & Local Government,DCLG,15/11/2016,Current (non AEF) Grants to Local Authorities,Local Government & Public Services,BROMSGROVE DC,,,,236654745,5000352573,,Business Rates Multiplier Cap,B60 1AA,"2,322.00",Yes
Communities & Local Government,DCLG,15/11/2016,Current (non AEF) Grants to Local Authorities,Local Government & Public Services,BROXBOURNE BC,,Public Bodies,,239931918,5000352047,,Doubling of Small Business Rates Relief,EN8 9XG,"25,030.00",Yes
Communities & Local Government,DCLG,15/11/2016,Current (non AEF) Grants to Local Authorities,Local Government & Public Services,BROXBOURNE BC,,Public Bodies,,239931918,5000352050,,Business Rates Multiplier Cap,EN8 9XG,"3,766.00",Yes
Communities & Local Government,DCLG,15/11/2016,Current (non AEF) Grants to Local Authorities,Local Government & Public Services,BROXTOWE BC,,,,239877640,5000352054,,Doubling of Small Business Rates Relief,NG9 1AB,"29,081.00",Yes
Communities & Local Government,DCLG,15/11/2016,Current (non AEF) Grants to Local Authorities,Local Government & Public Services,BROXTOWE BC,,,,239877640,5000352057,,Business Rates Multiplier Cap,NG9 1AB,"3,827.00",Yes
Communities & Local Government,DCLG,15/11/2016,Current (non AEF) Grants to Local Authorities,Local Government & Public Services,BUCKINGHAMSHIRE CC,,,,293750923,5000352060,,Business Rates Multiplier Cap,HP20 1UD,"50,108.00",Yes
Communities & Local Government,DCLG,15/11/2016,Current (non AEF) Grants to Local Authorities,Local Government & Public Services,BUCKINGHAMSHIRE CC,,,,293750923,5000352063,,Doubling of Small Business Rates Relief,HP20 1UD,"30,883.00",Yes
Communities & Local Government,DCLG,15/11/2016,Current (non AEF) Grants to Local Authorities,Local Government & Public Services,BUCKINGHAMSHIRE CC,,,,293750923,5000352072,,New Empty Property Relief,HP20 1UD,806,Yes
Communities & Local Government,DCLG,15/11/2016,Current (non AEF) Grants to Local Authorities,Local Government & Public Services,BUCKS & MILTON KEYNES FIRE AUTH,,Public Bodies,,423679463,5000351933,,Business Rates Multiplier Cap,HP20 1BD,"5,958.00",Yes
Communities & Local Government,DCLG,15/11/2016,Current (non AEF) Grants to Local Authorities,Local Government & Public Services,BUCKS & MILTON KEYNES FIRE AUTH,,Public Bodies,,423679463,5000351936,,Doubling of Small Business Rates Relief,HP20 1BD,"4,959.00",Yes
Communities & Local Government,DCLG,15/11/2016,Current (non AEF) Grants to Local Authorities,Local Government & Public Services,BURNLEY BC,,,,229413281,5000352078,,Long Term Empty Property Relief,BB11 1JA,845,Yes
Communities & Local Government,DCLG,15/11/2016,Current (non AEF) Grants to Local Authorities,Local Government & Public Services,BURNLEY BC,,,,229413281,5000352081,,Extended Transitional Relief for Small and Medium,BB11 1JA,845,Yes
Communities & Local Government,DCLG,15/11/2016,Current (non AEF) Grants to Local Authorities,Local Government & Public Services,BURNLEY BC,,,,229413281,5000352084,,Small Business Rates Relief on Second Properties,BB11 1JA,422,Yes
Communities & Local Government,DCLG,15/11/2016,Current (non AEF) Grants to Local Authorities,Local Government & Public Services,BURNLEY BC,,,,229413281,5000352087,,Business Rates Multiplier Cap,BB11 1JA,"5,212.00",Yes
Communities & Local Government,DCLG,15/11/2016,Current (non AEF) Grants to Local Authorities,Local Government & Public Services,BURNLEY BC,,,,229413281,5000352090,,New Empty Property Relief,BB11 1JA,845,Yes
Communities & Local Government,DCLG,15/11/2016,Current (non AEF) Grants to Local Authorities,Local Government & Public Services,BURNLEY BC,,,,229413281,5000352093,,Doubling of Small Business Rates Relief,BB11 1JA,"47,433.00",Yes
Communities & Local Government,DCLG,15/11/2016,Current (non AEF) Grants to Local Authorities,Local Government & Public Services,BURY MBC,,,,,5000352096,,Extended Transitional Relief for Small and Medium,BL9 0SW,453,Yes
Communities & Local Government,DCLG,15/11/2016,Current (non AEF) Grants to Local Authorities,Local Government & Public Services,BURY MBC,,,,,5000352103,,Business Rates Multiplier Cap,BL9 0SW,"39,345.00",Yes
Communities & Local Government,DCLG,15/11/2016,Current (non AEF) Grants to Local Authorities,Local Government & Public Services,BURY MBC,,,,,5000352106,,Doubling of Small Business Rates Relief,BL9 0SW,"101,686.00",Yes
Communities & Local Government,DCLG,15/11/2016,Current (non AEF) Grants to Local Authorities,Local Government & Public Services,CALDERDALE MBC,,,,,5000352109,,Extended Transitional Relief for Small and Medium,HX1 1YP,539,Yes
Communities & Local Government,DCLG,15/11/2016,Current (non AEF) Grants to Local Authorities,Local Government & Public Services,CALDERDALE MBC,,,,,5000352112,,Small Business Rates Relief on Second Properties,HX1 1YP,"2,071.00",Yes
Communities & Local Government,DCLG,15/11/2016,Current (non AEF) Grants to Local Authorities,Local Government & Public Services,CALDERDALE MBC,,,,,5000352115,,Business Rates Multiplier Cap,HX1 1YP,"47,329.00",Yes
Communities & Local Government,DCLG,15/11/2016,Current (non AEF) Grants to Local Authorities,Local Government & Public Services,CALDERDALE MBC,,,,,5000352118,,Doubling of Small Business Rates Relief,HX1 1YP,"141,320.00",Yes
Communities & Local Government,DCLG,15/11/2016,Current (non AEF) Grants to Local Authorities,Local Government & Public Services,CAMBRIDGE CITY COUNCIL,,,,210357534,5000352121,,New Empty Property Relief,CB1 0JH,"1,691.00",Yes
Communities & Local Government,DCLG,15/11/2016,Current (non AEF) Grants to Local Authorities,Local Government & Public Services,CAMBRIDGE CITY COUNCIL,,,,210357534,5000352124,,Long Term Empty Property Relief,CB1 0JH,"3,382.00",Yes
Communities & Local Government,DCLG,15/11/2016,Current (non AEF) Grants to Local Authorities,Local Government & Public Services,CAMBRIDGE CITY COUNCIL,,,,210357534,5000352127,,Extended Transitional Relief for Small and Medium,CB1 0JH,867,Yes
Communities & Local Government,DCLG,15/11/2016,Current (non AEF) Grants to Local Authorities,Local Government & Public Services,CAMBRIDGE CITY COUNCIL,,,,210357534,5000352130,,Business Rates Multiplier Cap,CB1 0JH,"7,412.00",Yes
Communities & Local Government,DCLG,15/11/2016,Current (non AEF) Grants to Local Authorities,Local Government & Public Services,CAMBRIDGE CITY COUNCIL,,,,210357534,5000352133,,Doubling of Small Business Rates Relief,CB1 0JH,"24,127.00",Yes
Communities & Local Government,DCLG,15/11/2016,Current (non AEF) Grants to Local Authorities,Local Government & Public Services,CAMBRIDGESHIRE COUNTY CNCL,,,,219047347,5000352136,,Doubling of Small Business Rates Relief,CB3 0AP,"42,326.00",Yes
Communities & Local Government,DCLG,15/11/2016,Current (non AEF) Grants to Local Authorities,Local Government & Public Services,CAMBRIDGESHIRE COUNTY CNCL,,,,219047347,5000352138,,Long Term Empty Property Relief,CB3 0AP,865,Yes
Communities & Local Government,DCLG,15/11/2016,Current (non AEF) Grants to Local Authorities,Local Government & Public Services,CAMBRIDGESHIRE COUNTY CNCL,,,,219047347,5000352141,,Extended Transitional Relief for Small and Medium,CB3 0AP,360,Yes
Communities & Local Government,DCLG,15/11/2016,Current (non AEF) Grants to Local Authorities,Local Government & Public Services,CAMBRIDGESHIRE COUNTY CNCL,,,,219047347,5000352144,,Small Business Rates Relief on Second Properties,CB3 0AP,391,Yes
Communities & Local Government,DCLG,15/11/2016,Current (non AEF) Grants to Local Authorities,Local Government & Public Services,CAMBRIDGESHIRE COUNTY CNCL,,,,219047347,5000352147,,Business Rates Multiplier Cap,CB3 0AP,"73,922.00",Yes
Communities & Local Government,DCLG,15/11/2016,Current (non AEF) Grants to Local Authorities,Local Government & Public Services,CAMBRIDGESHIRE COUNTY CNCL,,,,219047347,5000352150,,New Empty Property Relief,CB3 0AP,691,Yes
Communities & Local Government,DCLG,15/11/2016,Current (non AEF) Grants to Local Authorities,Local Government & Public Services,CAMBS & PETERBOROUGH FIRE AUTHORITY,,,,235999737,5000352053,,Business Rates Multiplier Cap,PE29 2NA,"7,020.00",Yes
Communities & Local Government,DCLG,15/11/2016,Current (non AEF) Grants to Local Authorities,Local Government & Public Services,CAMBS & PETERBOROUGH FIRE AUTHORITY,,,,235999737,5000352056,,Doubling of Small Business Rates Relief,PE29 2NA,"6,039.00",Yes
Communities & Local Government,DCLG,15/11/2016,Current (non AEF) Grants to Local Authorities,Local Government & Public Services,CAMDEN LB,,,,211651836,5000352153,,Doubling of Small Business Rates Relief,WC1H 8NG,"37,878.00",Yes
Communities & Local Government,DCLG,15/11/2016,Current (non AEF) Grants to Local Authorities,Local Government & Public Services,CAMDEN LB,,,,211651836,5000352156,,Extended Transitional Relief for Small and Medium,WC1H 8NG,"2,290.00",Yes
Communities & Local Government,DCLG,15/11/2016,Current (non AEF) Grants to Local Authorities,Local Government & Public Services,CAMDEN LB,,,,211651836,5000352159,,Business Rates Multiplier Cap,WC1H 8NG,"110,388.00",Yes
Communities & Local Government,DCLG,15/11/2016,Current (non AEF) Grants to Local Authorities,Local Government & Public Services,CANNOCK CHASE DC,,,,215064770,5000352162,,Long Term Empty Property Relief,WS11 1BG,904,Yes
Communities & Local Government,DCLG,15/11/2016,Current (non AEF) Grants to Local Authorities,Local Government & Public Services,CANNOCK CHASE DC,,,,215064770,5000352168,,Business Rates Multiplier Cap,WS11 1BG,"4,907.00",Yes
Communities & Local Government,DCLG,15/11/2016,Current (non AEF) Grants to Local Authorities,Local Government & Public Services,CANNOCK CHASE DC,,,,215064770,5000352171,,Doubling of Small Business Rates Relief,WS11 1BG,"43,802.00",Yes
Communities & Local Government,DCLG,15/11/2016,Current (non AEF) Grants to Local Authorities,Local Government & Public Services,CANTERBURY CITY CNCL,,,,,5000352574,,Extended Transitional Relief for Small and Medium,CT1 1YW,365,Yes
Communities & Local Government,DCLG,15/11/2016,Current (non AEF) Grants to Local Authorities,Local Government & Public Services,CANTERBURY CITY CNCL,,,,,5000352575,,Business Rates Multiplier Cap,CT1 1YW,"3,970.00",Yes
Communities & Local Government,DCLG,15/11/2016,Current (non AEF) Grants to Local Authorities,Local Government & Public Services,CANTERBURY CITY CNCL,,,,,5000352576,,Doubling of Small Business Rates Relief,CT1 1YW,"59,105.00",Yes
Communities & Local Government,DCLG,15/11/2016,Current (non AEF) Grants to Local Authorities,Local Government & Public Services,CANTERBURY CITY CNCL,,,,,5000352577,,Long Term Empty Property Relief,CT1 1YW,"1,568.00",Yes
Communities & Local Government,DCLG,15/11/2016,Current (non AEF) Grants to Local Authorities,Local Government & Public Services,CARLISLE CITY CNCL,,,,227471059,5000352579,,Business Rates Multiplier Cap,CA3 8QG,"4,977.00",Yes
Communities & Local Government,DCLG,15/11/2016,Current (non AEF) Grants to Local Authorities,Local Government & Public Services,CARLISLE CITY CNCL,,,,227471059,5000352580,,Doubling of Small Business Rates Relief,CA3 8QG,"44,444.00",Yes
Communities & Local Government,DCLG,15/11/2016,Current (non AEF) Grants to Local Authorities,Local Government & Public Services,CARLISLE CITY CNCL,,,,227471059,5000352582,,Long Term Empty Property Relief,CA3 8QG,"2,090.00",Yes
Communities & Local Government,DCLG,15/11/2016,Current (non AEF) Grants to Local Authorities,Local Government & Public Services,CARLISLE CITY CNCL,,,,227471059,5000352583,,Small Business Rates Relief on Second Properties,CA3 8QG,484,Yes
Communities & Local Government,DCLG,15/11/2016,Current (non AEF) Grants to Local Authorities,Local Government & Public Services,CARLISLE CITY CNCL,,,,227471059,5000352584,,Extended Transitional Relief for Small and Medium,CA3 8QG,271,Yes
Communities & Local Government,DCLG,15/11/2016,Current (non AEF) Grants to Local Authorities,Local Government & Public Services,CASTLE POINT BC,,Public Bodies,,228217931,5000352177,,Doubling of Small Business Rates Relief,SS7 1TF,"30,684.00",Yes
Communities & Local Government,DCLG,15/11/2016,Current (non AEF) Grants to Local Authorities,Local Government & Public Services,CASTLE POINT BC,,Public Bodies,,228217931,5000352186,,Business Rates Multiplier Cap,SS7 1TF,"2,466.00",Yes
Communities & Local Government,DCLG,15/11/2016,Current (non AEF) Grants to Local Authorities,Local Government & Public Services,CENTRAL BEDFORDSHIRE COUNCIL,,,,232624882,5000352353,,Extended Transitional Relief for Small and Medium,SG17 5TQ,577,Yes
Communities & Local Government,DCLG,15/11/2016,Current (non AEF) Grants to Local Authorities,Local Government & Public Services,CENTRAL BEDFORDSHIRE COUNCIL,,,,232624882,5000352356,,Business Rates Multiplier Cap,SG17 5TQ,"39,573.00",Yes
Communities & Local Government,DCLG,15/11/2016,Current (non AEF) Grants to Local Authorities,Local Government & Public Services,CENTRAL BEDFORDSHIRE COUNCIL,,,,232624882,5000352359,,Doubling of Small Business Rates Relief,SG17 5TQ,"98,877.00",Yes
Communities & Local Government,DCLG,15/11/2016,Current (non AEF) Grants to Local Authorities,Local Government & Public Services,CENTRAL BEDFORDSHIRE COUNCIL,,,,232624882,5000352362,,Long Term Empty Property Relief,SG17 5TQ,"1,750.00",Yes
Communities & Local Government,DCLG,15/11/2016,Current (non AEF) Grants to Local Authorities,Local Government & Public Services,CENTRAL BEDFORDSHIRE COUNCIL,,,,232624882,5000352365,,New Empty Property Relief,SG17 5TQ,"2,121.00",Yes
Communities & Local Government,DCLG,15/11/2016,Current (non AEF) Grants to Local Authorities,Local Government & Public Services,CHARNWOOD BC,,,,,5000352189,,Doubling of Small Business Rates Relief,LE11 2TU,"54,562.00",Yes
Communities & Local Government,DCLG,15/11/2016,Current (non AEF) Grants to Local Authorities,Local Government & Public Services,CHARNWOOD BC,,,,,5000352192,,Long Term Empty Property Relief,LE11 2TU,795,Yes
Communities & Local Government,DCLG,15/11/2016,Current (non AEF) Grants to Local Authorities,Local Government & Public Services,CHARNWOOD BC,,,,,5000352195,,Business Rates Multiplier Cap,LE11 2TU,"4,874.00",Yes
Communities & Local Government,DCLG,15/11/2016,Current (non AEF) Grants to Local Authorities,Local Government & Public Services,CHARNWOOD BC,,,,,5000352198,,New Empty Property Relief,LE11 2TU,"1,691.00",Yes
Communities & Local Government,DCLG,15/11/2016,Current (non AEF) Grants to Local Authorities,Local Government & Public Services,CHARNWOOD BC,,,,,5000352204,,Small Business Rates Relief on Second Properties,LE11 2TU,423,Yes
Communities & Local Government,DCLG,15/11/2016,Current (non AEF) Grants to Local Authorities,Local Government & Public Services,CHELMSFORD BC,,,,,5000352207,,Doubling of Small Business Rates Relief,CM1 1JE,"46,542.00",Yes
Communities & Local Government,DCLG,15/11/2016,Current (non AEF) Grants to Local Authorities,Local Government & Public Services,CHELMSFORD BC,,,,,5000352210,,Business Rates Multiplier Cap,CM1 1JE,"3,153.00",Yes
Communities & Local Government,DCLG,15/11/2016,Current (non AEF) Grants to Local Authorities,Local Government & Public Services,CHELMSFORD BC,,,,,5000352216,,Extended Transitional Relief for Small and Medium,CM1 1JE,579,Yes
Communities & Local Government,DCLG,15/11/2016,Current (non AEF) Grants to Local Authorities,Local Government & Public Services,CHELMSFORD BC,,,,,5000352219,,Long Term Empty Property Relief,CM1 1JE,"1,258.00",Yes
Communities & Local Government,DCLG,15/11/2016,Current (non AEF) Grants to Local Authorities,Local Government & Public Services,CHELTENHAM BC,,,,,5000352225,,Doubling of Small Business Rates Relief,GL50 1PW,"39,938.00",Yes
Communities & Local Government,DCLG,15/11/2016,Current (non AEF) Grants to Local Authorities,Local Government & Public Services,CHELTENHAM BC,,,,,5000352228,,Long Term Empty Property Relief,GL50 1PW,507,Yes
Communities & Local Government,DCLG,15/11/2016,Current (non AEF) Grants to Local Authorities,Local Government & Public Services,CHELTENHAM BC,,,,,5000352234,,Business Rates Multiplier Cap,GL50 1PW,"3,727.00",Yes
Communities & Local Government,DCLG,15/11/2016,Current (non AEF) Grants to Local Authorities,Local Government & Public Services,CHERWELL DC,,,,,5000352585,,Doubling of Small Business Rates Relief,OX15 4AA,"38,337.00",Yes
Communities & Local Government,DCLG,15/11/2016,Current (non AEF) Grants to Local Authorities,Local Government & Public Services,CHERWELL DC,,,,,5000352586,,Long Term Empty Property Relief,OX15 4AA,"1,010.00",Yes
Communities & Local Government,DCLG,15/11/2016,Current (non AEF) Grants to Local Authorities,Local Government & Public Services,CHERWELL DC,,,,,5000352588,,Business Rates Multiplier Cap,OX15 4AA,"9,034.00",Yes
Communities & Local Government,DCLG,15/11/2016,Current (non AEF) Grants to Local Authorities,Local Government & Public Services,CHESHIRE EAST COUNCIL,,Large,,,5000352368,,Business Rates Multiplier Cap,CW11 1HZ,"49,449.00",Yes
Communities & Local Government,DCLG,15/11/2016,Current (non AEF) Grants to Local Authorities,Local Government & Public Services,CHESHIRE EAST COUNCIL,,Large,,,5000352371,,Doubling of Small Business Rates Relief,CW11 1HZ,"185,764.00",Yes
Communities & Local Government,DCLG,15/11/2016,Current (non AEF) Grants to Local Authorities,Local Government & Public Services,CHESHIRE EAST COUNCIL,,Large,,,5000352374,,Long Term Empty Property Relief,CW11 1HZ,"4,063.00",Yes
Communities & Local Government,DCLG,15/11/2016,Current (non AEF) Grants to Local Authorities,Local Government & Public Services,CHESHIRE EAST COUNCIL,,Large,,,5000352377,,Extended Transitional Relief for Small and Medium,CW11 1HZ,294,Yes
Communities & Local Government,DCLG,15/11/2016,Current (non AEF) Grants to Local Authorities,Local Government & Public Services,CHESHIRE EAST COUNCIL,,Large,,,5000352380,,Small Business Rates Relief on Second Properties,CW11 1HZ,"1,952.00",Yes
Communities & Local Government,DCLG,15/11/2016,Current (non AEF) Grants to Local Authorities,Local Government & Public Services,CHESHIRE FIRE AUTHORITY,,,,424872737,5000352036,,Doubling of Small Business Rates Relief,CW7 2FQ,"8,676.00",Yes
Communities & Local Government,DCLG,15/11/2016,Current (non AEF) Grants to Local Authorities,Local Government & Public Services,CHESHIRE FIRE AUTHORITY,,,,424872737,5000352045,,Business Rates Multiplier Cap,CW7 2FQ,"10,625.00",Yes
Communities & Local Government,DCLG,15/11/2016,Current (non AEF) Grants to Local Authorities,Local Government & Public Services,CHESHIRE WEST & CHESTER UA,,Large,,215584383,5000352383,,Extended Transitional Relief for Small and Medium,CH1 2NP,414,Yes
Communities & Local Government,DCLG,15/11/2016,Current (non AEF) Grants to Local Authorities,Local Government & Public Services,CHESHIRE WEST & CHESTER UA,,Large,,215584383,5000352386,,Small Business Rates Relief on Second Properties,CH1 2NP,870,Yes
Communities & Local Government,DCLG,15/11/2016,Current (non AEF) Grants to Local Authorities,Local Government & Public Services,CHESHIRE WEST & CHESTER UA,,Large,,215584383,5000352389,,Business Rates Multiplier Cap,CH1 2NP,"61,440.00",Yes
Communities & Local Government,DCLG,15/11/2016,Current (non AEF) Grants to Local Authorities,Local Government & Public Services,CHESHIRE WEST & CHESTER UA,,Large,,215584383,5000352392,,New Empty Property Relief,CH1 2NP,455,Yes
Communities & Local Government,DCLG,15/11/2016,Current (non AEF) Grants to Local Authorities,Local Government & Public Services,CHESHIRE WEST & CHESTER UA,,Large,,215584383,5000352395,,Doubling of Small Business Rates Relief,CH1 2NP,"133,608.00",Yes
Communities & Local Government,DCLG,15/11/2016,Current (non AEF) Grants to Local Authorities,Local Government & Public Services,CHESHIRE WEST & CHESTER UA,,Large,,215584383,5000352398,,Long Term Empty Property Relief,CH1 2NP,"3,480.00",Yes
Communities & Local Government,DCLG,15/11/2016,Current (non AEF) Grants to Local Authorities,Local Government & Public Services,CHESTERFIELD BC,,,,232102301,5000352238,,Doubling of Small Business Rates Relief,S40 1LP,"48,110.00",Yes
Communities & Local Government,DCLG,15/11/2016,Current (non AEF) Grants to Local Authorities,Local Government & Public Services,CHESTERFIELD BC,,,,232102301,5000352241,,Business Rates Multiplier Cap,S40 1LP,"5,807.00",Yes
Communities & Local Government,DCLG,15/11/2016,Current (non AEF) Grants to Local Authorities,Local Government & Public Services,CHESTERFIELD BC,,,,232102301,5000352244,,Long Term Empty Property Relief,S40 1LP,"1,429.00",Yes
Communities & Local Government,DCLG,15/11/2016,Current (non AEF) Grants to Local Authorities,Local Government & Public Services,CHESTERFIELD BC,,,,232102301,5000352251,,Small Business Rates Relief on Second Properties,S40 1LP,261,Yes
Communities & Local Government,DCLG,15/11/2016,Current (non AEF) Grants to Local Authorities,Local Government & Public Services,CHICHESTER DC,,,,739800998,5000352589,,Doubling of Small Business Rates Relief,PO19 1TY,"55,077.00",Yes
Communities & Local Government,DCLG,15/11/2016,Current (non AEF) Grants to Local Authorities,Local Government & Public Services,CHICHESTER DC,,,,739800998,5000352590,,Business Rates Multiplier Cap,PO19 1TY,"3,870.00",Yes
Communities & Local Government,DCLG,15/11/2016,Current (non AEF) Grants to Local Authorities,Local Government & Public Services,CHICHESTER DC,,,,739800998,5000352591,,New Empty Property Relief,PO19 1TY,338,Yes
Communities & Local Government,DCLG,15/11/2016,Current (non AEF) Grants to Local Authorities,Local Government & Public Services,CHICHESTER DC,,,,739800998,5000352592,,Long Term Empty Property Relief,PO19 1TY,338,Yes
Communities & Local Government,DCLG,15/11/2016,Current (non AEF) Grants to Local Authorities,Local Government & Public Services,CHICHESTER DC,,,,739800998,5000352594,,Small Business Rates Relief on Second Properties,PO19 1TY,561,Yes
Communities & Local Government,DCLG,15/11/2016,Current (non AEF) Grants to Local Authorities,Local Government & Public Services,CHILTERN DC (HSG),,,,,5000352595,,Doubling of Small Business Rates Relief,HP6 5AW,"25,620.00",Yes
Communities & Local Government,DCLG,15/11/2016,Current (non AEF) Grants to Local Authorities,Local Government & Public Services,CHILTERN DC (HSG),,,,,5000352597,,Business Rates Multiplier Cap,HP6 5AW,"2,150.00",Yes
Communities & Local Government,DCLG,15/11/2016,Current (non AEF) Grants to Local Authorities,Local Government & Public Services,CHORLEY BOROUGH COUNCIL,,,,236415576,5000352253,,Extended Transitional Relief for Small and Medium,PR7 1DP,557,Yes
Communities & Local Government,DCLG,15/11/2016,Current (non AEF) Grants to Local Authorities,Local Government & Public Services,CHORLEY BOROUGH COUNCIL,,,,236415576,5000352256,,Long Term Empty Property Relief,PR7 1DP,351,Yes
Communities & Local Government,DCLG,15/11/2016,Current (non AEF) Grants to Local Authorities,Local Government & Public Services,CHORLEY BOROUGH COUNCIL,,,,236415576,5000352259,,Business Rates Multiplier Cap,PR7 1DP,"4,560.00",Yes
Communities & Local Government,DCLG,15/11/2016,Current (non AEF) Grants to Local Authorities,Local Government & Public Services,CHORLEY BOROUGH COUNCIL,,,,236415576,5000352262,,Doubling of Small Business Rates Relief,PR7 1DP,"43,128.00",Yes
Communities & Local Government,DCLG,15/11/2016,Current (non AEF) Grants to Local Authorities,Local Government & Public Services,CHRISTCHURCH BC (HSG),,,,227415213,5000352598,,Business Rates Multiplier Cap,BH23 1AZ,"1,789.00",Yes
Communities & Local Government,DCLG,15/11/2016,Current (non AEF) Grants to Local Authorities,Local Government & Public Services,CHRISTCHURCH BC (HSG),,,,227415213,5000352599,,Doubling of Small Business Rates Relief,BH23 1AZ,"21,237.00",Yes
Communities & Local Government,DCLG,15/11/2016,Current (non AEF) Grants to Local Authorities,Local Government & Public Services,CHRISTCHURCH BC (HSG),,,,227415213,5000352600,,Long Term Empty Property Relief,BH23 1AZ,701,Yes
Communities & Local Government,DCLG,15/11/2016,Current (non AEF) Grants to Local Authorities,Local Government & Public Services,CITY OF LINCOLN COUNCIL,,,,,5000351700,,Business Rates Multiplier Cap,LN1 1DB,"5,240.00",Yes
Communities & Local Government,DCLG,15/11/2016,Current (non AEF) Grants to Local Authorities,Local Government & Public Services,CITY OF LINCOLN COUNCIL,,,,,5000351703,,Doubling of Small Business Rates Relief,LN1 1DB,"32,563.00",Yes
Communities & Local Government,DCLG,15/11/2016,Current (non AEF) Grants to Local Authorities,Local Government & Public Services,CITY OF LINCOLN COUNCIL,,,,,5000351706,,New Empty Property Relief,LN1 1DB,"5,980.00",Yes
Communities & Local Government,DCLG,15/11/2016,Current (non AEF) Grants to Local Authorities,Local Government & Public Services,CITY OF LINCOLN COUNCIL,,,,,5000351709,,Long Term Empty Property Relief,LN1 1DB,"4,477.00",Yes
Communities & Local Government,DCLG,15/11/2016,Current (non AEF) Grants to Local Authorities,Local Government & Public Services,CITY OF LONDON (HSG),,,,217471460,5000352603,,Long Term Empty Property Relief,EC2P 2EJ,"2,223.00",Yes
Communities & Local Government,DCLG,15/11/2016,Current (non AEF) Grants to Local Authorities,Local Government & Public Services,CITY OF LONDON (HSG),,,,217471460,5000352604,,Extended Transitional Relief for Small and Medium,EC2P 2EJ,255,Yes
Communities & Local Government,DCLG,15/11/2016,Current (non AEF) Grants to Local Authorities,Local Government & Public Services,CITY OF LONDON (HSG),,,,217471460,5000352605,,Business Rates Multiplier Cap,EC2P 2EJ,"44,620.00",Yes
Communities & Local Government,DCLG,15/11/2016,Current (non AEF) Grants to Local Authorities,Local Government & Public Services,CITY OF LONDON (HSG),,,,217471460,5000352606,,Doubling of Small Business Rates Relief,EC2P 2EJ,"5,577.00",Yes
Communities & Local Government,DCLG,15/11/2016,Current (non AEF) Grants to Local Authorities,Local Government & Public Services,CITY OF LONDON (HSG),,,,217471460,5000352607,,New Empty Property Relief,EC2P 2EJ,"3,561.00",Yes
Communities & Local Government,DCLG,15/11/2016,Current (non AEF) Grants to Local Authorities,Local Government & Public Services,CITY OF SUNDERLAND (HSG),,,,215599312,5000352608,,Doubling of Small Business Rates Relief,SR2 7DN,"97,635.00",Yes
Communities & Local Government,DCLG,15/11/2016,Current (non AEF) Grants to Local Authorities,Local Government & Public Services,CITY OF SUNDERLAND (HSG),,,,215599312,5000352609,,Extended Transitional Relief for Small and Medium,SR2 7DN,829,Yes
Communities & Local Government,DCLG,15/11/2016,Current (non AEF) Grants to Local Authorities,Local Government & Public Services,CITY OF SUNDERLAND (HSG),,,,215599312,5000352610,,Long Term Empty Property Relief,SR2 7DN,"2,585.00",Yes
Communities & Local Government,DCLG,15/11/2016,Current (non AEF) Grants to Local Authorities,Local Government & Public Services,CITY OF SUNDERLAND (HSG),,,,215599312,5000352611,,Business Rates Multiplier Cap,SR2 7DN,"97,060.00",Yes
Communities & Local Government,DCLG,15/11/2016,Current (non AEF) Grants to Local Authorities,Local Government & Public Services,CITY OF WAKEFIELD MDC,,,,,5000351458,,Extended Transitional Relief for Small and Medium,WF1 2QW,829,Yes
Communities & Local Government,DCLG,15/11/2016,Current (non AEF) Grants to Local Authorities,Local Government & Public Services,CITY OF WAKEFIELD MDC,,,,,5000351461,,Business Rates Multiplier Cap,WF1 2QW,"81,824.00",Yes
Communities & Local Government,DCLG,15/11/2016,Current (non AEF) Grants to Local Authorities,Local Government & Public Services,CITY OF WAKEFIELD MDC,,,,,5000351464,,Doubling of Small Business Rates Relief,WF1 2QW,"165,481.00",Yes
Communities & Local Government,DCLG,15/11/2016,Current (non AEF) Grants to Local Authorities,Local Government & Public Services,CITY OF WAKEFIELD MDC,,,,,5000351470,,Long Term Empty Property Relief,WF1 2QW,"4,088.00",Yes
Communities & Local Government,DCLG,15/11/2016,Current (non AEF) Grants to Local Authorities,Local Government & Public Services,CITY OF WAKEFIELD MDC,,,,,5000351473,,Small Business Rates Relief on Second Properties,WF1 2QW,414,Yes
Communities & Local Government,DCLG,15/11/2016,Current (non AEF) Grants to Local Authorities,Local Government & Public Services,CLEVELAND FIRE AUTHORITY,,Medium,,424872778,5000351988,,Business Rates Multiplier Cap,TS25 5TB,"10,126.00",Yes
Communities & Local Government,DCLG,15/11/2016,Current (non AEF) Grants to Local Authorities,Local Government & Public Services,CLEVELAND FIRE AUTHORITY,,Medium,,424872778,5000351991,,Doubling of Small Business Rates Relief,TS25 5TB,"4,343.00",Yes
Communities & Local Government,DCLG,15/11/2016,Current (non AEF) Grants to Local Authorities,Local Government & Public Services,CO DURHAM & DARLINGTON FIRE & RESCU,,,,424872851,5000352182,,Business Rates Multiplier Cap,DH1 1TW,"7,849.00",Yes
Communities & Local Government,DCLG,15/11/2016,Current (non AEF) Grants to Local Authorities,Local Government & Public Services,CO DURHAM & DARLINGTON FIRE & RESCU,,,,424872851,5000352185,,Doubling of Small Business Rates Relief,DH1 1TW,"5,163.00",Yes
Communities & Local Government,DCLG,15/11/2016,Current (non AEF) Grants to Local Authorities,Local Government & Public Services,COLCHESTER BC,,,,,5000352268,,Business Rates Multiplier Cap,CO3 3WG,"6,355.00",Yes
Communities & Local Government,DCLG,15/11/2016,Current (non AEF) Grants to Local Authorities,Local Government & Public Services,COLCHESTER BC,,,,,5000352271,,Doubling of Small Business Rates Relief,CO3 3WG,"53,612.00",Yes
Communities & Local Government,DCLG,15/11/2016,Current (non AEF) Grants to Local Authorities,Local Government & Public Services,COLCHESTER BC,,,,,5000352274,,New Empty Property Relief,CO3 3WG,"4,839.00",Yes
Communities & Local Government,DCLG,15/11/2016,Current (non AEF) Grants to Local Authorities,Local Government & Public Services,COLCHESTER BC,,,,,5000352277,,Extended Transitional Relief for Small and Medium,CO3 3WG,469,Yes
Communities & Local Government,DCLG,15/11/2016,Current (non AEF) Grants to Local Authorities,Local Government & Public Services,COPELAND BC,,,,236414827,5000352612,,Extended Transitional Relief for Small and Medium,CA28 7NY,338,Yes
Communities & Local Government,DCLG,15/11/2016,Current (non AEF) Grants to Local Authorities,Local Government & Public Services,COPELAND BC,,,,236414827,5000352613,,Long Term Empty Property Relief,CA28 7NY,251,Yes
Communities & Local Government,DCLG,15/11/2016,Current (non AEF) Grants to Local Authorities,Local Government & Public Services,COPELAND BC,,,,236414827,5000352615,,Business Rates Multiplier Cap,CA28 7NY,"1,655.00",Yes
Communities & Local Government,DCLG,15/11/2016,Current (non AEF) Grants to Local Authorities,Local Government & Public Services,COPELAND BC,,,,236414827,5000352616,,Doubling of Small Business Rates Relief,CA28 7NY,"25,543.00",Yes
Communities & Local Government,DCLG,15/11/2016,Current (non AEF) Grants to Local Authorities,Local Government & Public Services,CORBY BC,,,,,5000352617,,Long Term Empty Property Relief,NN17 1GD,"1,691.00",Yes
Communities & Local Government,DCLG,15/11/2016,Current (non AEF) Grants to Local Authorities,Local Government & Public Services,CORBY BC,,,,,5000352618,,Doubling of Small Business Rates Relief,NN17 1GD,"19,832.00",Yes
Communities & Local Government,DCLG,15/11/2016,Current (non AEF) Grants to Local Authorities,Local Government & Public Services,CORBY BC,,,,,5000352619,,Business Rates Multiplier Cap,NN17 1GD,"3,687.00",Yes
Communities & Local Government,DCLG,15/11/2016,Current (non AEF) Grants to Local Authorities,Local Government & Public Services,CORNWALL UNITARY AUTHORITY,,,,211334404,5000352434,,New Empty Property Relief,TR1 3AY,634,Yes
Communities & Local Government,DCLG,15/11/2016,Current (non AEF) Grants to Local Authorities,Local Government & Public Services,CORNWALL UNITARY AUTHORITY,,,,211334404,5000352437,,Long Term Empty Property Relief,TR1 3AY,"1,444.00",Yes
Communities & Local Government,DCLG,15/11/2016,Current (non AEF) Grants to Local Authorities,Local Government & Public Services,CORNWALL UNITARY AUTHORITY,,,,211334404,5000352440,,Extended Transitional Relief for Small and Medium,TR1 3AY,"6,927.00",Yes
Communities & Local Government,DCLG,15/11/2016,Current (non AEF) Grants to Local Authorities,Local Government & Public Services,CORNWALL UNITARY AUTHORITY,,,,211334404,5000352443,,Small Business Rates Relief on Second Properties,TR1 3AY,"1,249.00",Yes
Communities & Local Government,DCLG,15/11/2016,Current (non AEF) Grants to Local Authorities,Local Government & Public Services,CORNWALL UNITARY AUTHORITY,,,,211334404,5000352446,,Doubling of Small Business Rates Relief,TR1 3AY,"508,890.00",Yes
Communities & Local Government,DCLG,15/11/2016,Current (non AEF) Grants to Local Authorities,Local Government & Public Services,CORNWALL UNITARY AUTHORITY,,,,211334404,5000352449,,Business Rates Multiplier Cap,TR1 3AY,"118,471.00",Yes
Communities & Local Government,DCLG,15/11/2016,Current (non AEF) Grants to Local Authorities,Local Government & Public Services,COTSWOLD DC,,,,232462085,5000352620,,Extended Transitional Relief for Small and Medium,GL7 1PX,514,Yes
Communities & Local Government,DCLG,15/11/2016,Current (non AEF) Grants to Local Authorities,Local Government & Public Services,COTSWOLD DC,,,,232462085,5000352621,,Business Rates Multiplier Cap,GL7 1PX,"2,515.00",Yes
Communities & Local Government,DCLG,15/11/2016,Current (non AEF) Grants to Local Authorities,Local Government & Public Services,COTSWOLD DC,,,,232462085,5000352622,,Doubling of Small Business Rates Relief,GL7 1PX,"51,266.00",Yes
Communities & Local Government,DCLG,15/11/2016,Current (non AEF) Grants to Local Authorities,Local Government & Public Services,COVENTRY CITY CNCL,,,,210384802,5000352280,,Business Rates Multiplier Cap,CV1 2QL,"89,832.00",Yes
Communities & Local Government,DCLG,15/11/2016,Current (non AEF) Grants to Local Authorities,Local Government & Public Services,COVENTRY CITY CNCL,,,,210384802,5000352283,,Doubling of Small Business Rates Relief,CV1 2QL,"115,973.00",Yes
Communities & Local Government,DCLG,15/11/2016,Current (non AEF) Grants to Local Authorities,Local Government & Public Services,COVENTRY CITY CNCL,,,,210384802,5000352286,,New Empty Property Relief,CV1 2QL,379,Yes
Communities & Local Government,DCLG,15/11/2016,Current (non AEF) Grants to Local Authorities,Local Government & Public Services,COVENTRY CITY CNCL,,,,210384802,5000352289,,Long Term Empty Property Relief,CV1 2QL,"3,878.00",Yes
Communities & Local Government,DCLG,15/11/2016,Current (non AEF) Grants to Local Authorities,Local Government & Public Services,COVENTRY CITY CNCL,,,,210384802,5000352292,,Extended Transitional Relief for Small and Medium,CV1 2QL,277,Yes
Communities & Local Government,DCLG,15/11/2016,Current (non AEF) Grants to Local Authorities,Local Government & Public Services,CRAVEN DC (HSG),,,,,5000352626,,Doubling of Small Business Rates Relief,BD23 1FJ,"39,387.00",Yes
Communities & Local Government,DCLG,15/11/2016,Current (non AEF) Grants to Local Authorities,Local Government & Public Services,CRAVEN DC (HSG),,,,,5000352628,,Long Term Empty Property Relief,BD23 1FJ,822,Yes
Communities & Local Government,DCLG,15/11/2016,Current (non AEF) Grants to Local Authorities,Local Government & Public Services,CRAVEN DC (HSG),,,,,5000352629,,Business Rates Multiplier Cap,BD23 1FJ,"1,834.00",Yes
Communities & Local Government,DCLG,15/11/2016,Current (non AEF) Grants to Local Authorities,Local Government & Public Services,CRAWLEY BC,,,,211222500,5000352631,,Business Rates Multiplier Cap,RH10 1UZ,"6,985.00",Yes
Communities & Local Government,DCLG,15/11/2016,Current (non AEF) Grants to Local Authorities,Local Government & Public Services,CRAWLEY BC,,,,211222500,5000352632,,New Empty Property Relief,RH10 1UZ,"3,749.00",Yes
Communities & Local Government,DCLG,15/11/2016,Current (non AEF) Grants to Local Authorities,Local Government & Public Services,CRAWLEY BC,,,,211222500,5000352633,,Long Term Empty Property Relief,RH10 1UZ,"2,412.00",Yes
Communities & Local Government,DCLG,15/11/2016,Current (non AEF) Grants to Local Authorities,Local Government & Public Services,CRAWLEY BC,,,,211222500,5000352636,,Doubling of Small Business Rates Relief,RH10 1UZ,"13,437.00",Yes
Communities & Local Government,DCLG,15/11/2016,Current (non AEF) Grants to Local Authorities,Local Government & Public Services,CROYDON LB,,,,212419973,5000352295,,Business Rates Multiplier Cap,CR9 3JS,"79,499.00",Yes
Communities & Local Government,DCLG,15/11/2016,Current (non AEF) Grants to Local Authorities,Local Government & Public Services,CROYDON LB,,,,212419973,5000352297,,Doubling of Small Business Rates Relief,CR9 3JS,"77,895.00",Yes
Communities & Local Government,DCLG,15/11/2016,Current (non AEF) Grants to Local Authorities,Local Government & Public Services,CROYDON LB,,,,212419973,5000352303,,Extended Transitional Relief for Small and Medium,CR9 3JS,"33,546.00",Yes
Communities & Local Government,DCLG,15/11/2016,Current (non AEF) Grants to Local Authorities,Local Government & Public Services,CUMBRIA COUNTY CNCL,,,,211316542,5000352306,,Business Rates Multiplier Cap,CA3 8NA,"98,716.00",Yes
Communities & Local Government,DCLG,15/11/2016,Current (non AEF) Grants to Local Authorities,Local Government & Public Services,CUMBRIA COUNTY CNCL,,,,211316542,5000352309,,Doubling of Small Business Rates Relief,CA3 8NA,"73,596.00",Yes
Communities & Local Government,DCLG,15/11/2016,Current (non AEF) Grants to Local Authorities,Local Government & Public Services,CUMBRIA COUNTY CNCL,,,,211316542,5000352315,,Long Term Empty Property Relief,CA3 8NA,986,Yes
Communities & Local Government,DCLG,15/11/2016,Current (non AEF) Grants to Local Authorities,Local Government & Public Services,CUMBRIA COUNTY CNCL,,,,211316542,5000352318,,Small Business Rates Relief on Second Properties,CA3 8NA,443,Yes
Communities & Local Government,DCLG,15/11/2016,Current (non AEF) Grants to Local Authorities,Local Government & Public Services,CUMBRIA COUNTY CNCL,,,,211316542,5000352322,,Extended Transitional Relief for Small and Medium,CA3 8NA,334,Yes
Communities & Local Government,DCLG,15/11/2016,Current (non AEF) Grants to Local Authorities,Local Government & Public Services,DACORUM BC,,,,236448643,5000352325,,Business Rates Multiplier Cap,HP1 1HH,"3,038.00",Yes
Communities & Local Government,DCLG,15/11/2016,Current (non AEF) Grants to Local Authorities,Local Government & Public Services,DACORUM BC,,,,236448643,5000352328,,Doubling of Small Business Rates Relief,HP1 1HH,"37,754.00",Yes
Communities & Local Government,DCLG,15/11/2016,Current (non AEF) Grants to Local Authorities,Local Government & Public Services,DARLINGTON BC,,,,,5000352337,,Business Rates Multiplier Cap,TS19 1JA,"25,921.00",Yes
Communities & Local Government,DCLG,15/11/2016,Current (non AEF) Grants to Local Authorities,Local Government & Public Services,DARLINGTON BC,,,,,5000352340,,New Empty Property Relief,TS19 1JA,"5,148.00",Yes
Communities & Local Government,DCLG,15/11/2016,Current (non AEF) Grants to Local Authorities,Local Government & Public Services,DARLINGTON BC,,,,,5000352343,,Doubling of Small Business Rates Relief,TS19 1JA,"50,315.00",Yes
Communities & Local Government,DCLG,15/11/2016,Current (non AEF) Grants to Local Authorities,Local Government & Public Services,DARLINGTON BC,,,,,5000352346,,Long Term Empty Property Relief,TS19 1JA,"1,977.00",Yes
Communities & Local Government,DCLG,15/11/2016,Current (non AEF) Grants to Local Authorities,Local Government & Public Services,DARTFORD BC,,,,225694942,5000352637,,Small Business Rates Relief on Second Properties,DA1 1DR,285,Yes
Communities & Local Government,DCLG,15/11/2016,Current (non AEF) Grants to Local Authorities,Local Government & Public Services,DARTFORD BC,,,,225694942,5000352638,,Business Rates Multiplier Cap,DA1 1DR,"5,025.00",Yes
Communities & Local Government,DCLG,15/11/2016,Current (non AEF) Grants to Local Authorities,Local Government & Public Services,DARTFORD BC,,,,225694942,5000352639,,Doubling of Small Business Rates Relief,DA1 1DR,"23,147.00",Yes
Communities & Local Government,DCLG,15/11/2016,Current (non AEF) Grants to Local Authorities,Local Government & Public Services,DAVENTRY DC,,,,239859333,5000352641,,Business Rates Multiplier Cap,NN11 5AF,"5,998.00",Yes
Communities & Local Government,DCLG,15/11/2016,Current (non AEF) Grants to Local Authorities,Local Government & Public Services,DAVENTRY DC,,,,239859333,5000352642,,Doubling of Small Business Rates Relief,NN11 5AF,"28,896.00",Yes
Communities & Local Government,DCLG,15/11/2016,Current (non AEF) Grants to Local Authorities,Local Government & Public Services,DERBY CITY CNCL,,,,229641378,5000352349,,Business Rates Multiplier Cap,DE1 2FS,"70,576.00",Yes
Communities & Local Government,DCLG,15/11/2016,Current (non AEF) Grants to Local Authorities,Local Government & Public Services,DERBY CITY CNCL,,,,229641378,5000352352,,Doubling of Small Business Rates Relief,DE1 2FS,"88,172.00",Yes
Communities & Local Government,DCLG,15/11/2016,Current (non AEF) Grants to Local Authorities,Local Government & Public Services,DERBY CITY CNCL,,,,229641378,5000352355,,New Empty Property Relief,DE1 2FS,"2,071.00",Yes
Communities & Local Government,DCLG,15/11/2016,Current (non AEF) Grants to Local Authorities,Local Government & Public Services,DERBYSHIRE COUNTYCOUNCIL,,,,232152967,5000352361,,Business Rates Multiplier Cap,DE4 3AG,"125,887.00",Yes
Communities & Local Government,DCLG,15/11/2016,Current (non AEF) Grants to Local Authorities,Local Government & Public Services,DERBYSHIRE COUNTYCOUNCIL,,,,232152967,5000352367,,Long Term Empty Property Relief,DE4 3AG,614,Yes
Communities & Local Government,DCLG,15/11/2016,Current (non AEF) Grants to Local Authorities,Local Government & Public Services,DERBYSHIRE COUNTYCOUNCIL,,,,232152967,5000352370,,Extended Transitional Relief for Small and Medium,DE4 3AG,791,Yes
Communities & Local Government,DCLG,15/11/2016,Current (non AEF) Grants to Local Authorities,Local Government & Public Services,DERBYSHIRE COUNTYCOUNCIL,,,,232152967,5000352376,,Doubling of Small Business Rates Relief,DE4 3AG,"68,823.00",Yes
Communities & Local Government,DCLG,15/11/2016,Current (non AEF) Grants to Local Authorities,Local Government & Public Services,DERBYSHIRE DALES DC,,,,,5000352643,,Extended Transitional Relief for Small and Medium,DE4 3NN,343,Yes
Communities & Local Government,DCLG,15/11/2016,Current (non AEF) Grants to Local Authorities,Local Government & Public Services,DERBYSHIRE DALES DC,,,,,5000352644,,Business Rates Multiplier Cap,DE4 3NN,"2,117.00",Yes
Communities & Local Government,DCLG,15/11/2016,Current (non AEF) Grants to Local Authorities,Local Government & Public Services,DERBYSHIRE DALES DC,,,,,5000352645,,Doubling of Small Business Rates Relief,DE4 3NN,"45,705.00",Yes
Communities & Local Government,DCLG,15/11/2016,Current (non AEF) Grants to Local Authorities,Local Government & Public Services,DERBYSHIRE FIRE AND RESCUE SERVICE,,,,424872935,5000352197,,Doubling of Small Business Rates Relief,DE5 3RS,"9,447.00",Yes
Communities & Local Government,DCLG,15/11/2016,Current (non AEF) Grants to Local Authorities,Local Government & Public Services,DERBYSHIRE FIRE AND RESCUE SERVICE,,,,424872935,5000352209,,Business Rates Multiplier Cap,DE5 3RS,"10,185.00",Yes
Communities & Local Government,DCLG,15/11/2016,Current (non AEF) Grants to Local Authorities,Local Government & Public Services,DEVON & SOMERSET FIRE & RESCUE SERV,,Large,,424872976,5000352107,,Business Rates Multiplier Cap,EX3 0NW,"17,719.00",Yes
Communities & Local Government,DCLG,15/11/2016,Current (non AEF) Grants to Local Authorities,Local Government & Public Services,DEVON & SOMERSET FIRE & RESCUE SERV,,Large,,424872976,5000352110,,Doubling of Small Business Rates Relief,EX3 0NW,"20,906.00",Yes
Communities & Local Government,DCLG,15/11/2016,Current (non AEF) Grants to Local Authorities,Local Government & Public Services,DEVON & SOMERSET FIRE & RESCUE SERV,,Large,,424872976,5000352113,,Long Term Empty Property Relief,EX3 0NW,281,Yes
Communities & Local Government,DCLG,15/11/2016,Current (non AEF) Grants to Local Authorities,Local Government & Public Services,DEVON COUNTY CNCL,,,,213754018,5000352379,,Long Term Empty Property Relief,EX2 4QJ,455,Yes
Communities & Local Government,DCLG,15/11/2016,Current (non AEF) Grants to Local Authorities,Local Government & Public Services,DEVON COUNTY CNCL,,,,213754018,5000352382,,Doubling of Small Business Rates Relief,EX2 4QJ,"102,148.00",Yes
Communities & Local Government,DCLG,15/11/2016,Current (non AEF) Grants to Local Authorities,Local Government & Public Services,DEVON COUNTY CNCL,,,,213754018,5000352385,,Extended Transitional Relief for Small and Medium,EX2 4QJ,"1,280.00",Yes
Communities & Local Government,DCLG,15/11/2016,Current (non AEF) Grants to Local Authorities,Local Government & Public Services,DEVON COUNTY CNCL,,,,213754018,5000352391,,Business Rates Multiplier Cap,EX2 4QJ,"113,678.00",Yes
Communities & Local Government,DCLG,15/11/2016,Current (non AEF) Grants to Local Authorities,Local Government & Public Services,DEVON COUNTY CNCL,,,,213754018,5000352393,,New Empty Property Relief,EX2 4QJ,462,Yes
Communities & Local Government,DCLG,15/11/2016,Current (non AEF) Grants to Local Authorities,Local Government & Public Services,DONCASTER MBC,,,,,5000352396,,Doubling of Small Business Rates Relief,DN1 3QA,"126,968.00",Yes
Communities & Local Government,DCLG,15/11/2016,Current (non AEF) Grants to Local Authorities,Local Government & Public Services,DONCASTER MBC,,,,,5000352399,,Long Term Empty Property Relief,DN1 3QA,"1,733.00",Yes
Communities & Local Government,DCLG,15/11/2016,Current (non AEF) Grants to Local Authorities,Local Government & Public Services,DONCASTER MBC,,,,,5000352402,,Extended Transitional Relief for Small and Medium,DN1 3QA,823,Yes
Communities & Local Government,DCLG,15/11/2016,Current (non AEF) Grants to Local Authorities,Local Government & Public Services,DONCASTER MBC,,,,,5000352405,,Small Business Rates Relief on Second Properties,DN1 3QA,"1,128.00",Yes
Communities & Local Government,DCLG,15/11/2016,Current (non AEF) Grants to Local Authorities,Local Government & Public Services,DONCASTER MBC,,,,,5000352408,,Business Rates Multiplier Cap,DN1 3QA,"90,460.00",Yes
Communities & Local Government,DCLG,15/11/2016,Current (non AEF) Grants to Local Authorities,Local Government & Public Services,DONCASTER MBC,,,,,5000352411,,New Empty Property Relief,DN1 3QA,"1,691.00",Yes
Communities & Local Government,DCLG,15/11/2016,Current (non AEF) Grants to Local Authorities,Local Government & Public Services,DORSET & WILTSHIRE FIRE & RESCUE AU,,Large,,,5000352483,,Doubling of Small Business Rates Relief,SP1 3NR,"14,051.00",Yes
Communities & Local Government,DCLG,15/11/2016,Current (non AEF) Grants to Local Authorities,Local Government & Public Services,DORSET & WILTSHIRE FIRE & RESCUE AU,,Large,,,5000352487,,Business Rates Multiplier Cap,SP1 3NR,"11,488.00",Yes
Communities & Local Government,DCLG,15/11/2016,Current (non AEF) Grants to Local Authorities,Local Government & Public Services,DORSET COUNTY CNCL,,,,225431279,5000352417,,Doubling of Small Business Rates Relief,DT1 1XJ,"48,027.00",Yes
Communities & Local Government,DCLG,15/11/2016,Current (non AEF) Grants to Local Authorities,Local Government & Public Services,DORSET COUNTY CNCL,,,,225431279,5000352420,,Long Term Empty Property Relief,DT1 1XJ,312,Yes
Communities & Local Government,DCLG,15/11/2016,Current (non AEF) Grants to Local Authorities,Local Government & Public Services,DORSET COUNTY CNCL,,,,225431279,5000352423,,Business Rates Multiplier Cap,DT1 1XJ,"43,745.00",Yes
Communities & Local Government,DCLG,15/11/2016,Current (non AEF) Grants to Local Authorities,Local Government & Public Services,DORSET COUNTY CNCL,,,,225431279,5000352426,,New Empty Property Relief,DT1 1XJ,411,Yes
Communities & Local Government,DCLG,15/11/2016,Current (non AEF) Grants to Local Authorities,Local Government & Public Services,DORSET COUNTY CNCL,,,,225431279,5000352429,,Extended Transitional Relief for Small and Medium,DT1 1XJ,294,Yes
Communities & Local Government,DCLG,15/11/2016,Current (non AEF) Grants to Local Authorities,Local Government & Public Services,DOVER DC,,,,,5000352646,,Extended Transitional Relief for Small and Medium,CT16 3PD,372,Yes
Communities & Local Government,DCLG,15/11/2016,Current (non AEF) Grants to Local Authorities,Local Government & Public Services,DOVER DC,,,,,5000352647,,Long Term Empty Property Relief,CT16 3PD,710,Yes
Communities & Local Government,DCLG,15/11/2016,Current (non AEF) Grants to Local Authorities,Local Government & Public Services,DOVER DC,,,,,5000352649,,Business Rates Multiplier Cap,CT16 3PD,"5,067.00",Yes
Communities & Local Government,DCLG,15/11/2016,Current (non AEF) Grants to Local Authorities,Local Government & Public Services,DOVER DC,,,,,5000352650,,Doubling of Small Business Rates Relief,CT16 3PD,"43,799.00",Yes
Communities & Local Government,DCLG,15/11/2016,Current (non AEF) Grants to Local Authorities,Local Government & Public Services,DUDLEY MBC,,,,,5000352432,,Doubling of Small Business Rates Relief,DY1 1HF,"153,342.00",Yes
Communities & Local Government,DCLG,15/11/2016,Current (non AEF) Grants to Local Authorities,Local Government & Public Services,DUDLEY MBC,,,,,5000352435,,Long Term Empty Property Relief,DY1 1HF,"2,795.00",Yes
Communities & Local Government,DCLG,15/11/2016,Current (non AEF) Grants to Local Authorities,Local Government & Public Services,DUDLEY MBC,,,,,5000352438,,Small Business Rates Relief on Second Properties,DY1 1HF,681,Yes
Communities & Local Government,DCLG,15/11/2016,Current (non AEF) Grants to Local Authorities,Local Government & Public Services,DUDLEY MBC,,,,,5000352441,,Business Rates Multiplier Cap,DY1 1HF,"73,520.00",Yes
Communities & Local Government,DCLG,15/11/2016,Current (non AEF) Grants to Local Authorities,Local Government & Public Services,DUDLEY MBC,,,,,5000352444,,New Empty Property Relief,DY1 1HF,"4,142.00",Yes
Communities & Local Government,DCLG,15/11/2016,Current (non AEF) Grants to Local Authorities,Local Government & Public Services,DUDLEY MBC,,,,,5000352447,,Extended Transitional Relief for Small and Medium,DY1 1HF,280,Yes
Communities & Local Government,DCLG,15/11/2016,Current (non AEF) Grants to Local Authorities,Local Government & Public Services,DURHAM COUNTY COUNCIL,,,,224004882,5000352452,,Extended Transitional Relief for Small and Medium,DH1 5UE,422,Yes
Communities & Local Government,DCLG,15/11/2016,Current (non AEF) Grants to Local Authorities,Local Government & Public Services,DURHAM COUNTY COUNCIL,,,,224004882,5000352455,,Business Rates Multiplier Cap,DH1 5UE,"139,605.00",Yes
Communities & Local Government,DCLG,15/11/2016,Current (non AEF) Grants to Local Authorities,Local Government & Public Services,DURHAM COUNTY COUNCIL,,,,224004882,5000352458,,Doubling of Small Business Rates Relief,DH1 5UE,"202,659.00",Yes
Communities & Local Government,DCLG,15/11/2016,Current (non AEF) Grants to Local Authorities,Local Government & Public Services,DURHAM COUNTY COUNCIL,,,,224004882,5000352461,,Long Term Empty Property Relief,DH1 5UE,"1,393.00",Yes
Communities & Local Government,DCLG,15/11/2016,Current (non AEF) Grants to Local Authorities,Local Government & Public Services,DURHAM COUNTY COUNCIL,,,,224004882,5000352464,,Small Business Rates Relief on Second Properties,DH1 5UE,616,Yes
Communities & Local Government,DCLG,15/11/2016,Current (non AEF) Grants to Local Authorities,Local Government & Public Services,EALING LB,,,,,5000352450,,Doubling of Small Business Rates Relief,W5 2HL,"59,632.00",Yes
Communities & Local Government,DCLG,15/11/2016,Current (non AEF) Grants to Local Authorities,Local Government & Public Services,EALING LB,,,,,5000352453,,Long Term Empty Property Relief,W5 2HL,"1,814.00",Yes
Communities & Local Government,DCLG,15/11/2016,Current (non AEF) Grants to Local Authorities,Local Government & Public Services,EALING LB,,,,,5000352456,,Business Rates Multiplier Cap,W5 2HL,"87,274.00",Yes
Communities & Local Government,DCLG,15/11/2016,Current (non AEF) Grants to Local Authorities,Local Government & Public Services,EALING LB,,,,,5000352459,,New Empty Property Relief,W5 2HL,"13,321.00",Yes
Communities & Local Government,DCLG,15/11/2016,Current (non AEF) Grants to Local Authorities,Local Government & Public Services,EALING LB,,,,,5000352462,,Small Business Rates Relief on Second Properties,W5 2HL,395,Yes
Communities & Local Government,DCLG,15/11/2016,Current (non AEF) Grants to Local Authorities,Local Government & Public Services,EAST CAMBRIDGESHIRE DC,,,,236472023,5000352651,,Doubling of Small Business Rates Relief,CB7 4PL,"27,311.00",Yes
Communities & Local Government,DCLG,15/11/2016,Current (non AEF) Grants to Local Authorities,Local Government & Public Services,EAST CAMBRIDGESHIRE DC,,,,236472023,5000352653,,Business Rates Multiplier Cap,CB7 4PL,"3,593.00",Yes
Communities & Local Government,DCLG,15/11/2016,Current (non AEF) Grants to Local Authorities,Local Government & Public Services,EAST DEVON DC,,,,,5000352655,,Business Rates Multiplier Cap,EX10 8HL,"3,746.00",Yes
Communities & Local Government,DCLG,15/11/2016,Current (non AEF) Grants to Local Authorities,Local Government & Public Services,EAST DEVON DC,,,,,5000352656,,Doubling of Small Business Rates Relief,EX10 8HL,"73,760.00",Yes
Communities & Local Government,DCLG,15/11/2016,Current (non AEF) Grants to Local Authorities,Local Government & Public Services,EAST DEVON DC,,,,,5000352658,,Extended Transitional Relief for Small and Medium,EX10 8HL,"1,166.00",Yes
Communities & Local Government,DCLG,15/11/2016,Current (non AEF) Grants to Local Authorities,Local Government & Public Services,EAST DORSET DC,,,,228470456,5000352468,,Business Rates Multiplier Cap,BH21 4HN,"1,835.00",Yes
Communities & Local Government,DCLG,15/11/2016,Current (non AEF) Grants to Local Authorities,Local Government & Public Services,EAST DORSET DC,,,,228470456,5000352470,,Doubling of Small Business Rates Relief,BH21 4HN,"35,225.00",Yes
Communities & Local Government,DCLG,15/11/2016,Current (non AEF) Grants to Local Authorities,Local Government & Public Services,EAST HAMPSHIRE DC,,,,,5000352659,,Small Business Rates Relief on Second Properties,GU31 4EX,944,Yes
Communities & Local Government,DCLG,15/11/2016,Current (non AEF) Grants to Local Authorities,Local Government & Public Services,EAST HAMPSHIRE DC,,,,,5000352660,,Doubling of Small Business Rates Relief,GU31 4EX,"43,097.00",Yes
Communities & Local Government,DCLG,15/11/2016,Current (non AEF) Grants to Local Authorities,Local Government & Public Services,EAST HAMPSHIRE DC,,,,,5000352661,,Long Term Empty Property Relief,GU31 4EX,507,Yes
Communities & Local Government,DCLG,15/11/2016,Current (non AEF) Grants to Local Authorities,Local Government & Public Services,EAST HAMPSHIRE DC,,,,,5000352662,,Extended Transitional Relief for Small and Medium,GU31 4EX,250,Yes
Communities & Local Government,DCLG,15/11/2016,Current (non AEF) Grants to Local Authorities,Local Government & Public Services,EAST HAMPSHIRE DC,,,,,5000352663,,Business Rates Multiplier Cap,GU31 4EX,"2,418.00",Yes
Communities & Local Government,DCLG,15/11/2016,Current (non AEF) Grants to Local Authorities,Local Government & Public Services,EAST HERTFORDSHIRE DC,,,,236176954,5000352664,,Long Term Empty Property Relief,SG13 8EQ,467,Yes
Communities & Local Government,DCLG,15/11/2016,Current (non AEF) Grants to Local Authorities,Local Government & Public Services,EAST HERTFORDSHIRE DC,,,,236176954,5000352665,,Business Rates Multiplier Cap,SG13 8EQ,"2,664.00",Yes
Communities & Local Government,DCLG,15/11/2016,Current (non AEF) Grants to Local Authorities,Local Government & Public Services,EAST HERTFORDSHIRE DC,,,,236176954,5000352666,,Doubling of Small Business Rates Relief,SG13 8EQ,"45,015.00",Yes
Communities & Local Government,DCLG,15/11/2016,Current (non AEF) Grants to Local Authorities,Local Government & Public Services,EAST HERTFORDSHIRE DC,,,,236176954,5000352667,,New Empty Property Relief,SG13 8EQ,"1,159.00",Yes
Communities & Local Government,DCLG,15/11/2016,Current (non AEF) Grants to Local Authorities,Local Government & Public Services,EAST HERTFORDSHIRE DC,,,,236176954,5000352668,,Extended Transitional Relief for Small and Medium,SG13 8EQ,"1,755.00",Yes
Communities & Local Government,DCLG,15/11/2016,Current (non AEF) Grants to Local Authorities,Local Government & Public Services,EAST LINDSEY DC,,,,,5000352669,,Extended Transitional Relief for Small and Medium,LN11 8UP,253,Yes
Communities & Local Government,DCLG,15/11/2016,Current (non AEF) Grants to Local Authorities,Local Government & Public Services,EAST LINDSEY DC,,,,,5000352670,,Small Business Rates Relief on Second Properties,LN11 8UP,382,Yes
Communities & Local Government,DCLG,15/11/2016,Current (non AEF) Grants to Local Authorities,Local Government & Public Services,EAST LINDSEY DC,,,,,5000352671,,Doubling of Small Business Rates Relief,LN11 8UP,"80,566.00",Yes
Communities & Local Government,DCLG,15/11/2016,Current (non AEF) Grants to Local Authorities,Local Government & Public Services,EAST LINDSEY DC,,,,,5000352672,,Business Rates Multiplier Cap,LN11 8UP,"7,634.00",Yes
Communities & Local Government,DCLG,15/11/2016,Current (non AEF) Grants to Local Authorities,Local Government & Public Services,EAST NORTHAMPTONSHIRE COUNCIL,,,,227475290,5000352674,,Small Business Rates Relief on Second Properties,NN14 4LZ,410,Yes
Communities & Local Government,DCLG,15/11/2016,Current (non AEF) Grants to Local Authorities,Local Government & Public Services,EAST NORTHAMPTONSHIRE COUNCIL,,,,227475290,5000352675,,Doubling of Small Business Rates Relief,NN14 4LZ,"32,526.00",Yes
Communities & Local Government,DCLG,15/11/2016,Current (non AEF) Grants to Local Authorities,Local Government & Public Services,EAST NORTHAMPTONSHIRE COUNCIL,,,,227475290,5000352676,,Business Rates Multiplier Cap,NN14 4LZ,"4,623.00",Yes
Communities & Local Government,DCLG,15/11/2016,Current (non AEF) Grants to Local Authorities,Local Government & Public Services,EAST RIDING OF YORKS (HSG),,,,423159987,5000352678,,Business Rates Multiplier Cap,HU17 9BA,"73,548.00",Yes
Communities & Local Government,DCLG,15/11/2016,Current (non AEF) Grants to Local Authorities,Local Government & Public Services,EAST RIDING OF YORKS (HSG),,,,423159987,5000352679,,Doubling of Small Business Rates Relief,HU17 9BA,"166,273.00",Yes
Communities & Local Government,DCLG,15/11/2016,Current (non AEF) Grants to Local Authorities,Local Government & Public Services,EAST RIDING OF YORKS (HSG),,,,423159987,5000352680,,Extended Transitional Relief for Small and Medium,HU17 9BA,597,Yes
Communities & Local Government,DCLG,15/11/2016,Current (non AEF) Grants to Local Authorities,Local Government & Public Services,EAST STAFFORDSHIRE BC,,,,226778033,5000352681,,Business Rates Multiplier Cap,DE14 2EB,"3,618.00",Yes
Communities & Local Government,DCLG,15/11/2016,Current (non AEF) Grants to Local Authorities,Local Government & Public Services,EAST STAFFORDSHIRE BC,,,,226778033,5000352682,,Doubling of Small Business Rates Relief,DE14 2EB,"48,251.00",Yes
Communities & Local Government,DCLG,15/11/2016,Current (non AEF) Grants to Local Authorities,Local Government & Public Services,EAST SUSSEX COUNTY CNCL,,,,,5000352474,,Doubling of Small Business Rates Relief,BN7 1SF,"56,757.00",Yes
Communities & Local Government,DCLG,15/11/2016,Current (non AEF) Grants to Local Authorities,Local Government & Public Services,EAST SUSSEX COUNTY CNCL,,,,,5000352476,,Long Term Empty Property Relief,BN7 1SF,443,Yes
Communities & Local Government,DCLG,15/11/2016,Current (non AEF) Grants to Local Authorities,Local Government & Public Services,EAST SUSSEX COUNTY CNCL,,,,,5000352478,,Extended Transitional Relief for Small and Medium,BN7 1SF,363,Yes
Communities & Local Government,DCLG,15/11/2016,Current (non AEF) Grants to Local Authorities,Local Government & Public Services,EAST SUSSEX COUNTY CNCL,,,,,5000352482,,Business Rates Multiplier Cap,BN7 1SF,"83,205.00",Yes
Communities & Local Government,DCLG,15/11/2016,Current (non AEF) Grants to Local Authorities,Local Government & Public Services,EAST SUSSEX COUNTY CNCL,,,,,5000352484,,New Empty Property Relief,BN7 1SF,814,Yes
Communities & Local Government,DCLG,15/11/2016,Current (non AEF) Grants to Local Authorities,Local Government & Public Services,EAST SUSSEX FIRE AUTHORITY,,Large,,,5000352269,,Business Rates Multiplier Cap,BN21 1EU,"8,645.00",Yes
Communities & Local Government,DCLG,15/11/2016,Current (non AEF) Grants to Local Authorities,Local Government & Public Services,EAST SUSSEX FIRE AUTHORITY,,Large,,,5000352272,,Doubling of Small Business Rates Relief,BN21 1EU,"9,134.00",Yes
Communities & Local Government,DCLG,15/11/2016,Current (non AEF) Grants to Local Authorities,Local Government & Public Services,EASTBOURNE BC,,,,229896428,5000352486,,Extended Transitional Relief for Small and Medium,BN21 4TW,337,Yes
Communities & Local Government,DCLG,15/11/2016,Current (non AEF) Grants to Local Authorities,Local Government & Public Services,EASTBOURNE BC,,,,229896428,5000352488,,Business Rates Multiplier Cap,BN21 4TW,"4,646.00",Yes
Communities & Local Government,DCLG,15/11/2016,Current (non AEF) Grants to Local Authorities,Local Government & Public Services,EASTBOURNE BC,,,,229896428,5000352490,,Doubling of Small Business Rates Relief,BN21 4TW,"35,170.00",Yes
Communities & Local Government,DCLG,15/11/2016,Current (non AEF) Grants to Local Authorities,Local Government & Public Services,EASTBOURNE BC,,,,229896428,5000352491,,Long Term Empty Property Relief,BN21 4TW,"1,637.00",Yes
Communities & Local Government,DCLG,15/11/2016,Current (non AEF) Grants to Local Authorities,Local Government & Public Services,EASTLEIGH BOROUGH COUNCIL,,,,232669911,5000352492,,Business Rates Multiplier Cap,SO5 9YN,"4,053.00",Yes
Communities & Local Government,DCLG,15/11/2016,Current (non AEF) Grants to Local Authorities,Local Government & Public Services,EASTLEIGH BOROUGH COUNCIL,,,,232669911,5000352495,,Doubling of Small Business Rates Relief,SO5 9YN,"29,343.00",Yes
Communities & Local Government,DCLG,15/11/2016,Current (non AEF) Grants to Local Authorities,Local Government & Public Services,EDEN DC (HSG),,,,,5000352686,,Business Rates Multiplier Cap,CA11 7QF,"2,556.00",Yes
Communities & Local Government,DCLG,15/11/2016,Current (non AEF) Grants to Local Authorities,Local Government & Public Services,EDEN DC (HSG),,,,,5000352687,,Doubling of Small Business Rates Relief,CA11 7QF,"37,533.00",Yes
Communities & Local Government,DCLG,15/11/2016,Current (non AEF) Grants to Local Authorities,Local Government & Public Services,ELMBRIDGE BC (HSG),,,,,5000352690,,Business Rates Multiplier Cap,KT10 9SD,"4,430.00",Yes
Communities & Local Government,DCLG,15/11/2016,Current (non AEF) Grants to Local Authorities,Local Government & Public Services,ELMBRIDGE BC (HSG),,,,,5000352691,,Doubling of Small Business Rates Relief,KT10 9SD,"32,063.00",Yes
Communities & Local Government,DCLG,15/11/2016,Current (non AEF) Grants to Local Authorities,Local Government & Public Services,ELMBRIDGE BC (HSG),,,,,5000352692,,Long Term Empty Property Relief,KT10 9SD,266,Yes
Communities & Local Government,DCLG,15/11/2016,Current (non AEF) Grants to Local Authorities,Local Government & Public Services,ENFIELD LB,,,,,5000352497,,Long Term Empty Property Relief,EN1 3XF,"1,263.00",Yes
Communities & Local Government,DCLG,15/11/2016,Current (non AEF) Grants to Local Authorities,Local Government & Public Services,ENFIELD LB,,,,,5000352498,,Business Rates Multiplier Cap,EN1 3XF,"82,729.00",Yes
Communities & Local Government,DCLG,15/11/2016,Current (non AEF) Grants to Local Authorities,Local Government & Public Services,ENFIELD LB,,,,,5000352499,,Doubling of Small Business Rates Relief,EN1 3XF,"50,922.00",Yes
Communities & Local Government,DCLG,15/11/2016,Current (non AEF) Grants to Local Authorities,Local Government & Public Services,EPPING FOREST DC,,,,775876360,5000351146,,Extended Transitional Relief for Small and Medium,CM16 4BZ,"1,309.00",Yes
Communities & Local Government,DCLG,15/11/2016,Current (non AEF) Grants to Local Authorities,Local Government & Public Services,EPPING FOREST DC,,,,775876360,5000351147,,Doubling of Small Business Rates Relief,CM16 4BZ,"43,344.00",Yes
Communities & Local Government,DCLG,15/11/2016,Current (non AEF) Grants to Local Authorities,Local Government & Public Services,EPPING FOREST DC,,,,775876360,5000351149,,Business Rates Multiplier Cap,CM16 4BZ,"4,796.00",Yes
Communities & Local Government,DCLG,15/11/2016,Current (non AEF) Grants to Local Authorities,Local Government & Public Services,EPPING FOREST DC,,,,775876360,5000351150,,New Empty Property Relief,CM16 4BZ,450,Yes
Communities & Local Government,DCLG,15/11/2016,Current (non AEF) Grants to Local Authorities,Local Government & Public Services,EPSOM & EWELL BC,,,,225423094,5000351151,,Doubling of Small Business Rates Relief,KT18 5BY,"18,233.00",Yes
Communities & Local Government,DCLG,15/11/2016,Current (non AEF) Grants to Local Authorities,Local Government & Public Services,EPSOM & EWELL BC,,,,225423094,5000351152,,Long Term Empty Property Relief,KT18 5BY,367,Yes
Communities & Local Government,DCLG,15/11/2016,Current (non AEF) Grants to Local Authorities,Local Government & Public Services,EPSOM & EWELL BC,,,,225423094,5000351153,,Business Rates Multiplier Cap,KT18 5BY,"1,629.00",Yes
Communities & Local Government,DCLG,15/11/2016,Current (non AEF) Grants to Local Authorities,Local Government & Public Services,EREWASH BC,,,,211209762,5000351154,,Business Rates Multiplier Cap,DE7 5RP,"4,725.00",Yes
Communities & Local Government,DCLG,15/11/2016,Current (non AEF) Grants to Local Authorities,Local Government & Public Services,EREWASH BC,,,,211209762,5000351155,,Doubling of Small Business Rates Relief,DE7 5RP,"43,390.00",Yes
Communities & Local Government,DCLG,15/11/2016,Current (non AEF) Grants to Local Authorities,Local Government & Public Services,ESSEX COUNTY CNCL,,,,233572986,5000351156,,Doubling of Small Business Rates Relief,CM1 1JZ,"108,321.00",Yes
Communities & Local Government,DCLG,15/11/2016,Current (non AEF) Grants to Local Authorities,Local Government & Public Services,ESSEX COUNTY CNCL,,,,233572986,5000351157,,Long Term Empty Property Relief,CM1 1JZ,865,Yes
Communities & Local Government,DCLG,15/11/2016,Current (non AEF) Grants to Local Authorities,Local Government & Public Services,ESSEX COUNTY CNCL,,,,233572986,5000351161,,Business Rates Multiplier Cap,CM1 1JZ,"196,521.00",Yes
Communities & Local Government,DCLG,15/11/2016,Current (non AEF) Grants to Local Authorities,Local Government & Public Services,ESSEX COUNTY CNCL,,,,233572986,5000351163,,New Empty Property Relief,CM1 1JZ,"1,282.00",Yes
Communities & Local Government,DCLG,15/11/2016,Current (non AEF) Grants to Local Authorities,Local Government & Public Services,ESSEX COUNTY CNCL,,,,233572986,5000351165,,Extended Transitional Relief for Small and Medium,CM1 1JZ,898,Yes
Communities & Local Government,DCLG,15/11/2016,Current (non AEF) Grants to Local Authorities,Local Government & Public Services,ESSEX FIRE AUTHORITY,,Large,,424873099,5000351951,,Business Rates Multiplier Cap,CM8 3HB,"18,437.00",Yes
Communities & Local Government,DCLG,15/11/2016,Current (non AEF) Grants to Local Authorities,Local Government & Public Services,ESSEX FIRE AUTHORITY,,Large,,424873099,5000351961,,Doubling of Small Business Rates Relief,CM8 3HB,"15,077.00",Yes
Communities & Local Government,DCLG,15/11/2016,Current (non AEF) Grants to Local Authorities,Local Government & Public Services,EXETER CITY COUNCIL,,,,,5000351168,,Extended Transitional Relief for Small and Medium,EX1 1JW,783,Yes
Communities & Local Government,DCLG,15/11/2016,Current (non AEF) Grants to Local Authorities,Local Government & Public Services,EXETER CITY COUNCIL,,,,,5000351175,,Doubling of Small Business Rates Relief,EX1 1JW,"36,777.00",Yes
Communities & Local Government,DCLG,15/11/2016,Current (non AEF) Grants to Local Authorities,Local Government & Public Services,EXETER CITY COUNCIL,,,,,5000351178,,Long Term Empty Property Relief,EX1 1JW,519,Yes
Communities & Local Government,DCLG,15/11/2016,Current (non AEF) Grants to Local Authorities,Local Government & Public Services,EXETER CITY COUNCIL,,,,,5000351180,,Business Rates Multiplier Cap,EX1 1JW,"6,119.00",Yes
Communities & Local Government,DCLG,15/11/2016,Current (non AEF) Grants to Local Authorities,Local Government & Public Services,FAREHAM BC,,,,228474144,5000352694,,Doubling of Small Business Rates Relief,PO16 7PU,"30,462.00",Yes
Communities & Local Government,DCLG,15/11/2016,Current (non AEF) Grants to Local Authorities,Local Government & Public Services,FAREHAM BC,,,,228474144,5000352695,,Long Term Empty Property Relief,PO16 7PU,806,Yes
Communities & Local Government,DCLG,15/11/2016,Current (non AEF) Grants to Local Authorities,Local Government & Public Services,FAREHAM BC,,,,228474144,5000352696,,Business Rates Multiplier Cap,PO16 7PU,"1,473.00",Yes
Communities & Local Government,DCLG,15/11/2016,Current (non AEF) Grants to Local Authorities,Local Government & Public Services,FAREHAM BC,,,,228474144,5000352697,,New Empty Property Relief,PO16 7PU,457,Yes
Communities & Local Government,DCLG,15/11/2016,Current (non AEF) Grants to Local Authorities,Local Government & Public Services,FENLAND DC,,,,227476348,5000352700,,Doubling of Small Business Rates Relief,PE15 8NQ,"40,821.00",Yes
Communities & Local Government,DCLG,15/11/2016,Current (non AEF) Grants to Local Authorities,Local Government & Public Services,FENLAND DC,,,,227476348,5000352703,,Business Rates Multiplier Cap,PE15 8NQ,"4,882.00",Yes
Communities & Local Government,DCLG,15/11/2016,Current (non AEF) Grants to Local Authorities,Local Government & Public Services,FOREST HEATH DISTRICT COUNCIL,,,,236678116,5000352706,,Business Rates Multiplier Cap,IP28 7EY,"2,387.00",Yes
Communities & Local Government,DCLG,15/11/2016,Current (non AEF) Grants to Local Authorities,Local Government & Public Services,FOREST HEATH DISTRICT COUNCIL,,,,236678116,5000352707,,Doubling of Small Business Rates Relief,IP28 7EY,"24,683.00",Yes
Communities & Local Government,DCLG,15/11/2016,Current (non AEF) Grants to Local Authorities,Local Government & Public Services,FOREST OF DEAN DC,,,,211278890,5000352708,,Extended Transitional Relief for Small and Medium,GL16 8HG,949,Yes
Communities & Local Government,DCLG,15/11/2016,Current (non AEF) Grants to Local Authorities,Local Government & Public Services,FOREST OF DEAN DC,,,,211278890,5000352709,,Business Rates Multiplier Cap,GL16 8HG,"3,220.00",Yes
Communities & Local Government,DCLG,15/11/2016,Current (non AEF) Grants to Local Authorities,Local Government & Public Services,FOREST OF DEAN DC,,,,211278890,5000352710,,Doubling of Small Business Rates Relief,GL16 8HG,"40,533.00",Yes
Communities & Local Government,DCLG,15/11/2016,Current (non AEF) Grants to Local Authorities,Local Government & Public Services,FYLDE BC,,,,227479912,5000351185,,Doubling of Small Business Rates Relief,FY8 1LW,"36,241.00",Yes
Communities & Local Government,DCLG,15/11/2016,Current (non AEF) Grants to Local Authorities,Local Government & Public Services,FYLDE BC,,,,227479912,5000351191,,Business Rates Multiplier Cap,FY8 1LW,"1,616.00",Yes
Communities & Local Government,DCLG,15/11/2016,Current (non AEF) Grants to Local Authorities,Local Government & Public Services,FYLDE BC,,,,227479912,5000351195,,Extended Transitional Relief for Small and Medium,FY8 1LW,372,Yes
Communities & Local Government,DCLG,15/11/2016,Current (non AEF) Grants to Local Authorities,Local Government & Public Services,GATESHEAD COUNCIL,,,,216116041,5000351200,,Long Term Empty Property Relief,NE8 1HH,"2,823.00",Yes
Communities & Local Government,DCLG,15/11/2016,Current (non AEF) Grants to Local Authorities,Local Government & Public Services,GATESHEAD COUNCIL,,,,216116041,5000351207,,Business Rates Multiplier Cap,NE8 1HH,"68,475.00",Yes
Communities & Local Government,DCLG,15/11/2016,Current (non AEF) Grants to Local Authorities,Local Government & Public Services,GATESHEAD COUNCIL,,,,216116041,5000351208,,Doubling of Small Business Rates Relief,NE8 1HH,"90,212.00",Yes
Communities & Local Government,DCLG,15/11/2016,Current (non AEF) Grants to Local Authorities,Local Government & Public Services,GATESHEAD COUNCIL,,,,216116041,5000351211,,Extended Transitional Relief for Small and Medium,NE8 1HH,"1,586.00",Yes
Communities & Local Government,DCLG,15/11/2016,Current (non AEF) Grants to Local Authorities,Local Government & Public Services,GEDLING BC,,,,236180337,5000351215,,Business Rates Multiplier Cap,NG5 6LU,"4,090.00",Yes
Communities & Local Government,DCLG,15/11/2016,Current (non AEF) Grants to Local Authorities,Local Government & Public Services,GEDLING BC,,,,236180337,5000351218,,Doubling of Small Business Rates Relief,NG5 6LU,"28,420.00",Yes
Communities & Local Government,DCLG,15/11/2016,Current (non AEF) Grants to Local Authorities,Local Government & Public Services,GLOUCESTER CITY CNCL,,,,230841392,5000351224,,Doubling of Small Business Rates Relief,GL1 2EQ,"33,052.00",Yes
Communities & Local Government,DCLG,15/11/2016,Current (non AEF) Grants to Local Authorities,Local Government & Public Services,GLOUCESTER CITY CNCL,,,,230841392,5000351229,,Business Rates Multiplier Cap,GL1 2EQ,"6,330.00",Yes
Communities & Local Government,DCLG,15/11/2016,Current (non AEF) Grants to Local Authorities,Local Government & Public Services,GLOUCESTER CITY CNCL,,,,230841392,5000351232,,New Empty Property Relief,GL1 2EQ,"3,219.00",Yes
Communities & Local Government,DCLG,15/11/2016,Current (non AEF) Grants to Local Authorities,Local Government & Public Services,GLOUCESTERSHIRE COUNTY CNCL,,,,211272067,5000351235,,Long Term Empty Property Relief,GL1 2TG,386,Yes
Communities & Local Government,DCLG,15/11/2016,Current (non AEF) Grants to Local Authorities,Local Government & Public Services,GLOUCESTERSHIRE COUNTY CNCL,,,,211272067,5000351241,,Business Rates Multiplier Cap,GL1 2TG,"84,669.00",Yes
Communities & Local Government,DCLG,15/11/2016,Current (non AEF) Grants to Local Authorities,Local Government & Public Services,GLOUCESTERSHIRE COUNTY CNCL,,,,211272067,5000351246,,Doubling of Small Business Rates Relief,GL1 2TG,"60,326.00",Yes
Communities & Local Government,DCLG,15/11/2016,Current (non AEF) Grants to Local Authorities,Local Government & Public Services,GLOUCESTERSHIRE COUNTY CNCL,,,,211272067,5000351249,,New Empty Property Relief,GL1 2TG,865,Yes
Communities & Local Government,DCLG,15/11/2016,Current (non AEF) Grants to Local Authorities,Local Government & Public Services,GLOUCESTERSHIRE COUNTY CNCL,,,,211272067,5000351252,,Extended Transitional Relief for Small and Medium,GL1 2TG,408,Yes
Communities & Local Government,DCLG,15/11/2016,Current (non AEF) Grants to Local Authorities,Local Government & Public Services,GOSPORT BOROUGH COUNCIL,,,,239825078,5000351255,,Business Rates Multiplier Cap,PO12 1ED,"3,530.00",Yes
Communities & Local Government,DCLG,15/11/2016,Current (non AEF) Grants to Local Authorities,Local Government & Public Services,GOSPORT BOROUGH COUNCIL,,,,239825078,5000351261,,Doubling of Small Business Rates Relief,PO12 1ED,"24,475.00",Yes
Communities & Local Government,DCLG,15/11/2016,Current (non AEF) Grants to Local Authorities,Local Government & Public Services,GRAVESHAM BC,,,,236178612,5000351264,,Long Term Empty Property Relief,DA12 1AU,349,Yes
Communities & Local Government,DCLG,15/11/2016,Current (non AEF) Grants to Local Authorities,Local Government & Public Services,GRAVESHAM BC,,,,236178612,5000351269,,Business Rates Multiplier Cap,DA12 1AU,"4,006.00",Yes
Communities & Local Government,DCLG,15/11/2016,Current (non AEF) Grants to Local Authorities,Local Government & Public Services,GRAVESHAM BC,,,,236178612,5000351272,,Doubling of Small Business Rates Relief,DA12 1AU,"28,412.00",Yes
Communities & Local Government,DCLG,15/11/2016,Current (non AEF) Grants to Local Authorities,Local Government & Public Services,GREAT YARMOUTH BC,,,,292697372,5000351275,,Business Rates Multiplier Cap,NR30 2QG,"5,151.00",Yes
Communities & Local Government,DCLG,15/11/2016,Current (non AEF) Grants to Local Authorities,Local Government & Public Services,GREAT YARMOUTH BC,,,,292697372,5000351277,,Doubling of Small Business Rates Relief,NR30 2QG,"47,531.00",Yes
Communities & Local Government,DCLG,15/11/2016,Current (non AEF) Grants to Local Authorities,Local Government & Public Services,GREAT YARMOUTH BC,,,,292697372,5000351280,,Extended Transitional Relief for Small and Medium,NR30 2QG,483,Yes
Communities & Local Government,DCLG,15/11/2016,Current (non AEF) Grants to Local Authorities,Local Government & Public Services,GREATER LONDON AUTHORITY,,,,,5000352467,,Long Term Empty Property Relief,SE10 1AJ,"19,699.00",Yes
Communities & Local Government,DCLG,15/11/2016,Current (non AEF) Grants to Local Authorities,Local Government & Public Services,GREATER LONDON AUTHORITY,,,,,5000352469,,New Empty Property Relief,SE10 1AJ,"32,692.00",Yes
Communities & Local Government,DCLG,15/11/2016,Current (non AEF) Grants to Local Authorities,Local Government & Public Services,GREATER LONDON AUTHORITY,,,,,5000352471,,Extended Transitional Relief for Small and Medium,SE10 1AJ,"42,452.00",Yes
Communities & Local Government,DCLG,15/11/2016,Current (non AEF) Grants to Local Authorities,Local Government & Public Services,GREATER LONDON AUTHORITY,,,,,5000352473,,Business Rates Multiplier Cap,SE10 1AJ,"1,223,024.00",Yes
Communities & Local Government,DCLG,15/11/2016,Current (non AEF) Grants to Local Authorities,Local Government & Public Services,GREATER LONDON AUTHORITY,,,,,5000352475,,Small Business Rates Relief on Second Properties,SE10 1AJ,"1,716.00",Yes
Communities & Local Government,DCLG,15/11/2016,Current (non AEF) Grants to Local Authorities,Local Government & Public Services,GREATER LONDON AUTHORITY,,,,,5000352477,,Doubling of Small Business Rates Relief,SE10 1AJ,"1,064,255.00",Yes
Communities & Local Government,DCLG,15/11/2016,Current (non AEF) Grants to Local Authorities,Local Government & Public Services,GREATER MANCHESTER FIRE (RSG),,,,,5000351806,,Business Rates Multiplier Cap,M2 8US,"35,664.00",Yes
Communities & Local Government,DCLG,15/11/2016,Current (non AEF) Grants to Local Authorities,Local Government & Public Services,GREATER MANCHESTER FIRE (RSG),,,,,5000351809,,Doubling of Small Business Rates Relief,M2 8US,"27,071.00",Yes
Communities & Local Government,DCLG,15/11/2016,Current (non AEF) Grants to Local Authorities,Local Government & Public Services,GREATER MANCHESTER FIRE (RSG),,,,,5000351815,,Long Term Empty Property Relief,M2 8US,705,Yes
Communities & Local Government,DCLG,15/11/2016,Current (non AEF) Grants to Local Authorities,Local Government & Public Services,GREENWICH LB,,,,,5000351284,,Doubling of Small Business Rates Relief,SE18 6HQ,"43,132.00",Yes
Communities & Local Government,DCLG,15/11/2016,Current (non AEF) Grants to Local Authorities,Local Government & Public Services,GREENWICH LB,,,,,5000351287,,New Empty Property Relief,SE18 6HQ,"2,029.00",Yes
Communities & Local Government,DCLG,15/11/2016,Current (non AEF) Grants to Local Authorities,Local Government & Public Services,GREENWICH LB,,,,,5000351294,,Business Rates Multiplier Cap,SE18 6HQ,"94,493.00",Yes
Communities & Local Government,DCLG,15/11/2016,Current (non AEF) Grants to Local Authorities,Local Government & Public Services,GUILDFORD BC,,,,236663720,5000352713,,Doubling of Small Business Rates Relief,GU2 5BB,"30,769.00",Yes
Communities & Local Government,DCLG,15/11/2016,Current (non AEF) Grants to Local Authorities,Local Government & Public Services,GUILDFORD BC,,,,236663720,5000352715,,Extended Transitional Relief for Small and Medium,GU2 5BB,284,Yes
Communities & Local Government,DCLG,15/11/2016,Current (non AEF) Grants to Local Authorities,Local Government & Public Services,GUILDFORD BC,,,,236663720,5000352716,,Business Rates Multiplier Cap,GU2 5BB,"5,816.00",Yes
Communities & Local Government,DCLG,15/11/2016,Current (non AEF) Grants to Local Authorities,Local Government & Public Services,HALTON BC (HSG),,,,,5000352718,,Small Business Rates Relief on Second Properties,WA8 7QF,361,Yes
Communities & Local Government,DCLG,15/11/2016,Current (non AEF) Grants to Local Authorities,Local Government & Public Services,HALTON BC (HSG),,,,,5000352719,,Business Rates Multiplier Cap,WA8 7QF,"40,192.00",Yes
Communities & Local Government,DCLG,15/11/2016,Current (non AEF) Grants to Local Authorities,Local Government & Public Services,HALTON BC (HSG),,,,,5000352720,,Doubling of Small Business Rates Relief,WA8 7QF,"41,346.00",Yes
Communities & Local Government,DCLG,15/11/2016,Current (non AEF) Grants to Local Authorities,Local Government & Public Services,HALTON BC (HSG),,,,,5000352721,,Long Term Empty Property Relief,WA8 7QF,"1,084.00",Yes
Communities & Local Government,DCLG,15/11/2016,Current (non AEF) Grants to Local Authorities,Local Government & Public Services,HAMBLETON DC (HSG),,,,503481319,5000352722,,New Empty Property Relief,DL6 2UU,676,Yes
Communities & Local Government,DCLG,15/11/2016,Current (non AEF) Grants to Local Authorities,Local Government & Public Services,HAMBLETON DC (HSG),,,,503481319,5000352723,,Business Rates Multiplier Cap,DL6 2UU,"2,463.00",Yes
Communities & Local Government,DCLG,15/11/2016,Current (non AEF) Grants to Local Authorities,Local Government & Public Services,HAMBLETON DC (HSG),,,,503481319,5000352724,,Long Term Empty Property Relief,DL6 2UU,676,Yes
Communities & Local Government,DCLG,15/11/2016,Current (non AEF) Grants to Local Authorities,Local Government & Public Services,HAMBLETON DC (HSG),,,,503481319,5000352726,,Small Business Rates Relief on Second Properties,DL6 2UU,490,Yes
Communities & Local Government,DCLG,15/11/2016,Current (non AEF) Grants to Local Authorities,Local Government & Public Services,HAMBLETON DC (HSG),,,,503481319,5000352727,,Doubling of Small Business Rates Relief,DL6 2UU,"47,694.00",Yes
Communities & Local Government,DCLG,15/11/2016,Current (non AEF) Grants to Local Authorities,Local Government & Public Services,HAMMERSMITH & FULHAM LB,,,,216929489,5000351309,,Business Rates Multiplier Cap,W6 9JU,"63,989.00",Yes
Communities & Local Government,DCLG,15/11/2016,Current (non AEF) Grants to Local Authorities,Local Government & Public Services,HAMMERSMITH & FULHAM LB,,,,216929489,5000351312,,Doubling of Small Business Rates Relief,W6 9JU,"29,040.00",Yes
Communities & Local Government,DCLG,15/11/2016,Current (non AEF) Grants to Local Authorities,Local Government & Public Services,HAMMERSMITH & FULHAM LB,,,,216929489,5000351315,,New Empty Property Relief,W6 9JU,"8,940.00",Yes
Communities & Local Government,DCLG,15/11/2016,Current (non AEF) Grants to Local Authorities,Local Government & Public Services,HAMMERSMITH & FULHAM LB,,,,216929489,5000351318,,Long Term Empty Property Relief,W6 9JU,616,Yes
Communities & Local Government,DCLG,15/11/2016,Current (non AEF) Grants to Local Authorities,Local Government & Public Services,HAMPSHIRE COUNTY COUNCIL,,,,211325832,5000351321,,Business Rates Multiplier Cap,SO23 8UB,"134,931.00",Yes
Communities & Local Government,DCLG,15/11/2016,Current (non AEF) Grants to Local Authorities,Local Government & Public Services,HAMPSHIRE COUNTY COUNCIL,,,,211325832,5000351324,,Small Business Rates Relief on Second Properties,SO23 8UB,559,Yes
Communities & Local Government,DCLG,15/11/2016,Current (non AEF) Grants to Local Authorities,Local Government & Public Services,HAMPSHIRE COUNTY COUNCIL,,,,211325832,5000351327,,Doubling of Small Business Rates Relief,SO23 8UB,"89,091.00",Yes
Communities & Local Government,DCLG,15/11/2016,Current (non AEF) Grants to Local Authorities,Local Government & Public Services,HAMPSHIRE COUNTY COUNCIL,,,,211325832,5000351330,,New Empty Property Relief,SO23 8UB,293,Yes
Communities & Local Government,DCLG,15/11/2016,Current (non AEF) Grants to Local Authorities,Local Government & Public Services,HAMPSHIRE COUNTY COUNCIL,,,,211325832,5000351333,,Long Term Empty Property Relief,SO23 8UB,"2,244.00",Yes
Communities & Local Government,DCLG,15/11/2016,Current (non AEF) Grants to Local Authorities,Local Government & Public Services,HAMPSHIRE COUNTY COUNCIL,,,,211325832,5000351336,,Extended Transitional Relief for Small and Medium,SO23 8UB,406,Yes
Communities & Local Government,DCLG,15/11/2016,Current (non AEF) Grants to Local Authorities,Local Government & Public Services,HAMPSHIRE FIRE & RESCUE AUTHORITY,,Large,,,5000352218,,Doubling of Small Business Rates Relief,SO23 8UB,"12,974.00",Yes
Communities & Local Government,DCLG,15/11/2016,Current (non AEF) Grants to Local Authorities,Local Government & Public Services,HAMPSHIRE FIRE & RESCUE AUTHORITY,,Large,,,5000352221,,Long Term Empty Property Relief,SO23 8UB,322,Yes
Communities & Local Government,DCLG,15/11/2016,Current (non AEF) Grants to Local Authorities,Local Government & Public Services,HAMPSHIRE FIRE & RESCUE AUTHORITY,,Large,,,5000352230,,Business Rates Multiplier Cap,SO23 8UB,"16,254.00",Yes
Communities & Local Government,DCLG,15/11/2016,Current (non AEF) Grants to Local Authorities,Local Government & Public Services,HARBOROUGH DC (HSG),,,,212935774,5000352728,,Doubling of Small Business Rates Relief,LE16 7AG,"30,295.00",Yes
Communities & Local Government,DCLG,15/11/2016,Current (non AEF) Grants to Local Authorities,Local Government & Public Services,HARBOROUGH DC (HSG),,,,212935774,5000352729,,New Empty Property Relief,LE16 7AG,507,Yes
Communities & Local Government,DCLG,15/11/2016,Current (non AEF) Grants to Local Authorities,Local Government & Public Services,HARBOROUGH DC (HSG),,,,212935774,5000352732,,Business Rates Multiplier Cap,LE16 7AG,"3,670.00",Yes
Communities & Local Government,DCLG,15/11/2016,Current (non AEF) Grants to Local Authorities,Local Government & Public Services,HARINGEY LB,,,,217471767,5000351339,,Business Rates Multiplier Cap,N22 4TR,"90,457.00",Yes
Communities & Local Government,DCLG,15/11/2016,Current (non AEF) Grants to Local Authorities,Local Government & Public Services,HARINGEY LB,,,,217471767,5000351342,,New Empty Property Relief,N22 4TR,"2,127.00",Yes
Communities & Local Government,DCLG,15/11/2016,Current (non AEF) Grants to Local Authorities,Local Government & Public Services,HARINGEY LB,,,,217471767,5000351345,,Doubling of Small Business Rates Relief,N22 4TR,"55,264.00",Yes
Communities & Local Government,DCLG,15/11/2016,Current (non AEF) Grants to Local Authorities,Local Government & Public Services,HARINGEY LB,,,,217471767,5000351348,,Long Term Empty Property Relief,N22 4TR,470,Yes
Communities & Local Government,DCLG,15/11/2016,Current (non AEF) Grants to Local Authorities,Local Government & Public Services,HARLOW DISTRICT COUNCIL,,Large,,239999055,5000351351,,Doubling of Small Business Rates Relief,CM20 1WG,"16,518.00",Yes
Communities & Local Government,DCLG,15/11/2016,Current (non AEF) Grants to Local Authorities,Local Government & Public Services,HARLOW DISTRICT COUNCIL,,Large,,239999055,5000351354,,Business Rates Multiplier Cap,CM20 1WG,"3,971.00",Yes
Communities & Local Government,DCLG,15/11/2016,Current (non AEF) Grants to Local Authorities,Local Government & Public Services,HARROGATE BC,,,,236660031,5000352733,,Extended Transitional Relief for Small and Medium,HG1 2SG,690,Yes
Communities & Local Government,DCLG,15/11/2016,Current (non AEF) Grants to Local Authorities,Local Government & Public Services,HARROGATE BC,,,,236660031,5000352734,,Business Rates Multiplier Cap,HG1 2SG,"4,402.00",Yes
